Workbook

Sheet Cover
A1: =RIGHT(CELL("filename", $A$1), LEN(CELL("filename", $A$1)) - SEARCH("]", CELL("filename", $A$1))) -> Cover
C3: Model name: | D3: PR19 Bill Movement Model
C4: Version number: | D4: =LEFT(D5, FIND(".", D5, 1) - 1) -> Bill-Waterfall-Model-12c-for-publication
C5: Filename: | D5: =MID(CELL("filename"), FIND("[", CELL("filename"), 1) + 1, FIND("]", CELL("filename"), 1) - FIND("[", CELL("filename"), 1) - 1) -> Bill-Waterfall-Model-12c-for-publication.xlsm
C6: Date: | D6: 2019-01-28
C7: Author: | D7: Ofwat
C8: Author contact information: | D8: pr19@ofwat.gsi.gov.uk
C11: Summary of model: | D11: The model calculates the movement in average residential bill (combined bill for WaSCs).
D12: The model draws data automatically from the PR14 and PR19 models.
D13: This is the model referred to in Table 2.1 of the 'Company business plan presentation pro-forma'
D14: Follow link to pro-forma >> | F14: https://www.ofwat.gov.uk/publication/company-business-plan-presentation-pro-forma/
C16: Known limitations: | D16: These are listed below:
D18: Issue | F18: Details | G18: Model link
D19: Merged Companies | F19: The model draws inputs automatically for a single PR14 model and a single PR19 model. For companies that have merged since PR14 the model will not draw inputs automatically from multiple PR14 models. Merged companies will need to calculate appropriate PR14 values outside of this model and then enter them in the Override column on the InpAct sheet. | G19: Override column
D21: The model has been subject to internal Ofwat quality assurance.
D22: The model is not a policy statement.
D23: Users should refer to the "Delivering Water 2020: Our final methodology for the 2019 price review" for information on proposed policy.
C25: Feedback: | D25: We would welcome feedback on the PR19 bill movement model. Please send any feedback to the following email address.
D26: pr19@ofwat.gsi.gov.uk
C28: Error check status: | D28: =Check!$F$2 -> -3 | E28: =IF(D28 = 0, "No error checks", "Error checks active") -> Error checks active
D29: =Check!$F$3 -> 62 | E29: =IF(D29 = 0, "No output changes", "Output changes") -> Output changes
C31: Instructions: | D31: A model 'User guide' is present in the model to help the user in operating the model.
D32: Follow link >> | E32: Goto User Guide
C34: Change log:
D35: Change | F35: Details | G35: Model link
D36: Wastewater Network RCV addditions excluded from total | F36: The formula to sum the RCV additions plus indexation and then index to 2017/18 FYA CPIH deflated only picked up the RCV additions indexation. The RCV additions beginning balance was missing from the sum. | G36: WWN RCV additions plus indexation
D37: Bioresources RCV addditions excluded from total | F37: The formula to sum the RCV additions plus indexation and then index to 2017/18 FYA CPIH deflated only picked up the RCV additions indexation. The RCV additions beginning balance was missing from the sum. | G37: BR RCV additions plus indexation
D38: Wastewater asset life linked to water asset life | F38: The 'RCV Additions: Average Asset Life' for wastewater was linked to the average assset life for water on the InpActive sheet. | G38: RCV Additions: Average Asset Life - Wastewater
D39: Re-linked to model 16t | F39: Updates to the financial model (FM) have caused lines in the FM to moe, so the waterfall model has had to be re-linked to the PR19 model. | G39: =InpAct!D13 -> PR19
D40: Residential retail revenue adjustment per customer - real | F40: Residential retail revenue adjustment was double-counted since it was included as a separate item but is already included in the calculation of retail CTS. To correct the double-counting this was initially overridden with a zero on the InpAct sheet. This bug has now been fixed by removing Residential Retail Revenue Adjustment from the InpActive sheet and deleting it from the calculation of the change in the bill due to all other wholesale components (block starting on line 39 on SummaryCalc). | G40: =Summary_Calc!$E$42 -> Change in retail CTS
A44: End of sheet

Sheet User Guide
A1: =RIGHT(CELL("filename", $A$1), LEN(CELL("filename", $A$1)) - SEARCH("]", CELL("filename", $A$1))) -> User Guide
B3: INTRODUCTION
E5: This model will create a waterfall chart showing the main components causing the movement in bills between PR14 and PR19.
D7: INITIAL SET UP
E8: The model will automatically pick up the correct input fields when you link it to the water company financial models.
E10: On first use of the model you will need to link to both the PR14 and PR19 financial models for your company.
D11: Step 1 - | E11: On the Excel menu click DATA / Edit Links
D12: Step 2 - | E12: Select the link to the PR19 model and click "Change Source"
D13: Step 3 - | E13: Navigate to the correct PR19 financial model and select it.
D14: Step 4 - | E14: Select the link to the PR14 model and click "Change Source"
D15: Step 5 - | E15: Navigate to the correct PR14 financial model and select it
D16: Step 6 - | E16: On the InpC sheet change cell F34 to either WaSC or WoC, as appropriate. The current value is shown below, folow the link below to change it.
E17: =InpC!F35 -> WoC
D18: Step 7 - | E18: Recalculate the model. Press Ctrl + Alt + F9
D20: NAVIGATION
E21: In order to navigate through the model the following key strokes will prove useful:
E22: - To go to a sheet or row select a blue font cell and then either press CTRL+ [ or double click
E23: - To return To the last position press F5 + Enter
E24: - In accordance with best practice, the model is saved with a "Manual Calculation" setting. To ensure a full recalculation press: Ctrl + Alt + F9
B28: HOW TO SAVE A PDF COPY OF THE WATERFALL CHART
D30: Step 1 - | E30: To save the 'Waterfall' chart in PDF format, press button "Save as PDF"
D34: Step 2 - | E34: In the dialog box, "Enter sheet name", type Waterfall
D36: Step 3 - | E36: In the dialog box, "Save As" change the file name if required
D38: Step 4 - | E38: Press "Save" to save a Pdf copy of the sheet
B42: HOW TO STORE TRACK IN TRACK SHEET
D44: USING MACRO
E45: To store Track in the Track sheet using the macro, follow the steps below:
D47: Step 1 - | E47: Go to the Track sheet and press the "Store Track" button to save the track for a new case
E48: Store Track
D50: Step 2 - | E50: A dialog box "Enter the label for the new track column" will appear, type the new track label (for example: "version 17r"), the label will appear in row 6
D52: Step 3 - | E52: A dialog box "Enter the comment for the new track" will appear, write a brief description of the change. The description will be appear at the bottom of the track column
D54: Step 4 - | E54: Press enter, a new track column will appear before the last stored track
D56: Step 5 - | E56: Review the difference between stored cases and active case (col H) by selecting the stored case in cell H6.
D58: MANUAL METHOD
E60: To store Track in the Track sheet manually, follow the steps below:
D62: Step 1 - | E62: Select the column by pressing Ctrl + Spacebar and Copy (Ctrl + C). Then insert a new column after the last stored column by pressing Alt, I, E
D64: Step 2 - | E64: Select the newly inserted column (Ctrl + Spacebar) and delete the previously stored values from this column by pressing Delete button
D66: Step 3 - | E66: Go to active track column (H column). Select the range from H6 till 'do not delete row - range end' row and Copy (Ctrl + C)
D68: Step 4 - | E68: Paste the selected values (Alt E, S, V) in newly inserted column
D70: Step 5 - | E70: Update 'New track name' in row 6 of newly inserted column. Then select 'New track name' from the dropdown list present in H6.
D72: Step 6 - | E72: Review the difference between stored cases and active case (col H) by selecting the stored case in cell H6.
A76: End of sheet

Sheet Map & Key
A1: =RIGHT(CELL("filename", $A$1), LEN(CELL("filename", $A$1)) - SEARCH("]", CELL("filename", $A$1))) -> Map & Key
A3: TABLE OF CONTENTS
F5: Table of Contents
H7: DOCUMENTATION | L7: MODEL INPUTS | Q7: MODEL CALCULATIONS | V7: MODEL OUTPUTS | Z7: MODEL QA
H9: Cover | L9: InpC | Q9: RCV | V9: GraphData | Z9: Track
H10: Model cover sheet | L10: Constants | Q10: Change due to RCV, WACC and run-off | V10: Table of bill movements | Z10: Model changes and track records
H12: User Guide | L12: InpAct | Q12: Totex | V12: Waterfall | Z12: Check
H13: Explanation of setup and macros | L13: All inputs to be flowed into model | Q13: Change due to PAYG Totex and rate | V13: Graph of bill movements | Z13: Checks
H15: Map & Key | Q15: Wholesale
H16: ToC and key to formatting | Q16: Change due to other wholesale items
H18: Model Design | Q18: Reconciliation
H19: Flow chart, model assumptions and key calculations | Q19: Change due to reconciliations items
Q21: Retail
Q22: Change due to cost to serve
Q24: Customers
Q25: Change due to customer No.s
Q27: Summary_Calc
Q28: Convert from £m to £ per custome
A31: SHEET TABS
H33: Light Yellow | J33: Input sheets
H35: No colour (default Excel tab colour) | J35: Calculation and documentation sheets
H37: Pale Blue | J37: Key output sheets
H39: Turquoise | J39: Quality control sheets
H41: Yellow | J41: To be completed, temporary, restructured, or deleted
A43: COLOUR
B45: Font colour only
H46: Blue font | J46: Imported from another sheet
H48: Red font | J48: Exported to another sheet (except from Input sheets)
H50: Black font | J50: Within sheet link or calculation
B52: Font + shade combinations
H53: Black font + Light Yellow shade | J53: Inputs
H55: Black font + Light Grey shade on entire row | J55: Within-worksheet counter-flow
H57: Blue font + Light Grey shade on entire row | J57: Between-worksheet counter-flow
H59: Empty Cell with Light Grey shade | J59: Empty cells being deliberately referenced
B61: Other
H62: Black font + Pale Blue shade on entire row | J62: Section separator
H64: Light Turquoise shade | J64: Stored/dead/hard coded outputs
H66: Tan shade | J66: Pre-model time line actuals
H68: Yellow shade | J68: Work in progress / temporary
H70: Lime shade | J70: Values or logic to be reviewed
B72: Error checks & alerts
H73: Green shade | J73: OK
H75: Red shade | J75: Error
H77: Gold shade | J77: Alert
A79: ABBREVIATIONS
H81: £ | I81: Great Britain Pound
H82: BEG | I82: Beginning
H83: BR | I83: Bio resources
H84: CALC | I84: Calculation
H85: CTS | I85: Cost to serve
H86: m | I86: Million
H87: na | I87: Not available / applicable
H88: Opex | I88: Operating expenditure
H89: PAYG | I89: Pay as you go
H90: POS | I90: Positive
H91: RCV | I91: Regulatory capital value
H92: Totex | I92: Total expenditure
H93: WACC | I93: Weighted average cost of capital
H94: WaSC | I94: Water and Sewerage company
H95: WN | I95: Water network
H96: WoC | I96: Water only company
H97: WR | I97: Water resources
H98: WWN | I98: Waste water network
A100: LIST OF MACROS USED
B102: Store track results
H103: Store track results | L103: This macro helps in storing the results/outputs after any change is made in the model on "Track" sheet.
L104: These stored results then can be used to analyse the impact of any change made in the model.
L105: Goto macro
B107: Save as PDF
H108: Save as PDF | L108: This macro helps in saving any worksheet or chart in PDF format.
A113: End of sheet

Sheet Model Design
A1: =RIGHT(CELL("filename", $A$1), LEN(CELL("filename", $A$1)) - SEARCH("]", CELL("filename", $A$1))) -> Model Design
A3: GENERAL MODEL DESIGN
F5: Structure of a residential bill
V35: Click on boxes with coloured backgrounds to go to the calculations
V37: Key
V39: Grey | X39: Calculation
V41: Light blue | X41: Calculated in financial model and input to this model
V43: Green border | X43: Item included in the waterfall chart
A47: ASSUMPTIONS
H49: Price Base:
K50: >>> | L50: The price base for the model is 2017/18 year average CPIH deflated
K52: >>> | L52: 2019/20 inputs from the PR14 model are real
L53: In the PR14 model 'real' means 2012/13 FYA RPI deflated
L54: In the PR14 model retail prices were not indexed (real = nominal)
K56: >>> | L56: 2024/25 inputs from the PR19 model can be real or nominal (they are labelled)
L57: In the PR19 model 'real' means 2017/18 FYA CPIH deflated
L58: In the PR19 model retail prices are indexed
K60: >>> | L60: All inputs are indexed to the model price base
A62: CALCULATIONS
H64: Calculations:
H65: wholesale components, £m | L65: All items on the waterfall chart are in £ per customer.
J66: 1 | K66: > | L66: Wholesale reconciliation items are simply calculated by subtracting the sum of PR19 items from the sum of PR14 items.
L67: PR19 retail reconciliation items are input as £ per customer and added when the wholesale items are converted to £ per customer (see later).
J68: 2 | K68: > | L68: Other wholesale items are simply calculated by subtracting the sum of PR19 items from the sum of PR14 items.
L69: The PR19 impact of reprofiling is directly input whereas the PR14 impact of reprofiling needs to be calculated.
J70: 3 | K70: > | L70: The other 6 wholesale components (run-off rate/RCV, WACC/RCV, PAYG%/totex) are all calculated using the method below for PAYG Totex:
K71: a | L71: Calculate the change in PAYG Totex = (PR19 PAYG Totex - PR14 PAYG Totex)
K72: b | L72: Calculate the PR14 PAYG Totex using the PR19 PAYG% = (PR14 Totex * PR19 PAYG%)
K73: c | L73: Calculate the change in PAYG Totex due to change in PAYG% = (line b - PR14 PAYG Totex)
K74: d | L74: Calculate the change in PAYG Totex due to change in Totex = (line a - line c)
L75: Goto calculation
H77: wholesale components, £/cust | L77: All items on the waterfall chart are in £ per customer.
L78: The wholesale components are initially calculated in £m as described above.
L79: The method for calculating the wholesale components in £ per customer is as follows:
K80: 1 | L80: Sum all 8 wholesale components, £m
K81: 2 | L81: For each individual wholesale component calculate its proportion of the sum, £m
K82: 3 | L82: Multiply this proportion by the Change in Allowed Revenue, £ per customer
L83: Goto calculation
H85: wholesale allowed revenue | L85: Calculate the Change in Allowed Revenue, £ per customer, as follows:
K86: 1 | L86: Calculate the Residential Bill Movement, £ per customer
K87: 2 | L87: Calculate the Change in Retail Cost To Serve, £ per customer
K88: 3 | L88: Calculate the Change in Retail Reconciliation Items, £ per customer
K89: 4 | L89: Calculate the Change in wholesale dummy control allowed revenue
K90: 5 | L90: Calculate the Change in Customer Numbers, £ per customer
K91: 6 | L91: The Change in Allowed Revenue is (line 1 - (line 2 + line 3 + line 4 + line 5) )
L92: Goto calculation
H94: customer numbers | L94: Calculate the change in the bill due to the change in customers numbers and household apportionment, £ per customer, as follows:
K95: 1 | L95: Calculate the PR19 total households as a % of the PR14 total households
K96: 2 | L96: Calculate the PR19 household apportionment as a % of the PR14 household apportionment
K97: 3 | L97: The change due to customer numbers is ( (wholesale allowed revenue * line 2 / line 1) - wholesale allowed revenue)
K98: 4 | L98: Do this separately for water and wastewater and then sum the two values
L99: Goto calculation
H101: Definitions:
H102: Title of component displayed on chart | L102: Definition | R102: Calculation
H103: =GraphData!F14 -> RCV | L103: Change in customer bill due to a change in RCV depreciation and return on RCV caused by changing the RCV with all other components held constant. | R103: a> Calculate the change in RCV depreciation = (PR19 RCV depreciation - PR14 RCV depreciation) b> Calculate the PR14 RCV depreciation using the PR19 RCV run-off rate = (PR14 Total RCV * PR19 RCV run-off rate) c> Calculate the change in RCV depreciation due to change in RCV run-off rate = (line b - PR14 RCV depreciation) d> Calculate the change in RCV depreciation due to change in RCV = (line a - line c) e> Repeat for return on RCV and sum.
H104: =GraphData!F15 -> Totex | L104: Change in customer bill due to a change in PAYG Totex caused by changing the Totex with all other components held constant. | R104: a> Calculate the change in PAYG Totex = (PR19 PAYG Totex - PR14 PAYG Totex) b> Calculate the PR14 PAYG Totex using the PR19 PAYG% = (PR14 Totex * PR19 PAYG%) c> Calculate the change in PAYG Totex due to change in PAYG% = (line b - PR14 PAYG Totex) d> Calculate the change in PAYG Totex due to change in Totex = (line a - line c)
H105: =GraphData!F16 -> PAYG% | L105: Change in customer bill due to a change in PAYG Totex caused by changing the PAYG% with all other components held constant. | R105: a> Calculate the change in PAYG Totex = (PR19 PAYG Totex - PR14 PAYG Totex) b> Calculate the PR14 PAYG Totex using the PR19 PAYG% = (PR14 Totex * PR19 PAYG%) c> Calculate the change in PAYG Totex due to change in PAYG% = (line b - PR14 PAYG Totex)
H106: =GraphData!F17 -> Run-off rate | L106: Change in customer bill due to a change in RCV depreciation caused by changing the RCV run-off rate with all other components held constant. | R106: a> Calculate the change in RCV depreciation = (PR19 RCV depreciation - PR14 RCV depreciation) b> Calculate the PR14 RCV depreciation using the PR19 RCV run-off rate = (PR14 Total RCV * PR19 RCV run-off rate) c> Calculate the change in RCV depreciation due to change in RCV run-off rate = (line b - PR14 RCV depreciation)
H107: =GraphData!F18 -> WACC | L107: Change in customer bill due to a change in the return on RCV caused by changing the WACC with all other components held constant. | R107: a> Calculate the change in return on RCV = (PR19 return on RCV - PR14 return on RCV) b> Calculate the PR14 return on RCV using the PR19 WACC = (PR14 Total return on RCV * PR19 WACC) c> Calculate the change in return on RCV due to change in WACC = (line b - PR14 return on RCV)
H108: =GraphData!F19 -> Other wholesale items | L108: Change in customer bill due to a change in any other wholesale item with all other components held constant | R108: Calculate the PR14 impact of reprofiling and add to the other PR14 wholesale items. Subtract the PR19 wholesale items to find the change in other wholesale items.
H109: =GraphData!F20 -> Wholesale reconciliations items | L109: Change in customer bill due to a change in any reconciliation items with all other components held constant | R109: Subtract the PR19 reconciliation items from the PR14 reconciliation items to find the change in reconciliation items.
H110: =GraphData!F21 -> 5th control | L110: The PR19 5th control allowed revenue. | R110: There was no 5th control at PR14. If there is a 5th control at PR19 this will cause a rise in the bill.
H111: =GraphData!F22 -> retail CTS | L111: Change in customer bill due to a change in retail CTS with all other components held constant | R111: Sum the single service allowed revenue for both PR14 and PR19 to get the joint service allowed revenue. Do not index since in the PR14 model wholesale prices are indexed but retail prices are not indexed. Subtract the PR19 value from the PR14 value to find the change in retail allowed revenue.
H112: =GraphData!F23 -> customer numbers and residential apportionment | L112: Change in customer bill due to a change in customer numbers and/or residential apportionment with all other components held constant. | R112: a> Calculate the PR19 households as a percentage of the PR14 households b> Calculate the PR19 apportionment as a percentage of the PR14 apportionment c> Divide apportionment by households (b divided by a) to find the percentage change in allowed revenue
A122: End of sheet

Sheet Inputs >>

Sheet InpC
A1: =RIGHT(CELL("FILENAME", $A$1), LEN(CELL("FILENAME", $A$1)) - SEARCH("]", CELL("FILENAME", $A$1))) -> InpC
F5: Constant | G5: Unit | H5: Value | J5: Note
A7: NON CHANGEABLE INPUTS
E9: Track Tolerance Level | F9: 0.001 | G9: tolerance
E10: Check Tolerance Level | F10: 1e-07 | G10: tolerance
E12: Thousands in a million | F12: 1000 | G12: thousand
A14: TIME
D16: =$F$26 -> PR14 | E16: Model period ending | F16: 2020-03-31 | G16: date
D18: =$F$26 -> PR14 | E18: Financial year ending | F18: 2020 | G18: year #
D20: =$F$27 -> PR19 | E20: Model period ending | F20: 2025-03-31 | G20: date
D22: =$F$27 -> PR19 | E22: Financial year ending | F22: 2025 | G22: year #
A24: MODEL PARAMETERS
E26: Model 1 label | F26: PR14 | G26: text
E27: Model 2 label | F27: PR19 | G27: text
D29: =$F$26 -> PR14 | E29: ='[2]Input Nominal'!E$10 -> Company Name | F29: ='[2]Input Nominal'!$I$10 -> SSC | G29: text | H29: for info only
D30: =$F$26 -> PR14 | E30: ='[2]Input Nominal'!E$11 -> Company Type | F30: ='[2]Input Nominal'!I$11 -> WoC | G30: text
D32: =$F$27 -> PR19 | E32: =[1]InpActive!E$63 -> Company Name | F32: =[1]InpActive!F$63 -> SSC | G32: text | H32: for info only
D33: =$F$27 -> PR19 | E33: =[1]InpActive!E$65 -> Company Type | F33: =[1]InpActive!F$65 -> WoC | G33: text
E35: Company Type | F35: WoC | G35: name
E36: Company type switch | F36: =IF(F35 = "WoC", 1, 0) -> 1 | G36: 0 = WaSC, 1 = WoC
E38: Company Type switch check | F38: =IF( OR( $F$30 = 0, $F$33 = 0), 0, IF( AND( $F$35 = $F$30, $F$35 = $F$33), 0, 1)) -> 0 | G38: check
A40: INDEXATION
B43: Inflation from 2013 FYA to 2020 FYE - RPI
E44: RPI: Financial year average 2012/13 | F44: 244.675 | G44: index
E45: RPI: March 2020 | F45: 269.3 | G45: index
E46: RPI inflate from 2013 FYA to 2020 FYE | F46: =IFERROR( F45 / F44, 0 ) -> 1.100643711 | G46: factor
B48: Deflation from 2020 FYE to 2018 FYA - CPIH
E49: CPIH: Financial year average 2017/18 | F49: 103.1083333 | G49: index
E50: CPIH: March 2020 | F50: 102.7 | G50: index
E51: CPIH deflate from 2020 FYE to 2018 FYA | F51: =IFERROR( F50 / F49, 0 ) -> 0.996039764 | G51: factor
E53: =E46 -> RPI inflate from 2013 FYA to 2020 FYE | F53: =F46 -> 1.100643711 | G53: factor
E54: =E51 -> CPIH deflate from 2020 FYE to 2018 FYA | F54: =F51 -> 0.996039764 | G54: factor
D55: =$F$26 -> PR14 | E55: Adjustment from 2012/13 year average RPI to 2017/18 year average CPIH deflated | F55: =IFERROR( F53 / F54, 0 ) -> 1.10501985 | G55: factor
D57: =$F$27 -> PR19 | E57: CPI(H): Fin year average - inflate from base year 2017-18 average | F57: 1.156617303 | G57: factor
A61: End of sheet

Sheet InpAct
A1: =RIGHT(CELL("FILENAME", $A$1), LEN(CELL("FILENAME", $A$1)) - SEARCH("]", CELL("FILENAME", $A$1))) -> InpAct
F5: Constant | G5: Unit | H5: Active Value | I5: Override | J5: Linked Value | K5: Note
A7: BILL
B9: Retail allowed revenue per customer: joint services
D10: =InpC!$F$26 -> PR14 | E10: ='[2]Exec Summary'!E$38 -> Average water-only bill | G10: £ | H10: =IF(I10 <> "", I10, J10) -> 129.3447112 | J10: ='[2]Exec Summary'!N$38 -> 129.3447112
D11: =InpC!$F$26 -> PR14 | E11: ='[2]Exec Summary'!E$41 -> Average wastewater-only bill | G11: £ | H11: =IF(I11 <> "", I11, J11) -> 0 | J11: ='[2]Exec Summary'!N$41 -> 0
D13: =InpC!$F$27 -> PR19 | E13: =[1]Summary_Calc!E$1154 -> Wholesale wastewater network allowed revenue (excluding capital connection charges, other income and operating income) per residential customer - adj - real | F13: =[1]Summary_Calc!F$1154 -> 0 | G13: =[1]Summary_Calc!G$1154 -> £ | H13: =IF(I13 <> "", I13, J13) -> 127.5434806 | J13: =[1]Summary_Calc!P$1163 -> 127.5434806
D14: =InpC!$F$27 -> PR19 | E14: =[1]Summary_Calc!E$1168 -> 0 | F14: =[1]Summary_Calc!F$1168 -> 0 | G14: =[1]Summary_Calc!G$1168 -> 0 | H14: =IF(I14 <> "", I14, J14) -> 0 | J14: =[1]Summary_Calc!P$1177 -> 0
A16: CUSTOMERS
D18: =InpC!$F$26 -> PR14 | E18: ='[2]Input Nominal'!E$807 -> Water: Number of unmeasured households | G18: 000s | H18: =IF(I18 <> "", I18, J18) -> 348.4560745 | J18: ='[2]Input Nominal'!N$807 -> 348.4560745
D19: =InpC!$F$26 -> PR14 | E19: ='[2]Input Nominal'!E$808 -> Water: Number of measured households | G19: 000s | H19: 321.6737614 | J19: ='[2]Input Nominal'!$N$808 -> 321.6737614
D20: =InpC!$F$26 -> PR14 | E20: ='[2]Input Nominal'!E$809 -> Wastewater: Number of unmeasured households | G20: 000s | H20: 0 | J20: ='[2]Input Nominal'!$N$809 -> 0
D21: =InpC!$F$26 -> PR14 | E21: ='[2]Input Nominal'!E$810 -> Wastewater: Number of measured households with standing charge | G21: 000s | H21: 0 | J21: ='[2]Input Nominal'!$N$810 -> 0
D22: =InpC!$F$26 -> PR14 | E22: ='[2]Input Nominal'!E$811 -> Households connected for water and wastewater - unmetered | G22: 000s | H22: 0 | J22: ='[2]Input Nominal'!$N$811 -> 0
D23: =InpC!$F$26 -> PR14 | E23: ='[2]Input Nominal'!E$812 -> Households connected for water and wastewater - metered | G23: 000s | H23: 0 | J23: ='[2]Input Nominal'!$N$812 -> 0
D25: =InpC!$F$27 -> PR19 | E25: =[1]InpActive!E$1329 -> Households connected for water only - metered | F25: =[1]InpActive!F$1329 -> 0 | G25: =[1]InpActive!G$1329 -> 000s | H25: =IF(I25 <> "", I25, J25) -> 410.948962 | J25: =[1]InpActive!P$1329 -> 410.948962
D26: =InpC!$F$27 -> PR19 | E26: =[1]InpActive!E$1330 -> Households connected for sewerage only - unmetered | F26: =[1]InpActive!F$1330 -> 0 | G26: =[1]InpActive!G$1330 -> 000s | H26: 0 | J26: =[1]InpActive!P$1330 -> 0
D27: =InpC!$F$27 -> PR19 | E27: =[1]InpActive!E$1331 -> Households connected for water and sewerage - metered | F27: =[1]InpActive!F$1331 -> 0 | G27: =[1]InpActive!G$1331 -> 000s | H27: 0 | J27: =[1]InpActive!P$1331 -> 0
D28: =InpC!$F$27 -> PR19 | E28: =[1]InpActive!E$1332 -> Households connected for water only - unmetered | F28: =[1]InpActive!F$1332 -> 0 | G28: =[1]InpActive!G$1332 -> 000s | H28: 321.3023053 | J28: =[1]InpActive!P$1332 -> 321.3023053
D29: =InpC!$F$27 -> PR19 | E29: =[1]InpActive!E$1333 -> Households connected for sewerage only - metered | F29: =[1]InpActive!F$1333 -> 0 | G29: =[1]InpActive!G$1333 -> 000s | H29: 0 | J29: =[1]InpActive!P$1333 -> 0
D30: =InpC!$F$27 -> PR19 | E30: =[1]InpActive!E$1334 -> Households connected for water and sewerage - unmetered | F30: =[1]InpActive!F$1334 -> 0 | G30: =[1]InpActive!G$1334 -> 000s | H30: 0 | J30: =[1]InpActive!P$1334 -> 0
A32: ALLOWED REVENUE
B34: Retail allowed revenue per customer
D35: =InpC!$F$26 -> PR14 | E35: ='[2]Exec Summary'!E$32 -> Retail allowed revenue per customer: single service | G35: £ | H35: =IF(I35 <> "", I35, J35) -> 25.17048097 | J35: ='[2]Exec Summary'!N$32 -> 25.17048097
D36: =InpC!$F$26 -> PR14 | E36: ='[2]Exec Summary'!E$35 -> Retail allowed revenue per customer: joint services | G36: £ | H36: =IF(I36 <> "", I36, J36) -> 0 | J36: ='[2]Exec Summary'!N$35 -> 0 | K36: in PR14 joint service AR = single service AR * economies of scope factor (= 1.3)
D38: =InpC!$F$27 -> PR19 | E38: =[1]Summary_Calc!E$1107 -> Residentials connected for water or sewerage | F38: =[1]Summary_Calc!F$1107 -> 0 | G38: =[1]Summary_Calc!G$1107 -> 000s | H38: =IF(I38 <> "", I38, J38) -> 16.77083029 | J38: =[1]Summary_Calc!P$1116 -> 16.77083029
D39: =InpC!$F$27 -> PR19 | E39: =[1]Summary_Calc!E$1112 -> 0 | F39: =[1]Summary_Calc!F$1112 -> 0 | G39: =[1]Summary_Calc!G$1112 -> 0 | H39: =IF(I39 <> "", I39, J39) -> 0 | J39: =[1]Summary_Calc!P$1121 -> 0
D41: =InpC!$F$26 -> PR14 | E41: Wholesale dummy control allowed revenue - real | G41: £/cust | K41: Thames Tideway only: value in £/customer to be input
D42: =InpC!$F$27 -> PR19 | E42: =[1]Summary_Calc!E$944 -> Wholesale dummy charges - Dummy measured charge ~ business | F42: =[1]Summary_Calc!F$944 -> 0 | G42: =[1]Summary_Calc!G$944 -> % | H42: =IF(I42 <> "", I42, J42) -> 0 | J42: =[1]Summary_Calc!P$953 -> 0 | K42: Thames Tideway only
B44: Wholesale allowed revenue
D45: =InpC!$F$26 -> PR14 | E45: ='[2]Exec Summary'!E$26 -> Wholesale water allowed revenue per customer excluding capital connection charges, other income and operating income | G45: £ | H45: =IF(I45 <> "", I45, J45) -> 104.1742303 | J45: ='[2]Exec Summary'!N$26 -> 104.1742303
D46: =InpC!$F$26 -> PR14 | E46: ='[2]Exec Summary'!$E$29 -> Wholesale Wastewater allowed revenue per customer excluding capital connection charges, other income and operating income | G46: £ | H46: =IF(I46 <> "", I46, J46) -> 0 | J46: ='[2]Exec Summary'!$N$29 -> 0
D48: =InpC!$F$26 -> PR14 | E48: ='[2]Water Real AR'!E$268 & " - real - water" -> Revenue requirement including tax charge - real - water | G48: £m | H48: =IF(I48 <> "", I48, J48) -> 89.33607039 | J48: ='[2]Water Real AR'!N$268 -> 89.33607039
D49: =InpC!$F$26 -> PR14 | E49: ='[2]Water Real AR'!E$287 & " - real - water" -> Phase 9: Re-profiled allowed revenue - real - water | G49: £m | H49: =IF(I49 <> "", I49, J49) -> 89.33607039 | J49: ='[2]Water Real AR'!N$287 -> 89.33607039
D50: =InpC!$F$26 -> PR14 | E50: ='[2]Waste Real AR'!E$268 & " - real - wastewater" -> Revenue requirement including tax charge - real - wastewater | G50: £m | H50: =IF(I50 <> "", I50, J50) -> 0 | J50: ='[2]Waste Real AR'!N$268 -> 0
D51: =InpC!$F$26 -> PR14 | E51: ='[2]Waste Real AR'!E$287 & " - real - wastewater" -> Phase 9: Re-profiled allowed revenue - real - wastewater | G51: £m | H51: =IF(I51 <> "", I51, J51) -> 0 | J51: ='[2]Waste Real AR'!N$287 -> 0
D53: =InpC!$F$26 -> PR14 | E53: ='[2]Input Nominal'!E$30 -> Wholesale Water - household apportionment calculated | G53: % | H53: =IF(I53 <> "", I53, J53) -> 0.7814341905 | J53: ='[2]Input Nominal'!N$30 -> 0.7814341905
D54: =InpC!$F$26 -> PR14 | E54: ='[2]Input Nominal'!E$31 -> Wholesale Wastewater - household apportionment calculated | G54: % | H54: =IF(I54 <> "", I54, J54) -> 0 | J54: ='[2]Input Nominal'!N$31 -> 0
D56: =InpC!$F$27 -> PR19 | E56: ='[1]Water Resources'!E$193 -> Revenue requirement with impact of reprofiling excl. tax charge - WR - nominal | F56: ='[1]Water Resources'!F$193 -> 0 | G56: ='[1]Water Resources'!G$193 -> £m | H56: =IF(I56 <> "", I56, J56) -> 11.35294703 | J56: ='[1]Water Resources'!P$193 -> 11.35294703
D57: =InpC!$F$27 -> PR19 | E57: ='[1]Water Network'!E$193 -> Revenue requirement with impact of reprofiling excl. tax charge - WN - nominal | F57: ='[1]Water Network'!F$193 -> 0 | G57: ='[1]Water Network'!G$193 -> £m | H57: =IF(I57 <> "", I57, J57) -> 107.296768 | J57: ='[1]Water Network'!P$193 -> 107.296768
D58: =InpC!$F$27 -> PR19 | E58: ='[1]Wastewater Network'!E$193 -> Revenue requirement with impact of reprofiling excl. tax charge - WWN - nominal | F58: ='[1]Wastewater Network'!F$193 -> 0 | G58: ='[1]Wastewater Network'!G$193 -> £m | H58: =IF(I58 <> "", I58, J58) -> 0 | J58: ='[1]Wastewater Network'!P$193 -> 0
D59: =InpC!$F$27 -> PR19 | E59: ='[1]Bio Resources'!E$193 -> Revenue requirement with impact of reprofiling excl. tax charge - BR - nominal | F59: ='[1]Bio Resources'!F$193 -> 0 | G59: ='[1]Bio Resources'!G$193 -> £m | H59: =IF(I59 <> "", I59, J59) -> 0 | J59: ='[1]Bio Resources'!$P$193 -> 0
D61: =InpC!$F$27 -> PR19 | E61: ='[1]Water Resources'!E$185 -> Re-profiled allowed revenue adjusted (excl. tax) - WR - real | F61: ='[1]Water Resources'!F$185 -> 0 | G61: ='[1]Water Resources'!G$185 -> £m | H61: =IF(I61 <> "", I61, J61) -> 0 | J61: ='[1]Water Resources'!P$185 -> 0
D62: =InpC!$F$27 -> PR19 | E62: ='[1]Water Resources'!E$186 -> Revenue requirement excluding tax charge - WR - real | F62: ='[1]Water Resources'!F$186 -> 0 | G62: ='[1]Water Resources'!G$186 -> £m | H62: =IF(I62 <> "", I62, J62) -> 0 | J62: ='[1]Water Resources'!P$186 -> 0
D63: =InpC!$F$27 -> PR19 | E63: Impact of re-profiling of allowed revenue - WR - real | F63: 0 | G63: £m | H63: =H61 - H62 -> 0
D65: =InpC!$F$27 -> PR19 | E65: ='[1]Water Network'!E$185 -> Re-profiled allowed revenue adjusted (excl. tax) - WN - real | F65: ='[1]Water Network'!F$185 -> 0 | G65: ='[1]Water Network'!G$185 -> £m | H65: =IF(I65 <> "", I65, J65) -> 0 | J65: ='[1]Water Network'!P$185 -> 0
D66: =InpC!$F$27 -> PR19 | E66: ='[1]Water Network'!E$186 -> Revenue requirement excluding tax charge - WN - real | F66: ='[1]Water Network'!F$186 -> 0 | G66: ='[1]Water Network'!G$186 -> £m | H66: =IF(I66 <> "", I66, J66) -> 0 | J66: ='[1]Water Network'!P$186 -> 0
D67: =InpC!$F$27 -> PR19 | E67: Impact of re-profiling of allowed revenue - WN - real | F67: 0 | G67: £m | H67: =H65 - H66 -> 0
D69: =InpC!$F$27 -> PR19 | E69: ='[1]Wastewater Network'!E$185 -> Re-profiled allowed revenue adjusted (excl. tax) - WWN - real | F69: ='[1]Wastewater Network'!F$185 -> 0 | G69: ='[1]Wastewater Network'!G$185 -> £m | H69: =IF(I69 <> "", I69, J69) -> 0 | J69: ='[1]Wastewater Network'!P$185 -> 0
D70: =InpC!$F$27 -> PR19 | E70: ='[1]Wastewater Network'!E$186 -> Revenue requirement excluding tax charge - WWN - real | F70: ='[1]Wastewater Network'!F$186 -> 0 | G70: ='[1]Wastewater Network'!G$186 -> £m | H70: =IF(I70 <> "", I70, J70) -> 0 | J70: ='[1]Wastewater Network'!P$186 -> 0
D71: =InpC!$F$27 -> PR19 | E71: Impact of re-profiling of allowed revenue - WWN - real | F71: 0 | G71: £m | H71: =H69 - H70 -> 0
D73: =InpC!$F$27 -> PR19 | E73: ='[1]Bio Resources'!E$185 -> Re-profiled allowed revenue adjusted (excl. tax) - BR - real | F73: ='[1]Bio Resources'!F$185 -> 0 | G73: ='[1]Bio Resources'!G$185 -> £m | H73: =IF(I73 <> "", I73, J73) -> 0 | J73: ='[1]Bio Resources'!P$185 -> 0
D74: =InpC!$F$27 -> PR19 | E74: ='[1]Bio Resources'!E$186 -> Revenue requirement excluding tax charge - BR - real | F74: ='[1]Bio Resources'!F$186 -> 0 | G74: ='[1]Bio Resources'!G$186 -> £m | H74: =IF(I74 <> "", I74, J74) -> 0 | J74: ='[1]Bio Resources'!P$186 -> 0
D75: =InpC!$F$27 -> PR19 | E75: Impact of re-profiling of allowed revenue - BR - real | F75: 0 | G75: £m | H75: =H73 - H74 -> 0
D77: =InpC!$F$27 -> PR19 | E77: =[1]Summary_Calc!E$155 -> Wholesale water resources charges - Water resources measured charge ~ residential - real | F77: =[1]Summary_Calc!F$155 -> 0 | G77: =[1]Summary_Calc!G$155 -> % | H77: =IF(I77 <> "", I77, J77) -> 0.7863718203 | J77: =[1]Summary_Calc!P$158 -> 0.7863718203
D78: =InpC!$F$27 -> PR19 | E78: =[1]Summary_Calc!E$346 -> Wholesale water network plus charges - Water network plus unmeasured charge ~ residential | F78: =[1]Summary_Calc!F$346 -> 0 | G78: =[1]Summary_Calc!G$346 -> % | H78: =IF(I78 <> "", I78, J78) -> 0.7909252873 | J78: =[1]Summary_Calc!P$350 -> 0.7909252873
D79: =InpC!$F$27 -> PR19 | E79: =[1]Summary_Calc!E$568 -> 0 | F79: =[1]Summary_Calc!F$568 -> 0 | G79: =[1]Summary_Calc!G$568 -> 0 | H79: =IF(I79 <> "", I79, J79) -> 0 | J79: =[1]Summary_Calc!P$575 -> 0
D80: =InpC!$F$27 -> PR19 | E80: =[1]Summary_Calc!E$741 -> Bio resources - TDS revenue average - real | F80: =[1]Summary_Calc!F$741 -> 0 | G80: =[1]Summary_Calc!G$741 -> £/tonne | H80: =IF(I80 <> "", I80, J80) -> 0 | J80: =[1]Summary_Calc!P$749 -> 0
A82: WHOLESALE
D84: =InpC!$F$26 -> PR14 | E84: Proportion of capex that is subject to depreciation in year of acquisition | G84: % | H84: =IF(I84 <> "", I84, J84) -> 0.5 | J84: 0.5
B86: Totex
D87: =InpC!$F$26 -> PR14 | E87: ='[2]Water Real AR'!E$87 & " - real - Water" -> Totex - real - Water | G87: £m | H87: =IF(I87 <> "", I87, J87) -> 78.4824133 | J87: ='[2]Water Real AR'!N$87 -> 78.4824133
D88: =InpC!$F$26 -> PR14 | E88: ='[2]Waste Real AR'!E$87 & " - real - Wastewater" -> Totex - real - Wastewater | G88: £m | H88: =IF(I88 <> "", I88, J88) -> 0 | J88: ='[2]Waste Real AR'!N$87 -> 0
D89: =InpC!$F$26 -> PR14 | E89: ='[2]Water Real AR'!$E$88 & " - real - Water" -> PAYG Totex - real - Water | G89: £m | H89: =IF(I89 <> "", I89, J89) -> 51.17210312 | J89: ='[2]Water Real AR'!$N$88 -> 51.17210312
D90: =InpC!$F$26 -> PR14 | E90: ='[2]Waste Real AR'!$E$88 & " - real - Wastewater" -> PAYG Totex - real - Wastewater | G90: £m | H90: =IF(I90 <> "", I90, J90) -> 0 | J90: ='[2]Waste Real AR'!$N$88 -> 0
D92: =InpC!$F$27 -> PR19 | E92: ='[1]Water Resources'!E$457 -> Totex - net of grants and contributions - WR (post sensi adj) - nominal | F92: ='[1]Water Resources'!F$457 -> 0 | G92: ='[1]Water Resources'!G$457 -> £m | H92: =IF(I92 <> "", I92, J92) -> 12.32212199 | J92: ='[1]Water Resources'!P$457 -> 12.32212199
D93: =InpC!$F$27 -> PR19 | E93: ='[1]Water Network'!E$457 -> Totex - net of grants and contributions - WN (post sensi adj) - nominal | F93: ='[1]Water Network'!F$457 -> 0 | G93: ='[1]Water Network'!G$457 -> £m | H93: 99.61253061 | J93: ='[1]Water Network'!P$457 -> 99.61253061
D94: =InpC!$F$27 -> PR19 | E94: ='[1]Wastewater Network'!E$457 -> Totex - net of grants and contributions - WWN (post sensi adj) - nominal | F94: ='[1]Wastewater Network'!F$457 -> 0 | G94: ='[1]Wastewater Network'!G$457 -> £m | H94: 0 | J94: ='[1]Wastewater Network'!$P$457 -> 0
D95: =InpC!$F$27 -> PR19 | E95: ='[1]Bio Resources'!E$457 -> Totex - net of grants and contributions - BR (post sensi adj) - nominal | F95: ='[1]Bio Resources'!F$457 -> 0 | G95: ='[1]Bio Resources'!G$457 -> £m | H95: 0 | J95: ='[1]Bio Resources'!$P$457 -> 0
D96: =InpC!$F$27 -> PR19 | E96: ='[1]Water Resources'!E$466 -> Water resources: PAYG Totex - nominal | F96: ='[1]Water Resources'!F$466 -> 0 | G96: ='[1]Water Resources'!G$466 -> £m | H96: 8.275312271 | J96: ='[1]Water Resources'!P$466 -> 8.275312271
D97: =InpC!$F$27 -> PR19 | E97: ='[1]Water Network'!E$466 -> Water network: PAYG Totex - nominal | F97: ='[1]Water Network'!F$466 -> 0 | G97: ='[1]Water Network'!G$466 -> £m | H97: 63.01018927 | J97: ='[1]Water Network'!P$466 -> 63.01018927
D98: =InpC!$F$27 -> PR19 | E98: ='[1]Wastewater Network'!E$466 -> Wastewater network: PAYG Totex - nominal | F98: ='[1]Wastewater Network'!F$466 -> 0 | G98: ='[1]Wastewater Network'!G$466 -> £m | H98: 0 | J98: ='[1]Wastewater Network'!P$466 -> 0
D99: =InpC!$F$27 -> PR19 | E99: ='[1]Bio Resources'!E$466 -> Bio resources: PAYG Totex - nominal | F99: ='[1]Bio Resources'!F$466 -> 0 | G99: ='[1]Bio Resources'!G$466 -> £m | H99: 0 | J99: ='[1]Bio Resources'!P$466 -> 0
D101: =InpC!$F$27 -> PR19 | E101: ='[1]Water Resources'!E465 -> PAYG% - water resources - active - WR | F101: ='[1]Water Resources'!F465 -> 0 | G101: ='[1]Water Resources'!G465 -> % | H101: =IF(I101 <> "", I101, J101) -> 0.6715817515 | J101: ='[1]Water Resources'!P465 -> 0.6715817515 | K101: only used for tracking
D102: =InpC!$F$27 -> PR19 | E102: ='[1]Water Network'!E465 -> PAYG% - water network - active - WN | F102: ='[1]Water Network'!F465 -> 0 | G102: ='[1]Water Network'!G465 -> % | H102: =IF(I102 <> "", I102, J102) -> 0.6325528413 | J102: ='[1]Water Network'!P465 -> 0.6325528413 | K102: only used for tracking
D103: =InpC!$F$27 -> PR19 | E103: ='[1]Wastewater Network'!E465 -> PAYG% - wastewater network - active - WWN | F103: ='[1]Wastewater Network'!F465 -> 0 | G103: ='[1]Wastewater Network'!G465 -> % | H103: =IF(I103 <> "", I103, J103) -> 0 | J103: ='[1]Wastewater Network'!P465 -> 0 | K103: only used for tracking
D104: =InpC!$F$27 -> PR19 | E104: ='[1]Bio Resources'!E465 -> PAYG% - bio resources - active - BR | F104: ='[1]Bio Resources'!F465 -> 0 | G104: ='[1]Bio Resources'!G465 -> % | H104: =IF(I104 <> "", I104, J104) -> 0 | J104: ='[1]Bio Resources'!P465 -> 0 | K104: only used for tracking
B106: RCV depreciation
C107: Water
D108: =InpC!$F$26 -> PR14 | E108: ='[2]Water Real AR'!$E$82 & " - real - water" -> RCV as at 2015 - real - water | G108: £m | H108: =IF(I108 <> "", I108, J108) -> 242.6362432 | J108: ='[2]Water Real AR'!$N$82 -> 242.6362432
D109: =InpC!$F$26 -> PR14 | E109: ='[2]Water Real AR'!E$83 & " - real - water" -> Depreciation of 2015 RCV - real - water | G109: £m | H109: =IF(I109 <> "", I109, J109) -> -13.4663115 | J109: ='[2]Water Real AR'!N$83 -> -13.4663115
D110: =InpC!$F$26 -> PR14 | E110: ='[2]Input Nominal'!E$171 & " - Water" -> RCV Additions: Average Asset Life (to 1dp) - Water | G110: years | H110: =IF(I110 <> "", I110, J110) -> 12.6 | J110: ='[2]Input Nominal'!H$171 -> 12.6
D111: =InpC!$F$26 -> PR14 | E111: ='[2]Water Real AR'!E$89 & " in year additions - real" -> Non-PAYG Totex in year additions - real | G111: £m | H111: =IF(I111 <> "", I111, J111) -> 27.31031018 | J111: ='[2]Water Real AR'!N$89 -> 27.31031018
D113: =InpC!$F$26 -> PR14 | E113: ='[2]Water Real AR'!E$93 & " - real" -> Non-PAYG Totex - real | G113: £m | H113: =IF(I113 <> "", I113, J113) -> 20.44397168 | J113: ='[2]Water Real AR'!$J$93 -> 20.44397168
D114: =InpC!$F$26 -> PR14 | E114: ='[2]Water Real AR'!E$93 & " - real" -> Non-PAYG Totex - real | G114: £m | H114: =IF(I114 <> "", I114, J114) -> 25.05064285 | J114: ='[2]Water Real AR'!$K$93 -> 25.05064285
D115: =InpC!$F$26 -> PR14 | E115: ='[2]Water Real AR'!E$93 & " - real" -> Non-PAYG Totex - real | G115: £m | H115: =IF(I115 <> "", I115, J115) -> 25.58579143 | J115: ='[2]Water Real AR'!$L$93 -> 25.58579143
D116: =InpC!$F$26 -> PR14 | E116: ='[2]Water Real AR'!E$93 & " - real" -> Non-PAYG Totex - real | G116: £m | H116: =IF(I116 <> "", I116, J116) -> 27.25817931 | J116: ='[2]Water Real AR'!$M$93 -> 27.25817931
D117: =InpC!$F$26 -> PR14 | E117: Non-PAYG Totex balance BEG - real | G117: £m | H117: =SUM(H113:H116) -> 98.33858527
C119: Wastewater
D120: =InpC!$F$26 -> PR14 | E120: ='[2]Waste Real AR'!$E$82 & " - real - Wastewater" -> RCV as at 2015 - real - Wastewater | G120: £m | H120: =IF(I120 <> "", I120, J120) -> 0 | J120: ='[2]Waste Real AR'!$N$82 -> 0
D121: =InpC!$F$26 -> PR14 | E121: ='[2]Waste Real AR'!E$83 & " - real - wastewater" -> Depreciation of 2015 RCV - real - wastewater | G121: £m | H121: =IF(I121 <> "", I121, J121) -> 0 | J121: ='[2]Waste Real AR'!N$83 -> 0
D122: =InpC!$F$26 -> PR14 | E122: ='[2]Input Nominal'!E$176 & " - Wastewater" -> RCV Additions: Average Asset Life (to 1dp) - Wastewater | G122: years | H122: =IF(I122 <> "", I122, J122) -> 0 | J122: ='[2]Input Nominal'!H$176 -> 0
D123: =InpC!$F$26 -> PR14 | E123: ='[2]Waste Real AR'!E$89 & " in year additions - real" -> Non-PAYG Totex in year additions - real | G123: £m | H123: =IF(I123 <> "", I123, J123) -> 0 | J123: ='[2]Waste Real AR'!N$89 -> 0
D125: =InpC!$F$26 -> PR14 | E125: ='[2]Waste Real AR'!E$93 & " - real" -> Non-PAYG Totex - real | G125: £m | H125: =IF(I125 <> "", I125, J125) -> 0 | J125: ='[2]Waste Real AR'!$J$93 -> 0
D126: =InpC!$F$26 -> PR14 | E126: ='[2]Waste Real AR'!E$93 & " - real" -> Non-PAYG Totex - real | G126: £m | H126: =IF(I126 <> "", I126, J126) -> 0 | J126: ='[2]Waste Real AR'!$K$93 -> 0
D127: =InpC!$F$26 -> PR14 | E127: ='[2]Waste Real AR'!E$93 & " - real" -> Non-PAYG Totex - real | G127: £m | H127: =IF(I127 <> "", I127, J127) -> 0 | J127: ='[2]Waste Real AR'!$L$93 -> 0
D128: =InpC!$F$26 -> PR14 | E128: ='[2]Waste Real AR'!E$93 & " - real" -> Non-PAYG Totex - real | G128: £m | H128: =IF(I128 <> "", I128, J128) -> 0 | J128: ='[2]Waste Real AR'!$M$93 -> 0
D129: =InpC!$F$26 -> PR14 | E129: Non-PAYG Totex balance BEG - real | G129: £m | H129: =SUM(H125:H128) -> 0
C131: Water resources
D132: =InpC!$F$27 -> PR19 | E132: ='[1]Water Resources'!E$808 -> RCV CPI(H) bf balance BEG - WR - nominal | F132: ='[1]Water Resources'!F$808 -> 0 | G132: ='[1]Water Resources'!G$808 -> £m | H132: =IF(I132 <> "", I132, J132) -> 4.062896999 | J132: ='[1]Water Resources'!P$808 -> 4.062896999
D133: =InpC!$F$27 -> PR19 | E133: ='[1]Water Resources'!E$809 -> Indexation on RCV - CPI(H) bf balance - WR - nominal | F133: ='[1]Water Resources'!F$809 -> 0 | G133: ='[1]Water Resources'!G$809 -> £m | H133: 0.08125793998 | J133: ='[1]Water Resources'!P$809 -> 0.08125793998
D134: =InpC!$F$27 -> PR19 | E134: ='[1]Water Resources'!E$810 -> RCV - CPI(H) bf depreciation - WR - nominal | F134: ='[1]Water Resources'!F$810 -> 0 | G134: ='[1]Water Resources'!G$810 -> £m | H134: 0.7734179236 | J134: ='[1]Water Resources'!P$810 -> 0.7734179236
D135: =InpC!$F$27 -> PR19 | E135: ='[1]Water Resources'!E$957 -> RCV CPI(H) + RPI wedge bf balance BEG - WR - nominal | F135: ='[1]Water Resources'!F$957 -> 0 | G135: ='[1]Water Resources'!G$957 -> £m | H135: 4.314881829 | J135: ='[1]Water Resources'!P$957 -> 4.314881829
D136: =InpC!$F$27 -> PR19 | E136: ='[1]Water Resources'!E$958 -> Indexation on RCV - CPI(H) + RPI wedge bf balance - WR - nominal | F136: ='[1]Water Resources'!F$958 -> 0 | G136: ='[1]Water Resources'!G$958 -> £m | H136: 0.1294464549 | J136: ='[1]Water Resources'!P$958 -> 0.1294464549
D137: =InpC!$F$27 -> PR19 | E137: ='[1]Water Resources'!E$959 -> RCV - CPI(H) + RPI wedge bf depreciation - WR - nominal | F137: ='[1]Water Resources'!F$959 -> 0 | G137: ='[1]Water Resources'!G$959 -> £m | H137: 0.7732624196 | J137: ='[1]Water Resources'!P$959 -> 0.7732624196
D139: =InpC!$F$27 -> PR19 | E139: ='[1]Water Resources'!E$1029 & " - RCV additions depreciation" -> Post 2020 investment run off rate - Method used to apply run off rate (straight line or reducing balance) ~ water resources - RCV additions depreciation | F139: ='[1]Water Resources'!F$1029 -> reducing balance | G139: ='[1]Water Resources'!G$1029 -> switch | H139: for info
D140: =InpC!$F$27 -> PR19 | E140: ='[1]Water Resources'!E$1019 & " - WR" -> Proportion of capex that is subject to depreciation in year of acquisition - RCV - WR | G140: ='[1]Water Resources'!G$1019 -> % | H140: =IF(I140 <> "", I140, J140) -> 0.5 | J140: ='[1]Water Resources'!F$1019 -> 0.5
D141: =InpC!$F$27 -> PR19 | E141: ='[1]Water Resources'!E$1042 -> RCV additions balance BEG - WR - nominal | F141: ='[1]Water Resources'!F$1042 -> 0 | G141: ='[1]Water Resources'!G$1042 -> £m | H141: =IF(I141 <> "", I141, J141) -> 13.90528492 | J141: ='[1]Water Resources'!P$1042 -> 13.90528492
D142: =InpC!$F$27 -> PR19 | E142: ='[1]Water Resources'!E$1014 -> Indexation of RCV additions b/f - WR - nominal | F142: ='[1]Water Resources'!F$1014 -> 0 | G142: ='[1]Water Resources'!G$1014 -> £m | H142: =IF(I142 <> "", I142, J142) -> 0.2781056984 | J142: ='[1]Water Resources'!P$1014 -> 0.2781056984
D143: =InpC!$F$27 -> PR19 | E143: ='[1]Water Resources'!E$1020 -> Water resources: Non-PAYG Totex - nominal | F143: ='[1]Water Resources'!F$1020 -> 0 | G143: ='[1]Water Resources'!G$1020 -> £m | H143: =IF(I143 <> "", I143, J143) -> 4.046809723 | J143: ='[1]Water Resources'!P$1020 -> 4.046809723
D145: =InpC!$F$27 -> PR19 | E145: =[1]InpActive!E$268 -> Run-off rate - CPI(H) - active - WR | F145: =[1]InpActive!F$268 -> 0 | G145: =[1]InpActive!G$268 -> % | H145: =IF(I145 <> "", I145, J145) -> 0.1866286215 | J145: =[1]InpActive!P$268 -> 0.1866286215 | K145: only used for tracking
D146: =InpC!$F$27 -> PR19 | E146: =[1]InpActive!E$269 -> Run-off rate - CPI(H) + RPI wedge - active - WR | F146: =[1]InpActive!F$269 -> 0 | G146: =[1]InpActive!G$269 -> % | H146: =IF(I146 <> "", I146, J146) -> 0.1739885918 | J146: =[1]InpActive!P$269 -> 0.1739885918 | K146: only used for tracking
D147: =InpC!$F$27 -> PR19 | E147: =[1]InpActive!E$270 -> Run-off rate - RCV additions - active - WR | F147: =[1]InpActive!F$270 -> 0 | G147: =[1]InpActive!G$270 -> % | H147: =IF(I147 <> "", I147, J147) -> 0.04878384209 | J147: =[1]InpActive!P$270 -> 0.04878384209 | K147: only used for tracking
C149: Water network
D150: =InpC!$F$27 -> PR19 | E150: ='[1]Water Network'!E$808 -> RCV CPI(H) bf balance BEG - WN - nominal | F150: ='[1]Water Network'!F$808 -> 0 | G150: ='[1]Water Network'!G$808 -> £m | H150: =IF(I150 <> "", I150, J150) -> 162.4141572 | J150: ='[1]Water Network'!P$808 -> 162.4141572
D151: =InpC!$F$27 -> PR19 | E151: ='[1]Water Network'!E$809 -> Indexation on RCV - CPI(H) bf balance - WN - nominal | F151: ='[1]Water Network'!F$809 -> 0 | G151: ='[1]Water Network'!G$809 -> £m | H151: 3.248283144 | J151: ='[1]Water Network'!P$809 -> 3.248283144
D152: =InpC!$F$27 -> PR19 | E152: ='[1]Water Network'!E$810 -> RCV - CPI(H) bf depreciation - WN - nominal | F152: ='[1]Water Network'!F$810 -> 0 | G152: ='[1]Water Network'!G$810 -> £m | H152: 9.078301731 | J152: ='[1]Water Network'!P$810 -> 9.078301731
D153: =InpC!$F$27 -> PR19 | E153: ='[1]Water Network'!E$957 -> RCV CPI(H) + RPI wedge bf balance BEG - WN - nominal | F153: ='[1]Water Network'!F$957 -> 0 | G153: ='[1]Water Network'!G$957 -> £m | H153: 151.7678464 | J153: ='[1]Water Network'!P$957 -> 151.7678464
D154: =InpC!$F$27 -> PR19 | E154: ='[1]Water Network'!E$958 -> Indexation on RCV - CPI(H) + RPI wedge bf balance - WN - nominal | F154: ='[1]Water Network'!F$958 -> 0 | G154: ='[1]Water Network'!G$958 -> £m | H154: 4.553035392 | J154: ='[1]Water Network'!P$958 -> 4.553035392
D155: =InpC!$F$27 -> PR19 | E155: ='[1]Water Network'!E$959 -> RCV - CPI(H) + RPI wedge bf depreciation - WN - nominal | F155: ='[1]Water Network'!F$959 -> 0 | G155: ='[1]Water Network'!G$959 -> £m | H155: 12.19302878 | J155: ='[1]Water Network'!P$959 -> 12.19302878
D157: =InpC!$F$27 -> PR19 | E157: ='[1]Water Network'!E$1029 & " - RCV additions depreciation" -> RCV run off rate ~ CPI/CPI(H) linked RCV - Method used to apply run off rate (straight line or reducing balance) ~ water network plus CPI(H) linked - RCV additions depreciation | F157: ='[1]Water Network'!F$1029 -> reducing balance | G157: ='[1]Water Network'!G$1029 -> switch | H157: for info
D158: =InpC!$F$27 -> PR19 | E158: ='[1]Water Network'!E$1019 & " - WN" -> Proportion of capex that is subject to depreciation in year of acquisition - RCV - WN | G158: ='[1]Water Network'!G$1019 -> % | H158: =IF(I158 <> "", I158, J158) -> 0.5 | J158: ='[1]Water Network'!F$1019 -> 0.5
D159: =InpC!$F$27 -> PR19 | E159: ='[1]Water Network'!E$1042 -> RCV additions balance BEG - WN - nominal | F159: ='[1]Water Network'!F$1042 -> 0 | G159: ='[1]Water Network'!G$1042 -> £m | H159: =IF(I159 <> "", I159, J159) -> 160.8844727 | J159: ='[1]Water Network'!P$1042 -> 160.8844727
D160: =InpC!$F$27 -> PR19 | E160: ='[1]Water Network'!E$1014 -> Indexation of RCV additions b/f - WN - nominal | F160: ='[1]Water Network'!F$1014 -> 0 | G160: ='[1]Water Network'!G$1014 -> £m | H160: =IF(I160 <> "", I160, J160) -> 3.217689453 | J160: ='[1]Water Network'!P$1014 -> 3.217689453
D161: =InpC!$F$27 -> PR19 | E161: ='[1]Water Network'!E$1020 -> Water network: Non-PAYG Totex - nominal | F161: ='[1]Water Network'!F$1020 -> 0 | G161: ='[1]Water Network'!G$1020 -> £m | H161: =IF(I161 <> "", I161, J161) -> 36.60234134 | J161: ='[1]Water Network'!P$1020 -> 36.60234134
D163: =InpC!$F$27 -> PR19 | E163: =[1]InpActive!E$472 -> Run-off rate - CPI(H) - active - WN | F163: =[1]InpActive!F$472 -> 0 | G163: =[1]InpActive!G$472 -> % | H163: =IF(I163 <> "", I163, J163) -> 0.0548 | J163: =[1]InpActive!P$472 -> 0.0548
D164: =InpC!$F$27 -> PR19 | E164: =[1]InpActive!E$473 -> Run-off rate - CPI(H) + RPI wedge - active - WN | F164: =[1]InpActive!F$473 -> 0 | G164: =[1]InpActive!G$473 -> % | H164: =IF(I164 <> "", I164, J164) -> 0.078 | J164: =[1]InpActive!P$473 -> 0.078
D165: =InpC!$F$27 -> PR19 | E165: =[1]InpActive!E$474 -> Run-off rate - RCV additions - active - WN | F165: =[1]InpActive!F$474 -> 0 | G165: =[1]InpActive!G$474 -> % | H165: =IF(I165 <> "", I165, J165) -> 0.0548 | J165: =[1]InpActive!P$474 -> 0.0548
C167: Wastewater network
D168: =InpC!$F$27 -> PR19 | E168: ='[1]Wastewater Network'!E$808 -> RCV CPI(H) bf balance BEG - WWN - nominal | F168: ='[1]Wastewater Network'!F$808 -> 0 | G168: ='[1]Wastewater Network'!G$808 -> £m | H168: =IF(I168 <> "", I168, J168) -> 0 | J168: ='[1]Wastewater Network'!P$808 -> 0
D169: =InpC!$F$27 -> PR19 | E169: ='[1]Wastewater Network'!E$809 -> Indexation on RCV - CPI(H) bf balance - WWN - nominal | F169: ='[1]Wastewater Network'!F$809 -> 0 | G169: ='[1]Wastewater Network'!G$809 -> £m | H169: 0 | J169: ='[1]Wastewater Network'!P$809 -> 0
D170: =InpC!$F$27 -> PR19 | E170: ='[1]Wastewater Network'!E$810 -> RCV - CPI(H) bf depreciation - WWN - nominal | F170: ='[1]Wastewater Network'!F$810 -> 0 | G170: ='[1]Wastewater Network'!G$810 -> £m | H170: 0 | J170: ='[1]Wastewater Network'!P$810 -> 0
D171: =InpC!$F$27 -> PR19 | E171: ='[1]Wastewater Network'!E$957 -> RCV CPI(H) + RPI wedge bf balance BEG - WWN - nominal | F171: ='[1]Wastewater Network'!F$957 -> 0 | G171: ='[1]Wastewater Network'!G$957 -> £m | H171: 0 | J171: ='[1]Wastewater Network'!P$957 -> 0
D172: =InpC!$F$27 -> PR19 | E172: ='[1]Wastewater Network'!E$958 -> Indexation on RCV - CPI(H) + RPI wedge bf balance - WWN - nominal | F172: ='[1]Wastewater Network'!F$958 -> 0 | G172: ='[1]Wastewater Network'!G$958 -> £m | H172: 0 | J172: ='[1]Wastewater Network'!P$958 -> 0
D173: =InpC!$F$27 -> PR19 | E173: ='[1]Wastewater Network'!E$959 -> RCV - CPI(H) + RPI wedge bf depreciation - WWN - nominal | F173: ='[1]Wastewater Network'!F$959 -> 0 | G173: ='[1]Wastewater Network'!G$959 -> £m | H173: 0 | J173: ='[1]Wastewater Network'!P$959 -> 0
D175: =InpC!$F$27 -> PR19 | E175: ='[1]Wastewater Network'!E$1029 & " - RCV additions depreciation" -> RCV run off rate ~ CPI/CPI(H) linked RCV - Method used to apply run off rate (straight line or reducing balance) ~ wastewater network plus CPI(H) linked - RCV additions depreciation | F175: ='[1]Wastewater Network'!F$1029 -> 0 | G175: ='[1]Wastewater Network'!G$1029 -> switch | H175: for info
D176: =InpC!$F$27 -> PR19 | E176: ='[1]Wastewater Network'!E$1019 & " - WWN" -> Proportion of capex that is subject to depreciation in year of acquisition - RCV - WWN | G176: ='[1]Wastewater Network'!G$1019 -> % | H176: =IF(I176 <> "", I176, J176) -> 0.5 | J176: ='[1]Wastewater Network'!F$1019 -> 0.5
D177: =InpC!$F$27 -> PR19 | E177: ='[1]Wastewater Network'!E$1042 -> RCV additions balance BEG - WWN - nominal | F177: ='[1]Wastewater Network'!F$1042 -> 0 | G177: ='[1]Wastewater Network'!G$1042 -> £m | H177: =IF(I177 <> "", I177, J177) -> 0 | J177: ='[1]Wastewater Network'!P$1042 -> 0
D178: =InpC!$F$27 -> PR19 | E178: ='[1]Wastewater Network'!E$1014 -> Indexation of RCV additions b/f - WWN - nominal | F178: ='[1]Wastewater Network'!F$1014 -> 0 | G178: ='[1]Wastewater Network'!G$1014 -> £m | H178: =IF(I178 <> "", I178, J178) -> 0 | J178: ='[1]Wastewater Network'!P$1014 -> 0
D179: =InpC!$F$27 -> PR19 | E179: ='[1]Wastewater Network'!E$1020 -> Wastewater network: Non-PAYG Totex - nominal | F179: ='[1]Wastewater Network'!F$1020 -> 0 | G179: ='[1]Wastewater Network'!G$1020 -> £m | H179: =IF(I179 <> "", I179, J179) -> 0 | J179: ='[1]Wastewater Network'!P$1020 -> 0
D181: =InpC!$F$27 -> PR19 | E181: =[1]InpActive!E$675 -> Run-off rate - CPI(H) - active - WWN | F181: =[1]InpActive!F$675 -> 0 | G181: =[1]InpActive!G$675 -> % | H181: =IF(I181 <> "", I181, J181) -> 0 | J181: =[1]InpActive!P$675 -> 0
D182: =InpC!$F$27 -> PR19 | E182: =[1]InpActive!E$676 -> Run-off rate - CPI(H) + RPI wedge - active - WWN | F182: =[1]InpActive!F$676 -> 0 | G182: =[1]InpActive!G$676 -> % | H182: =IF(I182 <> "", I182, J182) -> 0 | J182: =[1]InpActive!P$676 -> 0
D183: =InpC!$F$27 -> PR19 | E183: =[1]InpActive!E$677 -> Run-off rate - RCV additions - active - WWN | F183: =[1]InpActive!F$677 -> 0 | G183: =[1]InpActive!G$677 -> % | H183: =IF(I183 <> "", I183, J183) -> 0 | J183: =[1]InpActive!P$677 -> 0
C185: Bio resources
D186: =InpC!$F$27 -> PR19 | E186: ='[1]Bio Resources'!E$808 -> RCV CPI(H) bf balance BEG - BR - nominal | F186: ='[1]Bio Resources'!F$808 -> 0 | G186: ='[1]Bio Resources'!G$808 -> £m | H186: =IF(I186 <> "", I186, J186) -> 0 | J186: ='[1]Bio Resources'!P$808 -> 0
D187: =InpC!$F$27 -> PR19 | E187: ='[1]Bio Resources'!E$809 -> Indexation on RCV - CPI(H) bf balance - BR - nominal | F187: ='[1]Bio Resources'!F$809 -> 0 | G187: ='[1]Bio Resources'!G$809 -> £m | H187: 0 | J187: ='[1]Bio Resources'!P$809 -> 0
D188: =InpC!$F$27 -> PR19 | E188: ='[1]Bio Resources'!E$810 -> RCV - CPI(H) bf depreciation - BR - nominal | F188: ='[1]Bio Resources'!F$810 -> 0 | G188: ='[1]Bio Resources'!G$810 -> £m | H188: 0 | J188: ='[1]Bio Resources'!P$810 -> 0
D189: =InpC!$F$27 -> PR19 | E189: ='[1]Bio Resources'!E$957 -> RCV CPI(H) + RPI wedge bf balance BEG - BR - nominal | F189: ='[1]Bio Resources'!F$957 -> 0 | G189: ='[1]Bio Resources'!G$957 -> £m | H189: 0 | J189: ='[1]Bio Resources'!P$957 -> 0
D190: =InpC!$F$27 -> PR19 | E190: ='[1]Bio Resources'!E$958 -> Indexation on RCV - CPI(H) + RPI wedge bf balance - BR - nominal | F190: ='[1]Bio Resources'!F$958 -> 0 | G190: ='[1]Bio Resources'!G$958 -> £m | H190: 0 | J190: ='[1]Bio Resources'!P$958 -> 0
D191: =InpC!$F$27 -> PR19 | E191: ='[1]Bio Resources'!E$959 -> RCV - CPI(H) + RPI wedge bf depreciation - BR - nominal | F191: ='[1]Bio Resources'!F$959 -> 0 | G191: ='[1]Bio Resources'!G$959 -> £m | H191: 0 | J191: ='[1]Bio Resources'!P$959 -> 0
D193: =InpC!$F$27 -> PR19 | E193: ='[1]Bio Resources'!E$1029 & " - RCV additions depreciation" -> Post 2020 investment run off rate - Method used to apply run off rate (straight line or reducing balance) ~ bioresources - RCV additions depreciation | F193: ='[1]Bio Resources'!F$1029 -> 0 | G193: ='[1]Bio Resources'!G$1029 -> switch | H193: for info
D194: =InpC!$F$27 -> PR19 | E194: ='[1]Bio Resources'!E$1019 & " - BR" -> Proportion of capex that is subject to depreciation in year of acquisition - RCV - BR | G194: ='[1]Bio Resources'!G$1019 -> % | H194: =IF(I194 <> "", I194, J194) -> 0.5 | J194: ='[1]Bio Resources'!F$1019 -> 0.5
D195: =InpC!$F$27 -> PR19 | E195: ='[1]Bio Resources'!E$1042 -> RCV additions balance BEG - BR - nominal | F195: ='[1]Bio Resources'!F$1042 -> 0 | G195: ='[1]Bio Resources'!G$1042 -> £m | H195: =IF(I195 <> "", I195, J195) -> 0 | J195: ='[1]Bio Resources'!P$1042 -> 0
D196: =InpC!$F$27 -> PR19 | E196: ='[1]Bio Resources'!E$1014 -> Indexation of RCV additions b/f - BR - nominal | F196: ='[1]Bio Resources'!F$1014 -> 0 | G196: ='[1]Bio Resources'!G$1014 -> £m | H196: =IF(I196 <> "", I196, J196) -> 0 | J196: ='[1]Bio Resources'!P$1014 -> 0
D197: =InpC!$F$27 -> PR19 | E197: ='[1]Bio Resources'!E$1020 -> Bio resources: Non-PAYG Totex - nominal | F197: ='[1]Bio Resources'!F$1020 -> 0 | G197: ='[1]Bio Resources'!G$1020 -> £m | H197: =IF(I197 <> "", I197, J197) -> 0 | J197: ='[1]Bio Resources'!P$1020 -> 0
D199: =InpC!$F$27 -> PR19 | E199: =[1]InpActive!E$871 -> Run-off rate - CPI(H) - active - BR | F199: =[1]InpActive!F$871 -> 0 | G199: =[1]InpActive!G$871 -> % | H199: =IF(I199 <> "", I199, J199) -> 0 | J199: =[1]InpActive!P$871 -> 0
D200: =InpC!$F$27 -> PR19 | E200: =[1]InpActive!E$872 -> Run-off rate - CPI(H) + RPI wedge - active - BR | F200: =[1]InpActive!F$872 -> 0 | G200: =[1]InpActive!G$872 -> % | H200: =IF(I200 <> "", I200, J200) -> 0 | J200: =[1]InpActive!P$872 -> 0
D201: =InpC!$F$27 -> PR19 | E201: =[1]InpActive!E$873 -> Run-off rate - RCV additions - active - BR | F201: =[1]InpActive!F$873 -> 0 | G201: =[1]InpActive!G$873 -> % | H201: =IF(I201 <> "", I201, J201) -> 0 | J201: =[1]InpActive!P$873 -> 0
B203: Return on RCV
C204: Water
D205: =InpC!$F$26 -> PR14 | E205: ='[2]Water Real AR'!E$107 & " - real - water" -> Average 2015 RCV - real - water | G205: £m | H205: =IF(I205 <> "", I205, J205) -> 235.9030874 | J205: ='[2]Water Real AR'!N$107 -> 235.9030874
D206: =InpC!$F$26 -> PR14 | E206: ='[2]Water Real AR'!E$112 & " - real - water" -> Return on 2015 RCV Bf - real - water | G206: £m | H206: =IF(I206 <> "", I206, J206) -> 8.492511147 | J206: ='[2]Water Real AR'!N$112 -> 8.492511147
D208: =InpC!$F$26 -> PR14 | E208: ='[2]Water Real AR'!E$108 & " - real - water" -> Average RCV; post 2015 additions - real - water | G208: £m | H208: =IF(I208 <> "", I208, J208) -> 92.77269631 | J208: ='[2]Water Real AR'!N$108 -> 92.77269631
D209: =InpC!$F$26 -> PR14 | E209: ='[2]Water Real AR'!E$113 & " - real - water" -> Return on RCV Additions - real - water | G209: £m | H209: =IF(I209 <> "", I209, J209) -> 3.339817067 | J209: ='[2]Water Real AR'!N$113 -> 3.339817067
C211: Wastewater
D212: =InpC!$F$26 -> PR14 | E212: ='[2]Waste Real AR'!E$107 & " - real - Wastewater" -> Average 2015 RCV - real - Wastewater | G212: £m | H212: =IF(I212 <> "", I212, J212) -> 0 | J212: ='[2]Waste Real AR'!N$107 -> 0
D213: =InpC!$F$26 -> PR14 | E213: ='[2]Waste Real AR'!E$112 & " - real - Wastewater" -> Return on 2015 RCV Bf - real - Wastewater | G213: £m | H213: =IF(I213 <> "", I213, J213) -> 0 | J213: ='[2]Waste Real AR'!N$112 -> 0
D215: =InpC!$F$26 -> PR14 | E215: ='[2]Waste Real AR'!E$108 & " - real - Wastewater" -> Average RCV; post 2015 additions - real - Wastewater | G215: £m | H215: =IF(I215 <> "", I215, J215) -> 0 | J215: ='[2]Waste Real AR'!N$108 -> 0
D216: =InpC!$F$26 -> PR14 | E216: ='[2]Waste Real AR'!E$113 & " - real - Wastewater" -> Return on RCV Additions - real - Wastewater | G216: £m | H216: =IF(I216 <> "", I216, J216) -> 0 | J216: ='[2]Waste Real AR'!N$113 -> 0
C218: Water resources
D219: =InpC!$F$27 -> PR19 | E219: ='[1]Water Resources'!E$859 -> Average of RCV - CPI(H) bf - WR - nominal | F219: ='[1]Water Resources'!F$859 -> 0 | G219: ='[1]Water Resources'!G$859 -> £m | H219: =IF(I219 <> "", I219, J219) -> 3.757445977 | J219: ='[1]Water Resources'!P$859 -> 3.757445977
D220: =InpC!$F$27 -> PR19 | E220: ='[1]Water Resources'!E$852 -> WACC real on RCV - CPI(H) bf and additions - WR | F220: ='[1]Water Resources'!F$852 -> 0 | G220: ='[1]Water Resources'!G$852 -> % | H220: =IF(I220 <> "", I220, J220) -> 0.03305686275 | J220: ='[1]Water Resources'!P$852 -> 0.03305686275 | K220: only used for tracking
D221: =InpC!$F$27 -> PR19 | E221: ='[1]Water Resources'!E$863 -> Return on RCV - CPI(H) bf - WR - nominal | F221: ='[1]Water Resources'!F$863 -> 0 | G221: ='[1]Water Resources'!G$863 -> £m | H221: =IF(I221 <> "", I221, J221) -> 0.1242093759 | J221: ='[1]Water Resources'!P$863 -> 0.1242093759
D223: =InpC!$F$27 -> PR19 | E223: ='[1]Water Resources'!E$979 -> Average of RCV - CPI(H) + RPI wedge bf - WR - nominal | F223: ='[1]Water Resources'!F$979 -> 0 | G223: ='[1]Water Resources'!G$979 -> £m | H223: =IF(I223 <> "", I223, J223) -> 4.057697074 | J223: ='[1]Water Resources'!P$979 -> 4.057697074
D224: =InpC!$F$27 -> PR19 | E224: ='[1]Water Resources'!E$972 -> WACC on RCV - CPI(H) + RPI wedge bf and additions - WR | F224: ='[1]Water Resources'!F$972 -> 0 | G224: ='[1]Water Resources'!G$972 -> % | H224: =IF(I224 <> "", I224, J224) -> 0.02302718447 | J224: ='[1]Water Resources'!P$972 -> 0.02302718447 | K224: only used for tracking
D225: =InpC!$F$27 -> PR19 | E225: ='[1]Water Resources'!E$983 -> Return on RCV - CPI(H) + RPI wedge bf - WR - nominal | F225: ='[1]Water Resources'!F$983 -> 0 | G225: ='[1]Water Resources'!G$983 -> £m | H225: =IF(I225 <> "", I225, J225) -> 0.09343733904 | J225: ='[1]Water Resources'!P$983 -> 0.09343733904
D227: =InpC!$F$27 -> PR19 | E227: ='[1]Water Resources'!E$1112 -> Average of RCV post 2020 additions - WR - nominal | F227: ='[1]Water Resources'!F$1112 -> 0 | G227: ='[1]Water Resources'!G$1112 -> £m | H227: =IF(I227 <> "", I227, J227) -> 15.81148061 | J227: ='[1]Water Resources'!P$1112 -> 15.81148061
D228: =InpC!$F$27 -> PR19 | E228: =E220 -> WACC real on RCV - CPI(H) bf and additions - WR | F228: =F220 -> 0 | G228: =G220 -> % | H228: =IF(I228 <> "", I228, J228) -> 0.03305686275 | J228: =J220 -> 0.03305686275
D229: =InpC!$F$27 -> PR19 | E229: ='[1]Water Resources'!E$1116 -> Return on RCV additions - WR - nominal | F229: ='[1]Water Resources'!F$1116 -> 0 | G229: ='[1]Water Resources'!G$1116 -> £m | H229: =IF(I229 <> "", I229, J229) -> 0.5226779442 | J229: ='[1]Water Resources'!P$1116 -> 0.5226779442
D231: =InpC!$F$27 -> PR19 | E231: ='[1]Water Resources'!E$870 -> Average of RCV - CPI(H) other adjustments balance - WR - nominal | F231: ='[1]Water Resources'!F$870 -> 0 | G231: ='[1]Water Resources'!G$870 -> £m | H231: =IF(I231 <> "", I231, J231) -> 0 | J231: ='[1]Water Resources'!P$870 -> 0 | K231: Non-depreciated adjustment to RCV
D232: =InpC!$F$27 -> PR19 | E232: =E224 -> WACC on RCV - CPI(H) + RPI wedge bf and additions - WR | F232: =F224 -> 0 | G232: =G224 -> % | H232: =IF(I232 <> "", I232, J232) -> 0.02302718447 | J232: =J224 -> 0.02302718447
D233: =InpC!$F$27 -> PR19 | E233: ='[1]Water Resources'!E$874 -> Return on RCV - CPI(H) other adjustments - WR - nominal | F233: ='[1]Water Resources'!F$874 -> 0 | G233: ='[1]Water Resources'!G$874 -> 0 | H233: =IF(I233 <> "", I233, J233) -> 0 | J233: ='[1]Water Resources'!P$874 -> 0
C235: Water network
D236: =InpC!$F$27 -> PR19 | E236: ='[1]Water Network'!E$859 -> Average of RCV - CPI(H) bf - WN - nominal | F236: ='[1]Water Network'!F$859 -> 0 | G236: ='[1]Water Network'!G$859 -> £m | H236: =IF(I236 <> "", I236, J236) -> 161.1232895 | J236: ='[1]Water Network'!P$859 -> 161.1232895
D237: =InpC!$F$27 -> PR19 | E237: ='[1]Water Network'!E$852 -> WACC real on RCV - CPI(H) bf and additions - WN | F237: ='[1]Water Network'!F$852 -> 0 | G237: ='[1]Water Network'!G$852 -> % | H237: =IF(I237 <> "", I237, J237) -> 0.03305686275 | J237: ='[1]Water Network'!P$852 -> 0.03305686275 | K237: only used for tracking
D238: =InpC!$F$27 -> PR19 | E238: ='[1]Water Network'!E$863 -> Return on RCV - CPI(H) bf - WN - nominal | F238: ='[1]Water Network'!F$863 -> 0 | G238: ='[1]Water Network'!G$863 -> £m | H238: =IF(I238 <> "", I238, J238) -> 5.326230465 | J238: ='[1]Water Network'!P$863 -> 5.326230465
D240: =InpC!$F$27 -> PR19 | E240: ='[1]Water Network'!E$979 -> Average of RCV - CPI(H) + RPI wedge bf - WN - nominal | F240: ='[1]Water Network'!F$979 -> 0 | G240: ='[1]Water Network'!G$979 -> £m | H240: =IF(I240 <> "", I240, J240) -> 150.2243674 | J240: ='[1]Water Network'!P$979 -> 150.2243674
D241: =InpC!$F$27 -> PR19 | E241: ='[1]Water Network'!E$972 -> WACC on RCV - CPI(H) + RPI wedge bf and additions - WN | F241: ='[1]Water Network'!F$972 -> 0 | G241: ='[1]Water Network'!G$972 -> % | H241: =IF(I241 <> "", I241, J241) -> 0.02302718447 | J241: ='[1]Water Network'!P$972 -> 0.02302718447 | K241: only used for tracking
D242: =InpC!$F$27 -> PR19 | E242: ='[1]Water Network'!E$983 -> Return on RCV - CPI(H) + RPI wedge bf - WN - nominal | F242: ='[1]Water Network'!F$983 -> 0 | G242: ='[1]Water Network'!G$983 -> £m | H242: =IF(I242 <> "", I242, J242) -> 3.459244219 | J242: ='[1]Water Network'!P$983 -> 3.459244219
D244: =InpC!$F$27 -> PR19 | E244: ='[1]Water Network'!E$1112 -> Average of RCV post 2020 additions - WN - nominal | F244: ='[1]Water Network'!F$1112 -> 0 | G244: ='[1]Water Network'!G$1112 -> £m | H244: =IF(I244 <> "", I244, J244) -> 177.4054815 | J244: ='[1]Water Network'!P$1112 -> 177.4054815
D245: =InpC!$F$27 -> PR19 | E245: =E237 -> WACC real on RCV - CPI(H) bf and additions - WN | F245: =F237 -> 0 | G245: =G237 -> % | H245: =IF(I245 <> "", I245, J245) -> 0.03305686275 | J245: =J237 -> 0.03305686275
D246: =InpC!$F$27 -> PR19 | E246: ='[1]Water Network'!E$1116 -> Return on RCV additions - WN - nominal | F246: ='[1]Water Network'!F$1116 -> 0 | G246: ='[1]Water Network'!G$1116 -> £m | H246: =IF(I246 <> "", I246, J246) -> 5.864468651 | J246: ='[1]Water Network'!P$1116 -> 5.864468651
D248: =InpC!$F$27 -> PR19 | E248: ='[1]Water Network'!E$870 -> Average of RCV - CPI(H) other adjustments balance - WN - nominal | F248: ='[1]Water Network'!F$870 -> 0 | G248: ='[1]Water Network'!G$870 -> £m | H248: =IF(I248 <> "", I248, J248) -> 0 | J248: ='[1]Water Network'!P$870 -> 0 | K248: Non-depreciated adjustment to RCV
D249: =InpC!$F$27 -> PR19 | E249: =E241 -> WACC on RCV - CPI(H) + RPI wedge bf and additions - WN | F249: =F241 -> 0 | G249: =G241 -> % | H249: =IF(I249 <> "", I249, J249) -> 0.02302718447 | J249: =J241 -> 0.02302718447
D250: =InpC!$F$27 -> PR19 | E250: ='[1]Water Network'!E$874 -> Return on RCV - CPI(H) other adjustments - WN - nominal | F250: ='[1]Water Network'!F$874 -> 0 | G250: ='[1]Water Network'!G$874 -> £m | H250: =IF(I250 <> "", I250, J250) -> 0 | J250: ='[1]Water Network'!P$874 -> 0
C252: Wastewater network
D253: =InpC!$F$27 -> PR19 | E253: ='[1]Wastewater Network'!E$859 -> Average of RCV - CPI(H) bf - WWN - nominal | F253: ='[1]Wastewater Network'!F$859 -> 0 | G253: ='[1]Wastewater Network'!G$859 -> £m | H253: =IF(I253 <> "", I253, J253) -> 0 | J253: ='[1]Wastewater Network'!P$859 -> 0
D254: =InpC!$F$27 -> PR19 | E254: ='[1]Wastewater Network'!E$852 -> WACC real on RCV - CPI(H) bf and additions - WWN | F254: ='[1]Wastewater Network'!F$852 -> 0 | G254: ='[1]Wastewater Network'!G$852 -> % | H254: =IF(I254 <> "", I254, J254) -> -0.01960784314 | J254: ='[1]Wastewater Network'!P$852 -> -0.01960784314 | K254: only used for tracking
D255: =InpC!$F$27 -> PR19 | E255: ='[1]Wastewater Network'!E$863 -> Return on RCV - CPI(H) bf - WWN - nominal | F255: ='[1]Wastewater Network'!F$863 -> 0 | G255: ='[1]Wastewater Network'!G$863 -> £m | H255: =IF(I255 <> "", I255, J255) -> 0 | J255: ='[1]Wastewater Network'!P$863 -> 0
D257: =InpC!$F$27 -> PR19 | E257: ='[1]Wastewater Network'!E$979 -> Average of RCV - CPI(H) + RPI wedge bf - WWN - nominal | F257: ='[1]Wastewater Network'!F$979 -> 0 | G257: ='[1]Wastewater Network'!G$979 -> £m | H257: =IF(I257 <> "", I257, J257) -> 0 | J257: ='[1]Wastewater Network'!P$979 -> 0
... 98 more rows

Sheet Calcs >>

Sheet RCV
A1: =RIGHT(CELL("filename", $A$1), LEN(CELL("filename", $A$1)) - SEARCH("]", CELL("filename", $A$1))) -> RCV | F1: =Check!F2 -> -3 | G1: Error chks
F2: =Check!F3 -> 62 | G2: Track checks
F5: Constant | G5: Unit | H5: Value | J5: Note
A7: WHOLESALE: Change in bill due to change in RCV DEPRECIATION
B9: This section calculates the components causing the change in RCV depreciation
B10: Water
C12: =InpC!$F$26 -> PR14
D13: =InpC!D$55 -> PR14 | E13: =InpC!E$55 -> Adjustment from 2012/13 year average RPI to 2017/18 year average CPIH deflated | F13: =InpC!F$55 -> 1.10501985 | G13: =InpC!G$55 -> factor | H13: =InpC!H$55 -> 0
D14: =InpAct!D$108 -> PR14 | E14: =InpAct!E$108 -> RCV as at 2015 - real - water | F14: =InpAct!F$108 -> 0 | G14: =InpAct!G$108 -> £m | H14: =InpAct!H$108 -> 242.6362432
D15: =InpC!$F$26 -> PR14 | E15: RCV as at 2015 - 2017/18 year average CPIH deflated - water | G15: £m | H15: =H14 * $F13 -> 268.1178651
D17: =InpC!D$55 -> PR14 | E17: =InpC!E$55 -> Adjustment from 2012/13 year average RPI to 2017/18 year average CPIH deflated | F17: =InpC!F$55 -> 1.10501985 | G17: =InpC!G$55 -> factor | H17: =InpC!H$55 -> 0
D18: =InpAct!D$109 -> PR14 | E18: =InpAct!E$109 -> Depreciation of 2015 RCV - real - water | F18: =InpAct!F$109 -> 0 | G18: =InpAct!G$109 -> £m | H18: =InpAct!H$109 -> -13.4663115
D19: =InpC!$F$26 -> PR14 | E19: Depreciation of 2015 RCV - 2017/18 year average CPIH deflated - Water | G19: £m | H19: =H18 * $F17 -> -14.88054151
D20: =InpC!$F$26 -> PR14 | E20: Depreciation of 2015 RCV - 2017/18 year average CPIH deflated - Water POS | G20: £m | H20: =-1 * H19 -> 14.88054151
B22: Calculate depreciation on RCV additions using the equation in the PR14 model
D23: =InpAct!D$84 -> PR14 | E23: =InpAct!E$84 -> Proportion of capex that is subject to depreciation in year of acquisition | F23: =InpAct!F$84 -> 0 | G23: =InpAct!G$84 -> % | H23: =InpAct!H$84 -> 0.5
D24: =InpAct!D$111 -> PR14 | E24: =InpAct!E$111 -> Non-PAYG Totex in year additions - real | F24: =InpAct!F$111 -> 0 | G24: =InpAct!G$111 -> £m | H24: =InpAct!H$111 -> 27.31031018
D25: =InpC!$F$26 -> PR14 | E25: Non-PAYG Totex depreciated in year of acquisition - Water | G25: £m | H25: =$H23 * H24 -> 13.65515509
D27: =InpC!D$55 -> PR14 | E27: =InpC!E$55 -> Adjustment from 2012/13 year average RPI to 2017/18 year average CPIH deflated | F27: =InpC!F$55 -> 1.10501985 | G27: =InpC!G$55 -> factor | H27: =InpC!H$55 -> 0
D28: =D$25 -> PR14 | E28: =E$25 -> Non-PAYG Totex depreciated in year of acquisition - Water | F28: 0 | G28: £m | H28: 13.65515509
D29: =InpAct!D$117 -> PR14 | E29: =InpAct!E$117 -> Non-PAYG Totex balance BEG - real | F29: =InpAct!F$117 -> 0 | G29: =InpAct!G$117 -> £m | H29: =InpAct!H$117 -> 98.33858527
D30: =InpC!$F$26 -> PR14 | E30: Non-PAYG Totex - 201718 year average CPIH deflated - Water | G30: £m | H30: =SUM(H28:H29) * $F27 -> 123.7553062
D32: =D$30 -> PR14 | E32: =E$30 -> Non-PAYG Totex - 201718 year average CPIH deflated - Water | F32: 0 | G32: £m | H32: 123.7553062
D33: =InpAct!D$110 -> PR14 | E33: =InpAct!E$110 -> RCV Additions: Average Asset Life (to 1dp) - Water | F33: =InpAct!F$110 -> 0 | G33: =InpAct!G$110 -> years | H33: =InpAct!H$110 -> 12.6
D34: =InpC!$F$26 -> PR14 | E34: Non-PAYG Totex depreciation - 2017/18 year average CPIH deflated - Water | G34: £m | H34: =IFERROR(SUM(H32) / $H$33, 0) -> 9.8218497
D36: =D$15 -> PR14 | E36: =E$15 -> RCV as at 2015 - 2017/18 year average CPIH deflated - water | F36: 0 | G36: £m | H36: =H$15 -> 268.1178651
D37: =D$30 -> PR14 | E37: =E$30 -> Non-PAYG Totex - 201718 year average CPIH deflated - Water | F37: =F$30 -> 0 | G37: =G$30 -> £m | H37: =H$30 -> 123.7553062
D38: =InpC!$F$26 -> PR14 | E38: RCV - 201718 year average CPIH deflated - Water | G38: £m | H38: =SUM(H36:H37) -> 391.8731713
D40: =D$20 -> PR14 | E40: =E$20 -> Depreciation of 2015 RCV - 2017/18 year average CPIH deflated - Water POS | F40: 0 | G40: £m | H40: 14.88054151
D41: =D$34 -> PR14 | E41: =E$34 -> Non-PAYG Totex depreciation - 2017/18 year average CPIH deflated - Water | F41: =F$34 -> 0 | G41: =G$34 -> £m | H41: =H$34 -> 9.8218497
D42: =InpC!$F$26 -> PR14 | E42: RCV depreciation - 201718 year average CPIH deflated - Water | G42: £m | H42: =SUM(H40:H41) -> 24.70239121
C44: =InpC!$F$27 -> PR19
C45: =InpC!$F$27 & " Water resources" -> PR19 Water resources
D46: =InpC!D$57 -> PR19 | E46: =InpC!E$57 -> CPI(H): Fin year average - inflate from base year 2017-18 average | F46: =InpC!F$57 -> 1.156617303 | G46: =InpC!G$57 -> factor | H46: =InpC!H$57 -> 0
D47: =InpAct!D$132 -> PR19 | E47: =InpAct!E$132 -> RCV CPI(H) bf balance BEG - WR - nominal | F47: =InpAct!F$132 -> 0 | G47: =InpAct!G$132 -> £m | H47: =InpAct!H$132 -> 4.062896999
D48: =InpAct!D$133 -> PR19 | E48: =InpAct!E$133 -> Indexation on RCV - CPI(H) bf balance - WR - nominal | F48: =InpAct!F$133 -> 0 | G48: =InpAct!G$133 -> £m | H48: =InpAct!H$133 -> 0.08125793998
D49: =InpC!$F$27 -> PR19 | E49: RCV CPIH BEG plus indexation - WR - 2017/18 year average CPIH deflated | G49: £m | H49: =SUM(H47:H48) / $F$46 -> 3.5829958
D51: =InpC!D$57 -> PR19 | E51: =InpC!E$57 -> CPI(H): Fin year average - inflate from base year 2017-18 average | F51: =InpC!F$57 -> 1.156617303 | G51: =InpC!G$57 -> factor | H51: =InpC!H$57 -> 0
D52: =InpAct!D$134 -> PR19 | E52: =InpAct!E$134 -> RCV - CPI(H) bf depreciation - WR - nominal | F52: =InpAct!F$134 -> 0 | G52: =InpAct!G$134 -> £m | H52: =InpAct!H$134 -> 0.7734179236
D53: =InpC!$F$27 -> PR19 | E53: RCV CPIH depreciation - WR - 2017/18 year average CPIH deflated | G53: £m | H53: =H52 / $F$51 -> 0.6686895671
D55: =InpC!D$57 -> PR19 | E55: =InpC!E$57 -> CPI(H): Fin year average - inflate from base year 2017-18 average | F55: =InpC!F$57 -> 1.156617303 | G55: =InpC!G$57 -> factor | H55: =InpC!H$57 -> 0
D56: =InpAct!D$135 -> PR19 | E56: =InpAct!E$135 -> RCV CPI(H) + RPI wedge bf balance BEG - WR - nominal | F56: =InpAct!F$135 -> 0 | G56: =InpAct!G$135 -> £m | H56: =InpAct!H$135 -> 4.314881829
D57: =InpAct!D$136 -> PR19 | E57: =InpAct!E$136 -> Indexation on RCV - CPI(H) + RPI wedge bf balance - WR - nominal | F57: =InpAct!F$136 -> 0 | G57: =InpAct!G$136 -> £m | H57: =InpAct!H$136 -> 0.1294464549
D58: =InpC!$F$27 -> PR19 | E58: RCV CPIH + RPI wedge BEG plus indexation - WR - 2017/18 year average CPIH deflated | G58: £m | H58: =SUM(H56:H57) / $F$55 -> 3.842522737
D60: =InpC!D$57 -> PR19 | E60: =InpC!E$57 -> CPI(H): Fin year average - inflate from base year 2017-18 average | F60: =InpC!F$57 -> 1.156617303 | G60: =InpC!G$57 -> factor | H60: =InpC!H$57 -> 0
D61: =InpAct!D$137 -> PR19 | E61: =InpAct!E$137 -> RCV - CPI(H) + RPI wedge bf depreciation - WR - nominal | F61: =InpAct!F$137 -> 0 | G61: =InpAct!G$137 -> £m | H61: =InpAct!H$137 -> 0.7732624196
D62: =InpC!$F$27 -> PR19 | E62: RCV CPIH + RPI wedge depreciation - WR - 2017/18 year average CPIH deflated | G62: £m | H62: =H61 / $F$60 -> 0.6685551198
D64: =InpC!D$57 -> PR19 | E64: =InpC!E$57 -> CPI(H): Fin year average - inflate from base year 2017-18 average | F64: =InpC!F$57 -> 1.156617303 | G64: =InpC!G$57 -> factor | H64: =InpC!H$57 -> 0
D65: =InpAct!D$143 -> PR19 | E65: =InpAct!E$143 -> Water resources: Non-PAYG Totex - nominal | F65: =InpAct!F$143 -> 0 | G65: =InpAct!G$143 -> £m | H65: =InpAct!H$143 -> 4.046809723
D66: =InpC!$F$27 -> PR19 | E66: Water resources: Non-PAYG Totex - 2017/18 year average CPIH deflated | G66: £m | H66: =H65 / $F$64 -> 3.49883208
D68: =InpC!D$57 -> PR19 | E68: =InpC!E$57 -> CPI(H): Fin year average - inflate from base year 2017-18 average | F68: =InpC!F$57 -> 1.156617303 | G68: =InpC!G$57 -> factor | H68: =InpC!H$57 -> 0
D69: =InpAct!D$141 -> PR19 | E69: =InpAct!E$141 -> RCV additions balance BEG - WR - nominal | F69: =InpAct!F$141 -> 0 | G69: =InpAct!G$141 -> £m | H69: =InpAct!H$141 -> 13.90528492
D70: =InpAct!D$142 -> PR19 | E70: =InpAct!E$142 -> Indexation of RCV additions b/f - WR - nominal | F70: =InpAct!F$142 -> 0 | G70: =InpAct!G$142 -> £m | H70: =InpAct!H$142 -> 0.2781056984
D71: =InpC!$F$27 -> PR19 | E71: RCV additions BEG plus Indexation - WR - 2017/18 year average CPIH deflated | G71: £m | H71: =SUM(H69:H70) / $F$46 -> 12.26282071
B73: Calculate depreciation on RCV additions using the equations in the PR19 model
D74: =InpAct!D$139 -> PR19 | E74: =InpAct!E$139 -> Post 2020 investment run off rate - Method used to apply run off rate (straight line or reducing balance) ~ water resources - RCV additions depreciation | F74: =InpAct!F$139 -> reducing balance | G74: =InpAct!G$139 -> switch | H74: =InpAct!H$139 -> for info
D75: =InpAct!D$140 -> PR19 | E75: =InpAct!E$140 -> Proportion of capex that is subject to depreciation in year of acquisition - RCV - WR | F75: =InpAct!F$140 -> 0 | G75: =InpAct!G$140 -> % | H75: =InpAct!H$140 -> 0.5
D76: =D$66 -> PR19 | E76: =E$66 -> Water resources: Non-PAYG Totex - 2017/18 year average CPIH deflated | F76: 0 | G76: £m | H76: 3.49883208
D77: =InpC!$F$27 -> PR19 | E77: Non-PAYG Totex depreciated in year of acquisition - 2017/18 year average CPIH deflated - WR | G77: £m | H77: =$H75 * H76 -> 1.74941604
D79: =D$77 -> PR19 | E79: =E$77 -> Non-PAYG Totex depreciated in year of acquisition - 2017/18 year average CPIH deflated - WR | F79: 0 | G79: £m | H79: 1.74941604
D80: =InpAct!D$147 -> PR19 | E80: =InpAct!E$147 -> Run-off rate - RCV additions - active - WR | F80: =InpAct!F$147 -> 0 | G80: =InpAct!G$147 -> % | H80: =InpAct!H$147 -> 0.04878384209
D81: =InpC!$F$27 -> PR19 | E81: RCV post 2020 additions depreciation - 2017/18 year average CPIH deflated -WR | G81: £m | H81: =H79 * H80 -> 0.08534323584
D83: =D$71 -> PR19 | E83: =E$71 -> RCV additions BEG plus Indexation - WR - 2017/18 year average CPIH deflated | F83: 0 | G83: £m | H83: 12.26282071
D84: =InpAct!D$147 -> PR19 | E84: =InpAct!E$147 -> Run-off rate - RCV additions - active - WR | F84: =InpAct!F$147 -> 0 | G84: =InpAct!G$147 -> % | H84: =InpAct!H$147 -> 0.04878384209
D85: =InpC!D$57 -> PR19 | E85: RCV additions plus Indexation depreciation - 2017/18 year average CPIH deflated - WR | G85: £m | H85: =H83 * H84 -> 0.5982275093
D87: =D$79 -> PR19 | E87: =E$79 -> Non-PAYG Totex depreciated in year of acquisition - 2017/18 year average CPIH deflated - WR | F87: 0 | G87: £m | H87: 1.74941604
D88: =D$71 -> PR19 | E88: =E$71 -> RCV additions BEG plus Indexation - WR - 2017/18 year average CPIH deflated | F88: 0 | G88: £m | H88: 12.26282071
D89: =InpC!$F$27 -> PR19 | E89: RCV post 2020 additions plus indexation - WR - 2017/18 year average CPIH deflated | G89: £m | H89: =SUM(H87:H88) -> 14.01223675
D91: =D$81 -> PR19 | E91: =E$81 -> RCV post 2020 additions depreciation - 2017/18 year average CPIH deflated -WR | F91: 0 | G91: £m | H91: 0.08534323584
D92: =D$85 -> PR19 | E92: =E$85 -> RCV additions plus Indexation depreciation - 2017/18 year average CPIH deflated - WR | F92: 0 | G92: £m | H92: 0.5982275093
D93: =InpC!$F$27 -> PR19 | E93: RCV post 2020 additions plus indexation depreciation - WR - 2017/18 year average CPIH deflated | G93: £m | H93: =SUM(H91:H92) -> 0.6835707451
C95: =InpC!$F$27 & " Water network" -> PR19 Water network
D96: =InpC!D$57 -> PR19 | E96: =InpC!E$57 -> CPI(H): Fin year average - inflate from base year 2017-18 average | F96: =InpC!F$57 -> 1.156617303 | G96: =InpC!G$57 -> factor | H96: =InpC!H$57 -> 0
D97: =InpAct!D$150 -> PR19 | E97: =InpAct!E$150 -> RCV CPI(H) bf balance BEG - WN - nominal | F97: =InpAct!F$150 -> 0 | G97: =InpAct!G$150 -> £m | H97: =InpAct!H$150 -> 162.4141572
D98: =InpAct!D$151 -> PR19 | E98: =InpAct!E$151 -> Indexation on RCV - CPI(H) bf balance - WN - nominal | F98: =InpAct!F$151 -> 0 | G98: =InpAct!G$151 -> £m | H98: =InpAct!H$151 -> 3.248283144
D99: =InpC!$F$27 -> PR19 | E99: RCV CPIH BEG plus indexation - WN - 2017/18 year average CPIH deflated | G99: £m | H99: =SUM(H97:H98) / $F96 -> 143.2301245
D101: =InpC!D$57 -> PR19 | E101: =InpC!E$57 -> CPI(H): Fin year average - inflate from base year 2017-18 average | F101: =InpC!F$57 -> 1.156617303 | G101: =InpC!G$57 -> factor | H101: =InpC!H$57 -> 0
D102: =InpAct!D152 -> PR19 | E102: =InpAct!E152 -> RCV - CPI(H) bf depreciation - WN - nominal | F102: =InpAct!F152 -> 0 | G102: =InpAct!G152 -> £m | H102: =InpAct!H152 -> 9.078301731
D103: =InpC!$F$27 -> PR19 | E103: PR19 RCV CPIH depreciation - WN - 2017/18 year average CPIH deflated | G103: £m | H103: =H102 / $F101 -> 7.849010825
D105: =InpC!D$57 -> PR19 | E105: =InpC!E$57 -> CPI(H): Fin year average - inflate from base year 2017-18 average | F105: =InpC!F$57 -> 1.156617303 | G105: =InpC!G$57 -> factor | H105: =InpC!H$57 -> 0
D106: =InpAct!D$153 -> PR19 | E106: =InpAct!E$153 -> RCV CPI(H) + RPI wedge bf balance BEG - WN - nominal | F106: =InpAct!F$153 -> 0 | G106: =InpAct!G$153 -> £m | H106: =InpAct!H$153 -> 151.7678464
D107: =InpAct!D$154 -> PR19 | E107: =InpAct!E$154 -> Indexation on RCV - CPI(H) + RPI wedge bf balance - WN - nominal | F107: =InpAct!F$154 -> 0 | G107: =InpAct!G$154 -> £m | H107: =InpAct!H$154 -> 4.553035392
D108: =InpC!$F$27 -> PR19 | E108: RCV CPIH + RPI wedge BEG plus indexation - WN - 2017/18 year average CPIH deflated | G108: £m | H108: =SUM(H106:H107) / $F105 -> 135.1535044
D110: =InpC!D$57 -> PR19 | E110: =InpC!E$57 -> CPI(H): Fin year average - inflate from base year 2017-18 average | F110: =InpC!F$57 -> 1.156617303 | G110: =InpC!G$57 -> factor | H110: =InpC!H$57 -> 0
D111: =InpAct!D155 -> PR19 | E111: =InpAct!E155 -> RCV - CPI(H) + RPI wedge bf depreciation - WN - nominal | F111: =InpAct!F155 -> 0 | G111: =InpAct!G155 -> £m | H111: =InpAct!H155 -> 12.19302878
D112: =InpC!$F$27 -> PR19 | E112: PR19 RCV CPIH + RPI wedge depreciation - WN - 2017/18 year average CPIH deflated | G112: £m | H112: =H111 / $F110 -> 10.54197335
D114: =InpC!D$57 -> PR19 | E114: =InpC!E$57 -> CPI(H): Fin year average - inflate from base year 2017-18 average | F114: =InpC!F$57 -> 1.156617303 | G114: =InpC!G$57 -> factor | H114: =InpC!H$57 -> 0
D115: =InpAct!D161 -> PR19 | E115: =InpAct!E161 -> Water network: Non-PAYG Totex - nominal | F115: =InpAct!F161 -> 0 | G115: =InpAct!G161 -> £m | H115: =InpAct!H161 -> 36.60234134
D116: =InpC!$F$27 -> PR19 | E116: Water network: Non-PAYG Totex - 2017/18 year average CPIH deflated | G116: £m | H116: =H115 / $F114 -> 31.64602609
D118: =InpC!D$57 -> PR19 | E118: =InpC!E$57 -> CPI(H): Fin year average - inflate from base year 2017-18 average | F118: =InpC!F$57 -> 1.156617303 | G118: =InpC!G$57 -> factor | H118: =InpC!H$57 -> 0
D119: =InpAct!D$159 -> PR19 | E119: =InpAct!E$159 -> RCV additions balance BEG - WN - nominal | F119: =InpAct!F$159 -> 0 | G119: =InpAct!G$159 -> £m | H119: =InpAct!H$159 -> 160.8844727
D120: =InpAct!D$160 -> PR19 | E120: =InpAct!E$160 -> Indexation of RCV additions b/f - WN - nominal | F120: =InpAct!F$160 -> 0 | G120: =InpAct!G$160 -> £m | H120: =InpAct!H$160 -> 3.217689453
D121: =InpC!$F$27 -> PR19 | E121: RCV additions BEG plus Indexation - WN - 2017/18 year average CPIH deflated | G121: £m | H121: =SUM(H119:H120) / $F$46 -> 141.8811233
B123: Calculate depreciation on RCV additions using the equations in the PR19 model
D124: =InpAct!D$157 -> PR19 | E124: =InpAct!E$157 -> RCV run off rate ~ CPI/CPI(H) linked RCV - Method used to apply run off rate (straight line or reducing balance) ~ water network plus CPI(H) linked - RCV additions depreciation | F124: =InpAct!F$157 -> reducing balance | G124: =InpAct!G$157 -> switch | H124: =InpAct!H$157 -> for info
D125: =InpAct!D$158 -> PR19 | E125: =InpAct!E$158 -> Proportion of capex that is subject to depreciation in year of acquisition - RCV - WN | F125: =InpAct!F$158 -> 0 | G125: =InpAct!G$158 -> % | H125: =InpAct!H$158 -> 0.5
D126: =D$116 -> PR19 | E126: =E$116 -> Water network: Non-PAYG Totex - 2017/18 year average CPIH deflated | F126: 0 | G126: £m | H126: 31.64602609
D127: =InpC!$F$27 -> PR19 | E127: Non-PAYG Totex depreciated in year of acquisition - 2017/18 year average CPIH deflated - WN | G127: £m | H127: =H126 * $H125 -> 15.82301304
D129: =D$127 -> PR19 | E129: =E$127 -> Non-PAYG Totex depreciated in year of acquisition - 2017/18 year average CPIH deflated - WN | F129: 0 | G129: £m | H129: 15.82301304
D130: =InpAct!D$165 -> PR19 | E130: =InpAct!E$165 -> Run-off rate - RCV additions - active - WN | F130: =InpAct!F$165 -> 0 | G130: =InpAct!G$165 -> % | H130: =InpAct!H$165 -> 0.0548
D131: =InpC!$F$27 -> PR19 | E131: RCV post 2020 additions depreciation - 2017/18 year average CPIH deflated - WN | G131: £m | H131: =H129 * H130 -> 0.8671011148
D133: =D$121 -> PR19 | E133: =E$121 -> RCV additions BEG plus Indexation - WN - 2017/18 year average CPIH deflated | F133: 0 | G133: £m | H133: 141.8811233
D134: =InpAct!D$165 -> PR19 | E134: =InpAct!E$165 -> Run-off rate - RCV additions - active - WN | F134: =InpAct!F$165 -> 0 | G134: =InpAct!G$165 -> % | H134: =InpAct!H$165 -> 0.0548
D135: =InpC!$F$27 -> PR19 | E135: RCV additions BEG plus Indexation depreciation - 2017/18 year average CPIH deflated - WN | G135: £m | H135: =H133 * H134 -> 7.775085554
D137: =D$127 -> PR19 | E137: =E$127 -> Non-PAYG Totex depreciated in year of acquisition - 2017/18 year average CPIH deflated - WN | F137: 0 | G137: £m | H137: 15.82301304
D138: =D$133 -> PR19 | E138: =E$133 -> RCV additions BEG plus Indexation - WN - 2017/18 year average CPIH deflated | F138: 0 | G138: £m | H138: 141.8811233
D139: =InpC!$F$27 -> PR19 | E139: RCV post 2020 additions - WN - 2017/18 year average CPIH deflated | G139: £m | H139: =SUM(H137:H138) -> 157.7041363
D141: =D$131 -> PR19 | E141: =E$131 -> RCV post 2020 additions depreciation - 2017/18 year average CPIH deflated - WN | F141: 0 | G141: £m | H141: 0.8671011148
D142: =D$135 -> PR19 | E142: =E$135 -> RCV additions BEG plus Indexation depreciation - 2017/18 year average CPIH deflated - WN | F142: 0 | G142: £m | H142: 7.775085554
D143: =InpC!$F$27 -> PR19 | E143: RCV post 2020 additions plus indexation depreciation - WN - 2017/18 year average CPIH deflated | G143: £m | H143: =SUM(H141:H142) -> 8.642186669
B145: Sum the components for water resources and water network
D146: =D$49 -> PR19 | E146: =E$49 -> RCV CPIH BEG plus indexation - WR - 2017/18 year average CPIH deflated | F146: 0 | G146: £m | H146: 3.5829958
D147: =D$58 -> PR19 | E147: =E$58 -> RCV CPIH + RPI wedge BEG plus indexation - WR - 2017/18 year average CPIH deflated | F147: 0 | G147: £m | H147: 3.842522737
D148: =D$89 -> PR19 | E148: =E$89 -> RCV post 2020 additions plus indexation - WR - 2017/18 year average CPIH deflated | F148: 0 | G148: £m | H148: 14.01223675
D149: =D$99 -> PR19 | E149: =E$99 -> RCV CPIH BEG plus indexation - WN - 2017/18 year average CPIH deflated | F149: 0 | G149: £m | H149: 143.2301245
D150: =D$108 -> PR19 | E150: =E$108 -> RCV CPIH + RPI wedge BEG plus indexation - WN - 2017/18 year average CPIH deflated | F150: 0 | G150: £m | H150: 135.1535044
D151: =D$139 -> PR19 | E151: =E$139 -> RCV post 2020 additions - WN - 2017/18 year average CPIH deflated | F151: 0 | G151: £m | H151: 157.7041363
D152: =InpC!$F$27 -> PR19 | E152: RCV balance - Water | G152: £m | H152: =SUM(H146:H151) -> 457.5255206
D154: =D$53 -> PR19 | E154: =E$53 -> RCV CPIH depreciation - WR - 2017/18 year average CPIH deflated | F154: 0 | G154: £m | H154: 0.6686895671
D155: =D$62 -> PR19 | E155: =E$62 -> RCV CPIH + RPI wedge depreciation - WR - 2017/18 year average CPIH deflated | F155: 0 | G155: £m | H155: 0.6685551198
D156: =D$93 -> PR19 | E156: =E$93 -> RCV post 2020 additions plus indexation depreciation - WR - 2017/18 year average CPIH deflated | F156: 0 | G156: £m | H156: 0.6835707451
D157: =D$103 -> PR19 | E157: =E$103 -> PR19 RCV CPIH depreciation - WN - 2017/18 year average CPIH deflated | F157: 0 | G157: £m | H157: 7.849010825
D158: =D$112 -> PR19 | E158: =E$112 -> PR19 RCV CPIH + RPI wedge depreciation - WN - 2017/18 year average CPIH deflated | F158: 0 | G158: £m | H158: 10.54197335
D159: =D$143 -> PR19 | E159: =E$143 -> RCV post 2020 additions plus indexation depreciation - WN - 2017/18 year average CPIH deflated | F159: 0 | G159: £m | H159: 8.642186669
D160: =InpC!$F$27 -> PR19 | E160: RCV depreciation - Water | G160: £m | H160: =SUM(H154:H159) -> 29.05398627
B162: Subtract the PR19 RCV depreciation from the PR14 RCV depreciation to give the actual change in RCV depreciation
D163: =D$42 -> PR14 | E163: =E$42 -> RCV depreciation - 201718 year average CPIH deflated - Water | F163: 0 | G163: £m | H163: 24.70239121
D164: =D$160 -> PR19 | E164: =E$160 -> RCV depreciation - Water | F164: 0 | G164: £m | H164: 29.05398627
E165: Change in RCV depreciation - Water | G165: £m | H165: =H164 - H163 -> 4.351595058
B167: Calculate the PR14 RCV depreciation with the PR19 run-off rate (weighted average run-off rate for WR and WN)
D168: =D$152 -> PR19 | E168: =E$152 -> RCV balance - Water | F168: 0 | G168: £m | H168: 457.5255206
D169: =D$160 -> PR19 | E169: =E$160 -> RCV depreciation - Water | F169: 0 | G169: £m | H169: 29.05398627
D170: =InpC!$F$27 -> PR19 | E170: PR19 Weighted average run-off rate - water | G170: % | H170: =IFERROR( H169 / H168, 0) -> 0.06350243859
D172: =D$38 -> PR14 | E172: =E$38 -> RCV - 201718 year average CPIH deflated - Water | F172: 0 | G172: £m | H172: 391.8731713
D173: =D$170 -> PR19 | E173: =E$170 -> PR19 Weighted average run-off rate - water | F173: 0 | G173: % | H173: 0.06350243859
E174: PR14 RCV depreciation with PR19 run-off rate - Water | G174: £m | H174: =H173 * H172 -> 24.884902
B176: Subtract the 'PR14 RCV depreciation with PR19 run-off rate' from the PR14 RCV depreciation to find the change in the RCV depreciation due to the change in the run-off rate only
D177: =D$42 -> PR14 | E177: =E$42 -> RCV depreciation - 201718 year average CPIH deflated - Water | F177: 0 | G177: £m | H177: 24.70239121
E178: =E$174 -> PR14 RCV depreciation with PR19 run-off rate - Water | F178: =F$174 -> 0 | G178: £m | H178: 24.884902
E179: Change in RCV depreciation due to change in run-off rate - Water | G179: £m | H179: =H178 - H177 -> 0.1825107832
B181: Subtract the impact of the change in run-off rate from the actual change in RCV depreciation to find the change in RCV depreciation due to the change in RCV only
E182: =E$165 -> Change in RCV depreciation - Water | F182: =F$165 -> 0 | G182: £m | H182: 4.351595058
E183: =E$179 -> Change in RCV depreciation due to change in run-off rate - Water | F183: =F$179 -> 0 | G183: £m | H183: 0.1825107832
E184: Change in RCV depreciation due to change in RCV - Water | G184: £m | H184: =H182 - H183 -> 4.169084275
B186: This section calculates the components that cause a change in the return on RCV
B187: Wastewater
C189: =InpC!$F$26 -> PR14
D190: =InpC!D$55 -> PR14 | E190: =InpC!E$55 -> Adjustment from 2012/13 year average RPI to 2017/18 year average CPIH deflated | F190: =InpC!F$55 -> 1.10501985 | G190: =InpC!G$55 -> factor | H190: =InpC!H$55 -> 0
D191: =InpAct!D$120 -> PR14 | E191: =InpAct!E$120 -> RCV as at 2015 - real - Wastewater | F191: =InpAct!F$120 -> 0 | G191: =InpAct!G$120 -> £m | H191: =InpAct!H$120 -> 0
D192: =InpC!$F$26 -> PR14 | E192: RCV as at 2015 - 2017/18 year average CPIH deflated - Wastewater | G192: £m | H192: =H191 * $F190 -> 0
D194: =InpC!D$55 -> PR14 | E194: =InpC!E$55 -> Adjustment from 2012/13 year average RPI to 2017/18 year average CPIH deflated | F194: =InpC!F$55 -> 1.10501985 | G194: =InpC!G$55 -> factor | H194: =InpC!H$55 -> 0
D195: =InpAct!D$121 -> PR14 | E195: =InpAct!E$121 -> Depreciation of 2015 RCV - real - wastewater | F195: =InpAct!F$121 -> 0 | G195: =InpAct!G$121 -> £m | H195: =InpAct!H$121 -> 0
D196: =InpC!$F$26 -> PR14 | E196: Depreciation of 2015 RCV - 2017/18 year average CPIH deflated - Wastewater | G196: £m | H196: =H195 * $F194 -> 0
D197: =InpC!$F$26 -> PR14 | E197: Depreciation of 2015 RCV - 2017/18 year average CPIH deflated - Wastewater POS | G197: £m | H197: =-1 * H196 -> 0
B199: Calculate depreciation on RCV additions using the equations in the PR14 model
D200: =InpAct!D$84 -> PR14 | E200: =InpAct!E$84 -> Proportion of capex that is subject to depreciation in year of acquisition | F200: =InpAct!F$84 -> 0 | G200: =InpAct!G$84 -> % | H200: =InpAct!H$84 -> 0.5
D201: =InpAct!D$123 -> PR14 | E201: =InpAct!E$123 -> Non-PAYG Totex in year additions - real | F201: =InpAct!F$123 -> 0 | G201: =InpAct!G$123 -> £m | H201: =InpAct!H$123 -> 0
D202: =InpC!$F$26 -> PR14 | E202: Non-PAYG Totex depreciated in year of acquisition - Wastewater | G202: £m | H202: =$H200 * H201 -> 0
D204: =InpC!D$55 -> PR14 | E204: =InpC!E$55 -> Adjustment from 2012/13 year average RPI to 2017/18 year average CPIH deflated | F204: =InpC!F$55 -> 1.10501985 | G204: =InpC!G$55 -> factor | H204: =InpC!H$55 -> 0
D205: =D$202 -> PR14 | E205: =E$202 -> Non-PAYG Totex depreciated in year of acquisition - Wastewater | F205: 0 | G205: £m | H205: 0
D206: =InpAct!D$129 -> PR14 | E206: =InpAct!E$129 -> Non-PAYG Totex balance BEG - real | F206: =InpAct!F$129 -> 0 | G206: =InpAct!G$129 -> £m | H206: =InpAct!H$129 -> 0
D207: =InpC!$F$26 -> PR14 | E207: Non-PAYG Totex - 201718 year average CPIH deflated - Wastewater | G207: £m | H207: =SUM(H205:H206) * $F204 -> 0
D209: =D$207 -> PR14 | E209: =E$207 -> Non-PAYG Totex - 201718 year average CPIH deflated - Wastewater | F209: 0 | G209: £m | H209: 0
D210: =InpAct!D$122 -> PR14 | E210: =InpAct!E$122 -> RCV Additions: Average Asset Life (to 1dp) - Wastewater | F210: =InpAct!F$122 -> 0 | G210: =InpAct!G$122 -> years | H210: =InpAct!H$122 -> 0
D211: =InpC!$F$26 -> PR14 | E211: Non-PAYG Totex depreciation - 2017/18 year average CPIH deflated - Wastewater | G211: £m | H211: =IFERROR( SUM(H209) / $H$210, 0) -> 0
D213: =D$192 -> PR14 | E213: =E$192 -> RCV as at 2015 - 2017/18 year average CPIH deflated - Wastewater | F213: 0 | G213: £m | H213: 0
D214: =D$207 -> PR14 | E214: =E$207 -> Non-PAYG Totex - 201718 year average CPIH deflated - Wastewater | F214: 0 | G214: £m | H214: 0
D215: =InpC!$F$26 -> PR14 | E215: RCV - 201718 year average CPIH deflated - Wastewater | G215: £m | H215: =SUM(H213:H214) -> 0
D217: =D$197 -> PR14 | E217: =E$197 -> Depreciation of 2015 RCV - 2017/18 year average CPIH deflated - Wastewater POS | F217: 0 | G217: £m | H217: 0
D218: =D$211 -> PR14 | E218: =E$211 -> Non-PAYG Totex depreciation - 2017/18 year average CPIH deflated - Wastewater | F218: 0 | G218: £m | H218: 0
D219: =InpC!$F$26 -> PR14 | E219: RCV depreciation - 201718 year average CPIH deflated - Wastewater | G219: £m | H219: =SUM(H217:H218) -> 0
C221: =InpC!$F$27 -> PR19
C222: =InpC!$F$27 & " Wastewater network" -> PR19 Wastewater network
D223: =InpC!D$57 -> PR19 | E223: =InpC!E$57 -> CPI(H): Fin year average - inflate from base year 2017-18 average | F223: =InpC!F$57 -> 1.156617303 | G223: =InpC!G$57 -> factor | H223: =InpC!H$57 -> 0
D224: =InpAct!D$168 -> PR19 | E224: =InpAct!E$168 -> RCV CPI(H) bf balance BEG - WWN - nominal | F224: =InpAct!F$168 -> 0 | G224: =InpAct!G$168 -> £m | H224: =InpAct!H$168 -> 0
D225: =InpAct!D$169 -> PR19 | E225: =InpAct!E$169 -> Indexation on RCV - CPI(H) bf balance - WWN - nominal | F225: =InpAct!F$169 -> 0 | G225: =InpAct!G$169 -> £m | H225: =InpAct!H$169 -> 0
D226: =InpC!$F$27 -> PR19 | E226: RCV CPIH BEG plus indexation - WWN - 2017/18 year average CPIH deflated | G226: £m | H226: =SUM(H224:H225) / $F223 -> 0
D228: =InpC!D$57 -> PR19 | E228: =InpC!E$57 -> CPI(H): Fin year average - inflate from base year 2017-18 average | F228: =InpC!F$57 -> 1.156617303 | G228: =InpC!G$57 -> factor | H228: =InpC!H$57 -> 0
D229: =InpAct!D$170 -> PR19 | E229: =InpAct!E$170 -> RCV - CPI(H) bf depreciation - WWN - nominal | F229: =InpAct!F$170 -> 0 | G229: =InpAct!G$170 -> £m | H229: =InpAct!H$170 -> 0
D230: =InpC!$F$27 -> PR19 | E230: RCV CPIH depreciation - WWN - 2017/18 year average CPIH deflated | G230: £m | H230: =H229 / $F228 -> 0
D232: =InpC!D$57 -> PR19 | E232: =InpC!E$57 -> CPI(H): Fin year average - inflate from base year 2017-18 average | F232: =InpC!F$57 -> 1.156617303 | G232: =InpC!G$57 -> factor | H232: =InpC!H$57 -> 0
D233: =InpAct!D$171 -> PR19 | E233: =InpAct!E$171 -> RCV CPI(H) + RPI wedge bf balance BEG - WWN - nominal | F233: =InpAct!F$171 -> 0 | G233: =InpAct!G$171 -> £m | H233: =InpAct!H$171 -> 0
D234: =InpAct!D$172 -> PR19 | E234: =InpAct!E$172 -> Indexation on RCV - CPI(H) + RPI wedge bf balance - WWN - nominal | F234: =InpAct!F$172 -> 0 | G234: =InpAct!G$172 -> £m | H234: =InpAct!H$172 -> 0
D235: =InpC!$F$27 -> PR19 | E235: RCV CPIH + RPI wedge BEG plus indexation - WWN - 2017/18 year average CPIH deflated | G235: £m | H235: =SUM(H233:H234) / $F232 -> 0
D237: =InpC!D$57 -> PR19 | E237: =InpC!E$57 -> CPI(H): Fin year average - inflate from base year 2017-18 average | F237: =InpC!F$57 -> 1.156617303 | G237: =InpC!G$57 -> factor | H237: =InpC!H$57 -> 0
D238: =InpAct!D$173 -> PR19 | E238: =InpAct!E$173 -> RCV - CPI(H) + RPI wedge bf depreciation - WWN - nominal | F238: =InpAct!F$173 -> 0 | G238: =InpAct!G$173 -> £m | H238: =InpAct!H$173 -> 0
D239: =InpC!$F$27 -> PR19 | E239: RCV CPIH + RPI wedge depreciation - WWN - 2017/18 year average CPIH deflated | G239: £m | H239: =H238 / $F237 -> 0
D241: =InpC!D$57 -> PR19 | E241: =InpC!E$57 -> CPI(H): Fin year average - inflate from base year 2017-18 average | F241: =InpC!F$57 -> 1.156617303 | G241: =InpC!G$57 -> factor | H241: =InpC!H$57 -> 0
D242: =InpAct!D$179 -> PR19 | E242: =InpAct!E$179 -> Wastewater network: Non-PAYG Totex - nominal | F242: =InpAct!F$179 -> 0 | G242: =InpAct!G$179 -> £m | H242: =InpAct!H$179 -> 0
D243: =InpC!$F$27 -> PR19 | E243: Wastewater network: Non-PAYG Totex - 2017/18 year average CPIH deflated | G243: £m | H243: =H242 / $F241 -> 0
D245: =InpC!D$57 -> PR19 | E245: =InpC!E$57 -> CPI(H): Fin year average - inflate from base year 2017-18 average | F245: =InpC!F$57 -> 1.156617303 | G245: =InpC!G$57 -> factor | H245: =InpC!H$57 -> 0
D246: =InpAct!D$177 -> PR19 | E246: =InpAct!E$177 -> RCV additions balance BEG - WWN - nominal | F246: =InpAct!F$177 -> 0 | G246: =InpAct!G$177 -> £m | H246: =InpAct!H$177 -> 0
D247: =InpAct!D$178 -> PR19 | E247: =InpAct!E$178 -> Indexation of RCV additions b/f - WWN - nominal | F247: =InpAct!F$178 -> 0 | G247: =InpAct!G$178 -> £m | H247: =InpAct!H$178 -> 0
D248: =InpC!$F$27 -> PR19 | E248: RCV additions BEG plus Indexation - WWN - 2017/18 year average CPIH deflated | G248: £m | H248: =SUM(H246:H247) / $F245 -> 0
B250: Calculate depreciation on RCV additions using the equations in the PR19 model
D251: =InpAct!D$175 -> PR19 | E251: =InpAct!E$175 -> RCV run off rate ~ CPI/CPI(H) linked RCV - Method used to apply run off rate (straight line or reducing balance) ~ wastewater network plus CPI(H) linked - RCV additions depreciation | F251: =InpAct!F$175 -> 0 | G251: =InpAct!G$175 -> switch | H251: =InpAct!H$175 -> for info
D252: =InpAct!D$176 -> PR19 | E252: =InpAct!E$176 -> Proportion of capex that is subject to depreciation in year of acquisition - RCV - WWN | F252: =InpAct!F$176 -> 0 | G252: =InpAct!G$176 -> % | H252: =InpAct!H$176 -> 0.5
D253: =D$243 -> PR19 | E253: =E$243 -> Wastewater network: Non-PAYG Totex - 2017/18 year average CPIH deflated | F253: 0 | G253: £m | H253: 0
D254: =InpC!$F$27 -> PR19 | E254: Non-PAYG Totex depreciated in year of acquisition - 2017/18 year average CPIH deflated - WWN | G254: £m | H254: =H253 * $H252 -> 0
D256: =D$254 -> PR19 | E256: =E$254 -> Non-PAYG Totex depreciated in year of acquisition - 2017/18 year average CPIH deflated - WWN | F256: 0 | G256: £m | H256: 0
... 247 more rows

Sheet Totex
A1: =RIGHT(CELL("filename", $A$1), LEN(CELL("filename", $A$1)) - SEARCH("]", CELL("filename", $A$1))) -> Totex | F1: =Check!F2 -> -3 | G1: Error chks
F2: =Check!F3 -> 62 | G2: Track checks
F5: Constant | G5: Unit | H5: Value | J5: Note
A7: WHOLESALE: Change in bill due to change in PAYG TOTEX
B9: This section calculates the components causing the change in PAYG Totex
B10: Water
C12: PR14
D13: =InpC!D$55 -> PR14 | E13: =InpC!E$55 -> Adjustment from 2012/13 year average RPI to 2017/18 year average CPIH deflated | F13: =InpC!F$55 -> 1.10501985 | G13: =InpC!G$55 -> factor | H13: =InpC!H$55 -> 0
D14: =InpAct!D$87 -> PR14 | E14: =InpAct!E$87 -> Totex - real - Water | F14: =InpAct!F$87 -> 0 | G14: =InpAct!G$87 -> £m | H14: =InpAct!H$87 -> 78.4824133
D15: =InpC!$F$26 -> PR14 | E15: Totex - 2017/18 year average CPIH deflated - Water | G15: £m | H15: =H14 * $F13 -> 86.72462461
D17: =InpC!D$55 -> PR14 | E17: =InpC!E$55 -> Adjustment from 2012/13 year average RPI to 2017/18 year average CPIH deflated | F17: =InpC!F$55 -> 1.10501985 | G17: =InpC!G$55 -> factor | H17: =InpC!H$55 -> 0
D18: =InpAct!D$89 -> PR14 | E18: =InpAct!E$89 -> PAYG Totex - real - Water | F18: =InpAct!F$89 -> 0 | G18: =InpAct!G$89 -> £m | H18: =InpAct!H$89 -> 51.17210312
D19: =InpC!$F$26 -> PR14 | E19: PAYG Totex - 2017/18 year average CPIH deflated - Water | G19: £m | H19: =H18 * $F17 -> 56.54618974
C21: PR19
D22: =InpC!D$57 -> PR19 | E22: =InpC!E$57 -> CPI(H): Fin year average - inflate from base year 2017-18 average | F22: =InpC!F$57 -> 1.156617303 | G22: =InpC!G$57 -> factor | H22: =InpC!H$57 -> 0
D23: =InpAct!D$92 -> PR19 | E23: =InpAct!E$92 -> Totex - net of grants and contributions - WR (post sensi adj) - nominal | F23: =InpAct!F$92 -> 0 | G23: =InpAct!G$92 -> £m | H23: =InpAct!H$92 -> 12.32212199
D24: =InpC!$F$27 -> PR19 | E24: Totex - net of grants and contributions - WR (post sensi adj) - 2017/18 year average CPIH deflated | G24: £m | H24: =H23 / $F22 -> 10.65358608
D26: =InpC!D$57 -> PR19 | E26: =InpC!E$57 -> CPI(H): Fin year average - inflate from base year 2017-18 average | F26: =InpC!F$57 -> 1.156617303 | G26: =InpC!G$57 -> factor | H26: =InpC!H$57 -> 0
D27: =InpAct!D$96 -> PR19 | E27: =InpAct!E$96 -> Water resources: PAYG Totex - nominal | F27: =InpAct!F$96 -> 0 | G27: =InpAct!G$96 -> £m | H27: =InpAct!H$96 -> 8.275312271
D28: =InpC!$F$27 -> PR19 | E28: Water Resources: PAYG Totex - 2017/18 year average CPIH deflated | G28: £m | H28: =H27 / $F26 -> 7.154753997
D30: =InpC!D$57 -> PR19 | E30: =InpC!E$57 -> CPI(H): Fin year average - inflate from base year 2017-18 average | F30: =InpC!F$57 -> 1.156617303 | G30: =InpC!G$57 -> factor | H30: =InpC!H$57 -> 0
D31: =InpAct!D$93 -> PR19 | E31: =InpAct!E$93 -> Totex - net of grants and contributions - WN (post sensi adj) - nominal | F31: =InpAct!F$93 -> 0 | G31: =InpAct!G$93 -> £m | H31: =InpAct!H$93 -> 99.61253061
D32: =InpC!$F$27 -> PR19 | E32: Totex - net of grants and contributions - WN (post sensi adj) - 2017/18 year average CPIH deflated | G32: £m | H32: =H31 / $F30 -> 86.12401903
D34: =InpC!D$57 -> PR19 | E34: =InpC!E$57 -> CPI(H): Fin year average - inflate from base year 2017-18 average | F34: =InpC!F$57 -> 1.156617303 | G34: =InpC!G$57 -> factor | H34: =InpC!H$57 -> 0
D35: =InpAct!D$97 -> PR19 | E35: =InpAct!E$97 -> Water network: PAYG Totex - nominal | F35: =InpAct!F$97 -> 0 | G35: =InpAct!G$97 -> £m | H35: =InpAct!H$97 -> 63.01018927
D36: =InpC!$F$27 -> PR19 | E36: Water Network: PAYG Totex - 2017/18 year average CPIH deflated | G36: £m | H36: =H35 / $F34 -> 54.47799294
D38: =D$24 -> PR19 | E38: =E$24 -> Totex - net of grants and contributions - WR (post sensi adj) - 2017/18 year average CPIH deflated | F38: 0 | G38: £m | H38: 10.65358608
D39: =D$32 -> PR19 | E39: =E$32 -> Totex - net of grants and contributions - WN (post sensi adj) - 2017/18 year average CPIH deflated | F39: 0 | G39: £m | H39: 86.12401903
D40: =InpC!$F$27 -> PR19 | E40: Totex - net of grants and contributions - Water (post sensi adj) - 2017/18 year average CPIH deflated | G40: £m | H40: =SUM(H38:H39) -> 96.77760511
D42: =D$28 -> PR19 | E42: =E$28 -> Water Resources: PAYG Totex - 2017/18 year average CPIH deflated | F42: 0 | G42: £m | H42: 7.154753997
D43: =D$36 -> PR19 | E43: =E$36 -> Water Network: PAYG Totex - 2017/18 year average CPIH deflated | F43: 0 | G43: £m | H43: 54.47799294
D44: =InpC!$F$27 -> PR19 | E44: PAYG Totex - Water (post sensi adj) - 2017/18 year average CPIH deflated | G44: £m | H44: =SUM(H42:H43) -> 61.63274694
B46: Subtract the PR19 PAYG Totex from the PR14 PAYG Totex to give the actual change in PAYG Totex
D47: =D$19 -> PR14 | E47: =E$19 -> PAYG Totex - 2017/18 year average CPIH deflated - Water | F47: 0 | G47: £m | H47: 56.54618974
D48: =D$44 -> PR19 | E48: =E$44 -> PAYG Totex - Water (post sensi adj) - 2017/18 year average CPIH deflated | F48: 0 | G48: £m | H48: 61.63274694
E49: Change in PAYG Totex - Water | G49: £m | H49: =H48 - H47 -> 5.086557203
B51: Calculate the PR14 PAYG Totex with PR19 PAYG% (weighted average PAYG% for WR and WN)
D52: =D$40 -> PR19 | E52: =E$40 -> Totex - net of grants and contributions - Water (post sensi adj) - 2017/18 year average CPIH deflated | F52: 0 | G52: £m | H52: 96.77760511
D53: =D$44 -> PR19 | E53: =E$44 -> PAYG Totex - Water (post sensi adj) - 2017/18 year average CPIH deflated | F53: 0 | G53: £m | H53: 61.63274694
D54: =InpC!$F$27 -> PR19 | E54: Weighted average PAYG% - active - Water | G54: % | H54: =IFERROR( H53 / H52, 0) -> 0.6368492677
D56: =D$15 -> PR14 | E56: =E$15 -> Totex - 2017/18 year average CPIH deflated - Water | F56: 0 | G56: £m | H56: 86.72462461
D57: =D$54 -> PR19 | E57: =E$54 -> Weighted average PAYG% - active - Water | F57: 0 | G57: % | H57: 0.6368492677
E58: PR14 PAYG Totex with PR19 PAYG% - Water | G58: £m | H58: =H57 * H56 -> 55.23051367
B60: Subtract the 'PR14 PAYG Totex with PR19 PAYG%' from the PR14 PAYG Totex to find the change in the PAYG Totex due to the change in the PAYG% only
D61: =D$19 -> PR14 | E61: =E$19 -> PAYG Totex - 2017/18 year average CPIH deflated - Water | F61: 0 | G61: £m | H61: 56.54618974
E62: =E$58 -> PR14 PAYG Totex with PR19 PAYG% - Water | F62: =F$58 -> 0 | G62: £m | H62: 55.23051367
E63: Change in PAYG Totex due to change in PAYG% - Water | G63: £m | H63: =H62 - H61 -> -1.315676066
B65: Subtract the impact of the change in PAYG% from the actual change in PAYG Totex to find the change in PAYG totex due to the change in Totex only
E66: =E$49 -> Change in PAYG Totex - Water | F66: =F$49 -> 0 | G66: £m | H66: 5.086557203
E67: =E$63 -> Change in PAYG Totex due to change in PAYG% - Water | F67: =F$63 -> 0 | G67: £m | H67: -1.315676066
E68: Change in PAYG Totex due to change in Totex - Water | G68: £m | H68: =H66 - H67 -> 6.402233269
B70: This section calculates the components causing the change in PAYG Totex
B71: Wastewater
C73: PR14
D74: =InpC!D$55 -> PR14 | E74: =InpC!E$55 -> Adjustment from 2012/13 year average RPI to 2017/18 year average CPIH deflated | F74: =InpC!F$55 -> 1.10501985 | G74: =InpC!G$55 -> factor | H74: =InpC!H$55 -> 0
D75: =InpAct!D88 -> PR14 | E75: =InpAct!E88 -> Totex - real - Wastewater | F75: =InpAct!F88 -> 0 | G75: =InpAct!G88 -> £m | H75: =InpAct!H88 -> 0
D76: =InpC!$F$26 -> PR14 | E76: Totex - 2017/18 year average CPIH deflated - Wastewater | G76: £m | H76: =H75 * $F74 -> 0
D78: =InpC!D$55 -> PR14 | E78: =InpC!E$55 -> Adjustment from 2012/13 year average RPI to 2017/18 year average CPIH deflated | F78: =InpC!F$55 -> 1.10501985 | G78: =InpC!G$55 -> factor | H78: =InpC!H$55 -> 0
D79: =InpAct!D$90 -> PR14 | E79: =InpAct!E$90 -> PAYG Totex - real - Wastewater | F79: =InpAct!F$90 -> 0 | G79: =InpAct!G$90 -> £m | H79: =InpAct!H$90 -> 0
D80: =InpC!$F$26 -> PR14 | E80: PAYG Totex - 2017/18 year average CPIH deflated - Wastewater | G80: £m | H80: =H79 * $F78 -> 0
C82: PR19
D83: =InpC!D$57 -> PR19 | E83: =InpC!E$57 -> CPI(H): Fin year average - inflate from base year 2017-18 average | F83: =InpC!F$57 -> 1.156617303 | G83: =InpC!G$57 -> factor | H83: =InpC!H$57 -> 0
D84: =InpAct!D$94 -> PR19 | E84: =InpAct!E$94 -> Totex - net of grants and contributions - WWN (post sensi adj) - nominal | F84: =InpAct!F$94 -> 0 | G84: =InpAct!G$94 -> £m | H84: =InpAct!H$94 -> 0
D85: =InpC!$F$27 -> PR19 | E85: Totex - net of grants and contributions - WWN (post sensi adj) - 2017/18 year average CPIH deflated | G85: £m | H85: =H84 / $F83 -> 0
D87: =InpC!D$57 -> PR19 | E87: =InpC!E$57 -> CPI(H): Fin year average - inflate from base year 2017-18 average | F87: =InpC!F$57 -> 1.156617303 | G87: =InpC!G$57 -> factor | H87: =InpC!H$57 -> 0
D88: =InpAct!D$98 -> PR19 | E88: =InpAct!E$98 -> Wastewater network: PAYG Totex - nominal | F88: =InpAct!F$98 -> 0 | G88: =InpAct!G$98 -> £m | H88: =InpAct!H$98 -> 0
D89: =InpC!$F$27 -> PR19 | E89: Wastewater network: PAYG Totex - 2017/18 year average CPIH deflated | G89: £m | H89: =H88 / $F87 -> 0
D91: =InpC!D$57 -> PR19 | E91: =InpC!E$57 -> CPI(H): Fin year average - inflate from base year 2017-18 average | F91: =InpC!F$57 -> 1.156617303 | G91: =InpC!G$57 -> factor | H91: =InpC!H$57 -> 0
D92: =InpAct!D$95 -> PR19 | E92: =InpAct!E$95 -> Totex - net of grants and contributions - BR (post sensi adj) - nominal | F92: =InpAct!F$95 -> 0 | G92: =InpAct!G$95 -> £m | H92: =InpAct!H$95 -> 0
D93: =InpC!$F$27 -> PR19 | E93: Totex - net of grants and contributions - BR (post sensi adj) - 2017/18 year average CPIH deflated | G93: £m | H93: =H92 / $F91 -> 0
D95: =InpC!D$57 -> PR19 | E95: =InpC!E$57 -> CPI(H): Fin year average - inflate from base year 2017-18 average | F95: =InpC!F$57 -> 1.156617303 | G95: =InpC!G$57 -> factor | H95: =InpC!H$57 -> 0
D96: =InpAct!D$99 -> PR19 | E96: =InpAct!E$99 -> Bio resources: PAYG Totex - nominal | F96: =InpAct!F$99 -> 0 | G96: =InpAct!G$99 -> £m | H96: =InpAct!H$99 -> 0
D97: =InpC!$F$27 -> PR19 | E97: Bio resources: PAYG Totex - 2017/18 year average CPIH deflated | G97: £m | H97: =H96 / $F95 -> 0
D99: =D$85 -> PR19 | E99: =E$85 -> Totex - net of grants and contributions - WWN (post sensi adj) - 2017/18 year average CPIH deflated | F99: 0 | G99: £m | H99: 0
D100: =D$93 -> PR19 | E100: =E$93 -> Totex - net of grants and contributions - BR (post sensi adj) - 2017/18 year average CPIH deflated | F100: 0 | G100: £m | H100: 0
D101: =InpC!$F$27 -> PR19 | E101: Totex - net of grants and contributions - Wastewater (post sensi adj) - 2017/18 year average CPIH deflated | G101: £m | H101: =SUM(H99:H100) -> 0
D103: =D$89 -> PR19 | E103: =E$89 -> Wastewater network: PAYG Totex - 2017/18 year average CPIH deflated | F103: 0 | G103: £m | H103: 0
D104: =D$97 -> PR19 | E104: =E$97 -> Bio resources: PAYG Totex - 2017/18 year average CPIH deflated | F104: 0 | G104: £m | H104: 0
D105: =InpC!$F$27 -> PR19 | E105: PAYG Totex - wastewater (post sensi adj) - 2017/18 year average CPIH deflated | G105: £m | H105: =SUM(H103:H104) -> 0
B107: Subtract the PR19 PAYG Totex from the PR14 PAYG Totex to give the actual change in PAYG Totex
E108: =InpC!E$36 -> Company type switch | F108: =InpC!F$36 -> 1 | G108: =InpC!G$36 -> 0 = WaSC, 1 = WoC
D109: =D$80 -> PR14 | E109: =E$80 -> PAYG Totex - 2017/18 year average CPIH deflated - Wastewater | F109: 0 | G109: £m | H109: 0
D110: =D$105 -> PR19 | E110: =E$105 -> PAYG Totex - wastewater (post sensi adj) - 2017/18 year average CPIH deflated | F110: 0 | G110: £m | H110: 0
E111: Change in PAYG Totex - Wastewater | G111: £m | H111: =IF(F$108 = 1, 0, H110 - H109) -> 0
B113: Calculate the PR14 PAYG Totex with PR19 PAYG% (weighted average PAYG% for BR and WWN)
E114: =InpC!E$36 -> Company type switch | F114: =InpC!F$36 -> 1 | G114: =InpC!G$36 -> 0 = WaSC, 1 = WoC
D115: =D$101 -> PR19 | E115: =E$101 -> Totex - net of grants and contributions - Wastewater (post sensi adj) - 2017/18 year average CPIH deflated | F115: 0 | G115: £m | H115: 0
D116: =D$105 -> PR19 | E116: =E$105 -> PAYG Totex - wastewater (post sensi adj) - 2017/18 year average CPIH deflated | F116: 0 | G116: £m | H116: 0
D117: =InpC!$F$27 -> PR19 | E117: Weighted average PAYG% - active - Wastewater | G117: % | H117: =IFERROR( IF(F$114 = 1, 0, H116 / H115), 0) -> 0
E119: =InpC!E$36 -> Company type switch | F119: =InpC!F$36 -> 1 | G119: =InpC!G$36 -> 0 = WaSC, 1 = WoC
D120: =D$76 -> PR14 | E120: =E$76 -> Totex - 2017/18 year average CPIH deflated - Wastewater | F120: 0 | G120: £m | H120: 0
D121: =D$117 -> PR19 | E121: =E$117 -> Weighted average PAYG% - active - Wastewater | F121: 0 | G121: % | H121: 0
E122: PR14 PAYG Totex with PR19 PAYG% - Wastewater | G122: £m | H122: =IF(F$119 = 1, 0, H121 * H120) -> 0
B124: Subtract the 'PR14 PAYG Totex with PR19 PAYG%' from the PR14 PAYG Totex to find the change in the PAYG Totex due to the change in the PAYG% only
E125: =InpC!E$36 -> Company type switch | F125: =InpC!F$36 -> 1 | G125: =InpC!G$36 -> 0 = WaSC, 1 = WoC
D126: =D$80 -> PR14 | E126: =E$80 -> PAYG Totex - 2017/18 year average CPIH deflated - Wastewater | F126: 0 | G126: £m | H126: 0
E127: =E$122 -> PR14 PAYG Totex with PR19 PAYG% - Wastewater | F127: =F$122 -> 0 | G127: £m | H127: 0
E128: Change in PAYG Totex due to change in PAYG% - Wastewater | G128: £m | H128: =IF(F$125 = 1, 0, H127 - H126) -> 0
B130: Subtract the impact of the change in PAYG% from the actual change in PAYG Totex to find the change in PAYG totex due to the change in Totex only
E131: =InpC!E$36 -> Company type switch | F131: =InpC!F$36 -> 1 | G131: =InpC!G$36 -> 0 = WaSC, 1 = WoC
E132: =E$111 -> Change in PAYG Totex - Wastewater | F132: =F$111 -> 0 | G132: £m | H132: 0
E133: =E$128 -> Change in PAYG Totex due to change in PAYG% - Wastewater | F133: =F$128 -> 0 | G133: £m | H133: 0
E134: Change in PAYG Totex due to change in Totex - Wastewater | G134: £m | H134: =IF(F$131 = 1, 0, H132 - H133) -> 0
B136: Summary
B137: Gather together the components of the change in PAYG Totex for water and wastewater.
E138: =E$63 -> Change in PAYG Totex due to change in PAYG% - Water | F138: =F$63 -> 0 | G138: £m | H138: -1.315676066
E139: =E$128 -> Change in PAYG Totex due to change in PAYG% - Wastewater | F139: =F$128 -> 0 | G139: £m | H139: 0
E140: Change in PAYG Totex due to change in PAYG% | G140: £m | H140: =SUM(H138:H139) -> -1.315676066 | J140: 2017/18 year average CPIH deflated
E142: =E$68 -> Change in PAYG Totex due to change in Totex - Water | F142: =F$68 -> 0 | G142: £m | H142: 6.402233269
E143: =E$134 -> Change in PAYG Totex due to change in Totex - Wastewater | F143: =F$134 -> 0 | G143: £m | H143: 0
E144: Change in PAYG Totex due to change in Totex | G144: £m | H144: =SUM(H142:H143) -> 6.402233269 | J144: 2017/18 year average CPIH deflated
B146: Checks
D147: =D$19 -> PR14 | E147: =E$19 -> PAYG Totex - 2017/18 year average CPIH deflated - Water | F147: 0 | G147: £m | H147: 56.54618974
D148: =D$44 -> PR19 | E148: =E$44 -> PAYG Totex - Water (post sensi adj) - 2017/18 year average CPIH deflated | F148: 0 | G148: £m | H148: 61.63274694
E149: =E$138 -> Change in PAYG Totex due to change in PAYG% - Water | F149: =F$138 -> 0 | G149: £m | H149: -1.315676066
E150: =E$142 -> Change in PAYG Totex due to change in Totex - Water | F150: =F$142 -> 0 | G150: £m | H150: 6.402233269
E151: Change in Water PAYG Totex check | G151: check | H151: =IF(ABS( (H148 - H147) - (H149 + H150) ) > InpC!$F$10, 1, 0) -> 0
E153: =InpC!E$36 -> Company type switch | F153: =InpC!F$36 -> 1 | G153: =InpC!G$36 -> 0 = WaSC, 1 = WoC
D154: =D$80 -> PR14 | E154: =E$80 -> PAYG Totex - 2017/18 year average CPIH deflated - Wastewater | F154: 0 | G154: £m | H154: 0
D155: =D$105 -> PR19 | E155: =E$105 -> PAYG Totex - wastewater (post sensi adj) - 2017/18 year average CPIH deflated | F155: 0 | G155: £m | H155: 0
E156: =E$139 -> Change in PAYG Totex due to change in PAYG% - Wastewater | F156: =F$139 -> 0 | G156: £m | H156: 0
E157: =E$143 -> Change in PAYG Totex due to change in Totex - Wastewater | F157: =F$143 -> 0 | G157: £m | H157: 0
E158: Change in Wastewater PAYG Totex check | G158: check | H158: =IF(ABS( (H155 - H154) - (H156 + H157) ) > InpC!$F$10, 1, 0) - $F153 -> -1
A161: End of sheet

Sheet Wholesale
A1: =RIGHT(CELL("filename", $A$1), LEN(CELL("filename", $A$1)) - SEARCH("]", CELL("filename", $A$1))) -> Wholesale | F1: =Check!F2 -> -3 | G1: Error chks
F2: =Check!F3 -> 62 | G2: Track checks
F5: Constant | G5: Unit | H5: Value | J5: Note
A7: WHOLESALE: Change in bill due to change in OTHER ITEMS
B9: Change in revenue re-profiling
D10: =InpAct!D$48 -> PR14 | E10: =InpAct!E$48 -> Revenue requirement including tax charge - real - water | F10: =InpAct!F$48 -> 0 | G10: =InpAct!G$48 -> £m | H10: =InpAct!H$48 -> 89.33607039
D11: =InpAct!D$49 -> PR14 | E11: =InpAct!E$49 -> Phase 9: Re-profiled allowed revenue - real - water | F11: =InpAct!F$49 -> 0 | G11: =InpAct!G$49 -> £m | H11: =InpAct!H$49 -> 89.33607039
D12: =InpC!$F$26 -> PR14 | E12: Impact of re-profiling of revenue requirement - real - water | G12: £m | H12: =H11 - H10 -> 0
D14: =InpAct!D$50 -> PR14 | E14: =InpAct!E$50 -> Revenue requirement including tax charge - real - wastewater | F14: =InpAct!F$50 -> 0 | G14: =InpAct!G$50 -> £m | H14: =InpAct!H$50 -> 0
D15: =InpAct!D$51 -> PR14 | E15: =InpAct!E$51 -> Phase 9: Re-profiled allowed revenue - real - wastewater | F15: =InpAct!F$51 -> 0 | G15: =InpAct!G$51 -> £m | H15: =InpAct!H$51 -> 0
D16: =InpC!$F$26 -> PR14 | E16: Impact of re-profiling of revenue requirement - real - wastewater | G16: £m | H16: =H15 - H14 -> 0
D18: =InpAct!D$63 -> PR19 | E18: =InpAct!E$63 -> Impact of re-profiling of allowed revenue - WR - real | F18: =InpAct!F$63 -> 0 | G18: =InpAct!G$63 -> £m | H18: =InpAct!H$63 -> 0
D19: =InpAct!D$67 -> PR19 | E19: =InpAct!E$67 -> Impact of re-profiling of allowed revenue - WN - real | F19: =InpAct!F$67 -> 0 | G19: =InpAct!G$67 -> £m | H19: =InpAct!H$67 -> 0
D20: =InpAct!D$71 -> PR19 | E20: =InpAct!E$71 -> Impact of re-profiling of allowed revenue - WWN - real | F20: =InpAct!F$71 -> 0 | G20: =InpAct!G$71 -> £m | H20: =InpAct!H$71 -> 0
D21: =InpAct!D$75 -> PR19 | E21: =InpAct!E$75 -> Impact of re-profiling of allowed revenue - BR - real | F21: =InpAct!F$75 -> 0 | G21: =InpAct!G$75 -> £m | H21: =InpAct!H$75 -> 0
D22: =InpC!$F$27 -> PR19 | E22: Impact of re-profiling of allowed revenue - real | G22: £m | H22: =SUM(H18:H21) -> 0
B24: Change in bill due to change in other wholesale items
D25: =InpC!D$55 -> PR14 | E25: =InpC!E$55 -> Adjustment from 2012/13 year average RPI to 2017/18 year average CPIH deflated | F25: =InpC!F$55 -> 1.10501985 | G25: =InpC!G$55 -> factor | H25: =InpC!H$55 -> 0
D26: =InpAct!D$287 -> PR14 | E26: =InpAct!E$287 -> Tax charge - real - water | F26: =InpAct!F$287 -> 0 | G26: =InpAct!G$287 -> £m | H26: =InpAct!H$287 -> 1.557436291
D27: =InpAct!D$288 -> PR14 | E27: =InpAct!E$288 -> Pension deficit repair allowance - real - water | F27: =InpAct!F$288 -> 0 | G27: =InpAct!G$288 -> £m | H27: =InpAct!H$288 -> 1.356617434
C28: less | D28: =InpAct!D$289 -> PR14 | E28: =InpAct!E$289 -> Other income (incl 3rd party income) - real - water | F28: =InpAct!F$289 -> 0 | G28: =InpAct!G$289 -> £m | H28: =InpAct!H$289 -> -1.627015641
D29: =InpAct!D$291 -> PR14 | E29: =InpAct!E$291 -> Tax charge - real - wastewater | F29: =InpAct!F$291 -> 0 | G29: =InpAct!G$291 -> £m | H29: =InpAct!H$291 -> 0
D30: =InpAct!D$292 -> PR14 | E30: =InpAct!E$292 -> Pension deficit repair allowance - real - wastewater | F30: =InpAct!F$292 -> 0 | G30: =InpAct!G$292 -> £m | H30: =InpAct!H$292 -> 0
C31: less | D31: =InpAct!D$293 -> PR14 | E31: =InpAct!E$293 -> Other income (incl 3rd party income) - real - wastewater | F31: =InpAct!F$293 -> 0 | G31: =InpAct!G$293 -> £m | H31: =InpAct!H$293 -> 0
D32: =D$12 -> PR14 | E32: =E$12 -> Impact of re-profiling of revenue requirement - real - water | F32: 0 | G32: £m | H32: 0
D33: =D$16 -> PR14 | E33: =E$16 -> Impact of re-profiling of revenue requirement - real - wastewater | F33: 0 | G33: £m | H33: 0
D34: =InpC!$F$26 -> PR14 | E34: Total of Other Wholesale Items - 2017/18 year average CPIH deflated | G34: £m | H34: =SUM(H26:H33) * $F25 -> 1.42220263
D36: =InpAct!D$297 -> PR19 | E36: =InpAct!E$297 -> 0 | F36: =InpAct!F$297 -> 0 | G36: =InpAct!G$297 -> 0 | H36: =InpAct!H$297 -> 0
D37: =InpAct!D$295 -> PR19 | E37: =InpAct!E$295 -> Wholesale Water resources service defined benefit pension deficit recovery per IN13/17 - real | F37: =InpAct!F$295 -> 0 | G37: =InpAct!G$295 -> £m | H37: =InpAct!H$295 -> 0
D38: =InpAct!D$296 -> PR19 | E38: =InpAct!E$296 -> Total direct procurement from customers - infrastructure cost - WR - real | F38: =InpAct!F$296 -> 0 | G38: =InpAct!G$296 -> £m | H38: =InpAct!H$296 -> 0
C39: less | D39: =InpAct!D$298 -> PR19 | E39: =InpAct!E$298 -> Third party & principle service revenues - WR - real | F39: =InpAct!F$298 -> 0 | G39: =InpAct!G$298 -> £m | H39: =InpAct!H$298 -> 0
D40: =InpAct!D$302 -> PR19 | E40: =InpAct!E$302 -> 0 | F40: =InpAct!F$302 -> 0 | G40: =InpAct!G$302 -> 0 | H40: =InpAct!H$302 -> 0
D41: =InpAct!D$300 -> PR19 | E41: =InpAct!E$300 -> Wholesale Water network service defined benefit pension deficit recovery per IN13/17 - real | F41: =InpAct!F$300 -> 0 | G41: =InpAct!G$300 -> £m | H41: =InpAct!H$300 -> 0.103755412
D42: =InpAct!D$301 -> PR19 | E42: =InpAct!E$301 -> Total direct procurement from customers - infrastructure cost - WN - real | F42: =InpAct!F$301 -> 0 | G42: =InpAct!G$301 -> £m | H42: =InpAct!H$301 -> 0
C43: less | D43: =InpAct!D$303 -> PR19 | E43: =InpAct!E$303 -> Third party & principle service revenues - WN - real | F43: =InpAct!F$303 -> 0 | G43: =InpAct!G$303 -> £m | H43: =InpAct!H$303 -> -1.841
D44: =InpC!$F$27 -> PR19 | E44: Other Wholesale Items - Water - real | G44: £m | H44: =SUM(H36:H43) -> -1.737244588
E46: =InpC!E$36 -> Company type switch | F46: =InpC!F$36 -> 1 | G46: =InpC!G$36 -> 0 = WaSC, 1 = WoC
D47: =InpAct!D$307 -> PR19 | E47: =InpAct!E$307 -> 0 | F47: =InpAct!F$307 -> 0 | G47: =InpAct!G$307 -> 0 | H47: =InpAct!H$307 -> 0
D48: =InpAct!D$305 -> PR19 | E48: =InpAct!E$305 -> Wholesale Wastewater network service defined benefit pension deficit recovery per IN13/17 - real | F48: =InpAct!F$305 -> 0 | G48: =InpAct!G$305 -> £m | H48: =InpAct!H$305 -> 0
D49: =InpAct!D$306 -> PR19 | E49: =InpAct!E$306 -> Total direct procurement from customers - infrastructure cost - WWN - real | F49: =InpAct!F$306 -> 0 | G49: =InpAct!G$306 -> £m | H49: =InpAct!H$306 -> 0
C50: less | D50: =InpAct!D$308 -> PR19 | E50: =InpAct!E$308 -> Third party & principle service revenues - WWN - real | F50: =InpAct!F$308 -> 0 | G50: =InpAct!G$308 -> £m | H50: =InpAct!H$308 -> 0
D51: =InpAct!D$312 -> PR19 | E51: =InpAct!E$312 -> Return on RCV additions - BR - real | F51: =InpAct!F$312 -> 0 | G51: =InpAct!G$312 -> £m | H51: =InpAct!H$312 -> 0
D52: =InpAct!D$310 -> PR19 | E52: =InpAct!E$310 -> Wholesale Bio resources service defined benefit pension deficit recovery per IN13/17 - real | F52: =InpAct!F$310 -> 0 | G52: =InpAct!G$310 -> £m | H52: =InpAct!H$310 -> 0
D53: =InpAct!D$311 -> PR19 | E53: =InpAct!E$311 -> Total direct procurement from customers - infrastructure cost - BR - real | F53: =InpAct!F$311 -> 0 | G53: =InpAct!G$311 -> £m | H53: =InpAct!H$311 -> 0
C54: less | D54: =InpAct!D$313 -> PR19 | E54: =InpAct!E$313 -> Third party & principle service revenues - BR - real | F54: =InpAct!F$313 -> 0 | G54: =InpAct!G$313 -> £m | H54: =InpAct!H$313 -> 0
D55: =InpC!$F$27 -> PR19 | E55: Other Wholesale Items - Wastewater - real | G55: £m | H55: =IF($F46 = 1, 0, SUM(H47:H54) ) -> 0
D57: =D$44 -> PR19 | E57: =E$44 -> Other Wholesale Items - Water - real | F57: 0 | G57: £m | H57: -1.737244588
D58: =D$55 -> PR19 | E58: =E$55 -> Other Wholesale Items - Wastewater - real | F58: 0 | G58: £m | H58: 0
D59: =D$22 -> PR19 | E59: =E$22 -> Impact of re-profiling of allowed revenue - real | F59: 0 | G59: £m | H59: 0
D60: =InpC!$F$27 -> PR19 | E60: Total of Other Wholesale Items - real | G60: £m | H60: =SUM(H57:H59) -> -1.737244588
D62: =D$34 -> PR14 | E62: =E$34 -> Total of Other Wholesale Items - 2017/18 year average CPIH deflated | F62: 0 | G62: £m | H62: 1.42220263
D63: =D$60 -> PR19 | E63: =E$60 -> Total of Other Wholesale Items - real | F63: 0 | G63: £m | H63: -1.737244588
E64: Change in other wholesale items | G64: £m | H64: =H63-H62 -> -3.159447218 | J64: 2017/18 year average CPIH deflated
A67: End of sheet

Sheet Reconciliation
A1: =RIGHT(CELL("filename", $A$1), LEN(CELL("filename", $A$1)) - SEARCH("]", CELL("filename", $A$1))) -> Reconciliation | F1: =Check!F2 -> -3 | G1: Error chks
F2: =Check!F3 -> 62 | G2: Track checks
F5: Constant | G5: Unit | H5: Value | J5: Note
A7: WHOLESALE: Change in bill due to change in RECONCILIATION ITEMS
B9: Sum the PR14 wholesale reconciliation items (there are no retail reconciliation items for PR14)
D10: =InpC!D$55 -> PR14 | E10: =InpC!E$55 -> Adjustment from 2012/13 year average RPI to 2017/18 year average CPIH deflated | F10: =InpC!F$55 -> 1.10501985 | G10: =InpC!G$55 -> factor | H10: =InpC!H$55 -> 0
D11: =InpAct!D318 -> PR14 | E11: =InpAct!E318 -> SIM adjustment (+ or -) - real - Water | F11: =InpAct!F318 -> 0 | G11: =InpAct!G318 -> £m | H11: =InpAct!H318 -> 0.5662199218
D12: =InpAct!D319 -> PR14 | E12: =InpAct!E319 -> Opex incentive allowance (+ only) - real - Water | F12: =InpAct!F319 -> 0 | G12: =InpAct!G319 -> £m | H12: =InpAct!H319 -> 0
D13: =InpAct!D320 -> PR14 | E13: =InpAct!E320 -> CIS adjustment (+ or -) - real - Water | F13: =InpAct!F320 -> 0 | G13: =InpAct!G320 -> £m | H13: =InpAct!H320 -> 0
D14: =InpAct!D321 -> PR14 | E14: =InpAct!E321 -> RCM adjustment (+ or -) - real - Water | F14: =InpAct!F321 -> 0 | G14: =InpAct!G321 -> £m | H14: =InpAct!H321 -> 2.437230089
D15: =InpAct!D322 -> PR14 | E15: =InpAct!E322 -> Equity injection clawback (- only) - real - Water | F15: =InpAct!F322 -> 0 | G15: =InpAct!G322 -> £m | H15: =InpAct!H322 -> 0
D16: =InpAct!D323 -> PR14 | E16: =InpAct!E323 -> Tax refinancing benefit clawback (- only) - real - Water | F16: =InpAct!F323 -> 0 | G16: =InpAct!G323 -> £m | H16: =InpAct!H323 -> 0
D17: =InpAct!D324 -> PR14 | E17: =InpAct!E324 -> Outcome delivery incentive (+ or -) - real - Water | F17: =InpAct!F324 -> 0 | G17: =InpAct!G324 -> £m | H17: =InpAct!H324 -> 0
D18: =InpAct!D325 -> PR14 | E18: =InpAct!E325 -> Totex menu additional income (+ or -) - real - Water | F18: =InpAct!F325 -> 0 | G18: =InpAct!G325 -> £m | H18: =InpAct!H325 -> -0.3135526289
D19: =InpAct!D326 -> PR14 | E19: =InpAct!E326 -> Other tax adjustments (+ or -) Value Chosen - real - Water | F19: =InpAct!F326 -> 0 | G19: =InpAct!G326 -> £m | H19: =InpAct!H326 -> 0
D20: =InpAct!D327 -> PR14 | E20: =InpAct!E327 -> Other adjustments (+ or -) Value Chosen - real - Water | F20: =InpAct!F327 -> 0 | G20: =InpAct!G327 -> £m | H20: =InpAct!H327 -> 0
D21: =InpAct!D330 -> PR14 | E21: =InpAct!E330 -> SIM adjustment (+ or -) - real - Wastewater | F21: =InpAct!F330 -> 0 | G21: =InpAct!G330 -> £m | H21: =InpAct!H330 -> 0
D22: =InpAct!D331 -> PR14 | E22: =InpAct!E331 -> Opex incentive allowance (+ only) - real - Wastewater | F22: =InpAct!F331 -> 0 | G22: =InpAct!G331 -> £m | H22: =InpAct!H331 -> 0
D23: =InpAct!D332 -> PR14 | E23: =InpAct!E332 -> CIS adjustment (+ or -) - real - Wastewater | F23: =InpAct!F332 -> 0 | G23: =InpAct!G332 -> £m | H23: =InpAct!H332 -> 0
D24: =InpAct!D333 -> PR14 | E24: =InpAct!E333 -> RCM adjustment (+ or -) - real - Wastewater | F24: =InpAct!F333 -> 0 | G24: =InpAct!G333 -> £m | H24: =InpAct!H333 -> 0
D25: =InpAct!D334 -> PR14 | E25: =InpAct!E334 -> Equity injection clawback (- only) - real - Wastewater | F25: =InpAct!F334 -> 0 | G25: =InpAct!G334 -> £m | H25: =InpAct!H334 -> 0
D26: =InpAct!D335 -> PR14 | E26: =InpAct!E335 -> Tax refinancing benefit clawback (- only) - real - Wastewater | F26: =InpAct!F335 -> 0 | G26: =InpAct!G335 -> £m | H26: =InpAct!H335 -> 0
D27: =InpAct!D336 -> PR14 | E27: =InpAct!E336 -> Outcome delivery incentive (+ or -) - real - Wastewater | F27: =InpAct!F336 -> 0 | G27: =InpAct!G336 -> £m | H27: =InpAct!H336 -> 0
D28: =InpAct!D337 -> PR14 | E28: =InpAct!E337 -> Totex menu additional income (+ or -) - real - Wastewater | F28: =InpAct!F337 -> 0 | G28: =InpAct!G337 -> £m | H28: =InpAct!H337 -> 0
D29: =InpAct!D338 -> PR14 | E29: =InpAct!E338 -> Other tax adjustments (+ or -) Value Chosen - real - Wastewater | F29: =InpAct!F338 -> 0 | G29: =InpAct!G338 -> £m | H29: =InpAct!H338 -> 0
D30: =InpAct!D339 -> PR14 | E30: =InpAct!E339 -> Other adjustments (+ or -) Value Chosen - real - Wastewater | F30: =InpAct!F339 -> 0 | G30: =InpAct!G339 -> £m | H30: =InpAct!H339 -> 0
D31: =InpC!$F$26 -> PR14 | E31: PR14 reconciliation items - 2017/18 year average CPIH deflated | G31: £m | H31: =SUM(H11:H30) * $F10 -> 2.972390003
B33: Sum the PR19 wholesale reconciliation items (the retail SIM adjustment is dealt with on sheet 'Summary_Calc')
D34: =InpAct!D342 -> PR19 | E34: =InpAct!E342 -> Water resources - End of Period ODIs (+ or -) Value Chosen - active - real | F34: =InpAct!F342 -> 0 | G34: =InpAct!G342 -> £m | H34: =InpAct!H342 -> 0
D35: =InpAct!D343 -> PR19 | E35: =InpAct!E343 -> Water resources - In period ODIs (+ or -) Value Chosen - active - real | F35: =InpAct!F343 -> 0 | G35: =InpAct!G343 -> £m | H35: =InpAct!H343 -> 0
D36: =InpAct!D344 -> PR19 | E36: =InpAct!E344 -> Water resources - Totex (+ or -) Value Chosen - active - adjusted - real | F36: =InpAct!F344 -> 0 | G36: =InpAct!G344 -> £m | H36: =InpAct!H344 -> 0
D37: =InpAct!D345 -> PR19 | E37: =InpAct!E345 -> Water resources - WRFIM (+ or -) Value Chosen - active - adjusted - real | F37: =InpAct!F345 -> 0 | G37: =InpAct!G345 -> £m | H37: =InpAct!H345 -> 0
D38: =InpAct!D346 -> PR19 | E38: =InpAct!E346 -> Water resources - Residential retail mechanism (+ or -) Value Chosen - active - real | F38: =InpAct!F346 -> 0 | G38: =InpAct!G346 -> £m | H38: =InpAct!H346 -> 0
D39: =InpAct!D347 -> PR19 | E39: =InpAct!E347 -> Water resources - Blind year (+ or -) Value Chosen - active - real | F39: =InpAct!F347 -> 0 | G39: =InpAct!G347 -> £m | H39: =InpAct!H347 -> 0
D40: =InpAct!D348 -> PR19 | E40: =InpAct!E348 -> Water resources - Water trading incentive (+ or -) Value Chosen - active - real | F40: =InpAct!F348 -> 0 | G40: =InpAct!G348 -> £m | H40: =InpAct!H348 -> 0
D41: =InpAct!D349 -> PR19 | E41: =InpAct!E349 -> Water network - End of Period ODIs (+ or -) Value Chosen - active - real | F41: =InpAct!F349 -> 0 | G41: =InpAct!G349 -> £m | H41: =InpAct!H349 -> 0.7634832656
D42: =InpAct!D350 -> PR19 | E42: =InpAct!E350 -> Water network - In period ODIs (+ or -) Value Chosen - active - real | F42: =InpAct!F350 -> 0 | G42: =InpAct!G350 -> £m | H42: =InpAct!H350 -> 0
D43: =InpAct!D351 -> PR19 | E43: =InpAct!E351 -> Water network - Totex (+ or -) Value Chosen - active - adjusted - real | F43: =InpAct!F351 -> 0 | G43: =InpAct!G351 -> £m | H43: =InpAct!H351 -> -0.06837624956
D44: =InpAct!D352 -> PR19 | E44: =InpAct!E352 -> Water network - WRFIM (+ or -) Value Chosen - active - adjusted - real | F44: =InpAct!F352 -> 0 | G44: =InpAct!G352 -> £m | H44: =InpAct!H352 -> -0.3678763441
D45: =InpAct!D353 -> PR19 | E45: =InpAct!E353 -> Water network - Residential retail mechanism (+ or -) Value Chosen - active - real | F45: =InpAct!F353 -> 0 | G45: =InpAct!G353 -> £m | H45: =InpAct!H353 -> 0
D46: =InpAct!D354 -> PR19 | E46: =InpAct!E354 -> Water network - Blind year (+ or -) Value Chosen - active - real | F46: =InpAct!F354 -> 0 | G46: =InpAct!G354 -> £m | H46: =InpAct!H354 -> 0
D47: =InpAct!D355 -> PR19 | E47: =InpAct!E355 -> Water network - Water trading incentive (+ or -) Value Chosen - active - real | F47: =InpAct!F355 -> 0 | G47: =InpAct!G355 -> £m | H47: =InpAct!H355 -> 0
D48: =InpAct!D358 -> PR19 | E48: =InpAct!E358 -> Wastewater network - End of Period ODIs (+ or -) Value Chosen - active - real | F48: =InpAct!F358 -> 0 | G48: =InpAct!G358 -> £m | H48: =InpAct!H358 -> 0
D49: =InpAct!D359 -> PR19 | E49: =InpAct!E359 -> Wastewater network - In period ODIs (+ or -) Value Chosen - active - real | F49: =InpAct!F359 -> 0 | G49: =InpAct!G359 -> £m | H49: =InpAct!H359 -> 0
D50: =InpAct!D360 -> PR19 | E50: =InpAct!E360 -> Wastewater network - Totex (+ or -) Value Chosen - active - adjusted - real | F50: =InpAct!F360 -> 0 | G50: =InpAct!G360 -> £m | H50: =InpAct!H360 -> 0
D51: =InpAct!D361 -> PR19 | E51: =InpAct!E361 -> Wastewater network - WRFIM (+ or -) Value Chosen - active - adjusted - real | F51: =InpAct!F361 -> 0 | G51: =InpAct!G361 -> £m | H51: =InpAct!H361 -> 0
D52: =InpAct!D362 -> PR19 | E52: =InpAct!E362 -> Wastewater network - Residential retail mechanism (+ or -) Value Chosen - active - real | F52: =InpAct!F362 -> 0 | G52: =InpAct!G362 -> £m | H52: =InpAct!H362 -> 0
D53: =InpAct!D363 -> PR19 | E53: =InpAct!E363 -> Wastewater network - Blind year (+ or -) Value Chosen - active - real | F53: =InpAct!F363 -> 0 | G53: =InpAct!G363 -> £m | H53: =InpAct!H363 -> 0
D54: =InpAct!D364 -> PR19 | E54: =InpAct!E364 -> Wastewater network - Water trading incentive (+ or -) Value Chosen - active - real | F54: =InpAct!F364 -> 0 | G54: =InpAct!G364 -> £m | H54: =InpAct!H364 -> 0
D55: =InpAct!D365 -> PR19 | E55: =InpAct!E365 -> Bio resources - End of Period ODIs (+ or -) Value Chosen - active - real | F55: =InpAct!F365 -> 0 | G55: =InpAct!G365 -> £m | H55: =InpAct!H365 -> 0
D56: =InpAct!D366 -> PR19 | E56: =InpAct!E366 -> Bio resources - In period ODIs (+ or -) Value Chosen - active - real | F56: =InpAct!F366 -> 0 | G56: =InpAct!G366 -> £m | H56: =InpAct!H366 -> 0
D57: =InpAct!D367 -> PR19 | E57: =InpAct!E367 -> Bio resources - Totex (+ or -) Value Chosen - active - adjusted - real | F57: =InpAct!F367 -> 0 | G57: =InpAct!G367 -> £m | H57: =InpAct!H367 -> 0
D58: =InpAct!D368 -> PR19 | E58: =InpAct!E368 -> Bio resources - WRFIM (+ or -) Value Chosen - active - adjusted - real | F58: =InpAct!F368 -> 0 | G58: =InpAct!G368 -> £m | H58: =InpAct!H368 -> 0
D59: =InpAct!D369 -> PR19 | E59: =InpAct!E369 -> Bio resources - Residential retail mechanism (+ or -) Value Chosen - active - real | F59: =InpAct!F369 -> 0 | G59: =InpAct!G369 -> £m | H59: =InpAct!H369 -> 0
D60: =InpAct!D370 -> PR19 | E60: =InpAct!E370 -> Bio resources - Blind year (+ or -) Value Chosen - active - real | F60: =InpAct!F370 -> 0 | G60: =InpAct!G370 -> £m | H60: =InpAct!H370 -> 0
D61: =InpAct!D371 -> PR19 | E61: =InpAct!E371 -> Bio resources - Water trading incentive (+ or -) Value Chosen - active - real | F61: =InpAct!F371 -> 0 | G61: =InpAct!G371 -> £m | H61: =InpAct!H371 -> 0
D62: =InpC!$F$27 -> PR19 | E62: PR19 wholesale reconciliation items - real | G62: £m | H62: =SUM(H34:H61) -> 0.327230672
D64: =D$31 -> PR14 | E64: =E$31 -> PR14 reconciliation items - 2017/18 year average CPIH deflated | F64: 0 | G64: £m | H64: 2.972390003
D65: =D$62 -> PR19 | E65: =E$62 -> PR19 wholesale reconciliation items - real | F65: 0 | G65: £m | H65: 0.327230672
E66: Change in wholesale reconciliation items | G66: £m | H66: =H65 - H64 -> -2.645159331 | J66: 2017/18 year average CPIH deflated
A69: End of sheet

Sheet Retail
A1: =RIGHT(CELL("filename", $A$1), LEN(CELL("filename", $A$1)) - SEARCH("]", CELL("filename", $A$1))) -> Retail | F1: =Check!F2 -> -3 | G1: Error chks
F2: =Check!F3 -> 62 | G2: Track checks
F5: Constant | G5: Unit | H5: Value | J5: Note
A7: RETAIL: Change in bill due to change in COST TO SERVE
B9: Change in bill due to change in retail CTS
B11: Note: In the PR14 model wholesale prices are indexed but retail prices are not indexed.
E12: =InpC!E$36 -> Company type switch | F12: =InpC!F$36 -> 1 | G12: =InpC!G$36 -> 0 = WaSC, 1 = WoC
D13: =InpAct!D$35 -> PR14 | E13: =InpAct!E$35 -> Retail allowed revenue per customer: single service | F13: =InpAct!F$35 -> 0 | G13: =InpAct!G$35 -> £ | H13: =InpAct!H$35 -> 25.17048097
D14: =InpAct!D$36 -> PR14 | E14: =InpAct!E$36 -> Retail allowed revenue per customer: joint services | F14: =InpAct!F$36 -> 0 | G14: =InpAct!G$36 -> £ | H14: =InpAct!H$36 -> 0
D15: =InpC!$F$26 -> PR14 | E15: Retail allowed revenue per customer | G15: £ | H15: =IF(F$12 = 1, H13, H14) -> 25.17048097
E17: =InpC!E$36 -> Company type switch | F17: =InpC!F$36 -> 1 | G17: =InpC!G$36 -> 0 = WaSC, 1 = WoC
D18: =InpAct!D$38 -> PR19 | E18: =InpAct!E$38 -> Residentials connected for water or sewerage | F18: =InpAct!F$38 -> 0 | G18: =InpAct!G$38 -> 000s | H18: =InpAct!H$38 -> 16.77083029
D19: =InpAct!D39 -> PR19 | E19: =InpAct!E39 -> 0 | F19: =InpAct!F39 -> 0 | G19: =InpAct!G39 -> 0 | H19: =InpAct!H39 -> 0
D20: =InpC!$F$27 -> PR19 | E20: Retail allowed revenue per customer | G20: £ | H20: =IF(F$17 = 1, H18, H19) -> 16.77083029
D22: =D$15 -> PR14 | E22: =E$15 -> Retail allowed revenue per customer | F22: 0 | G22: £ | H22: 25.17048097
D23: =D$20 -> PR19 | E23: =E$20 -> Retail allowed revenue per customer | F23: 0 | G23: £ | H23: 16.77083029
E24: Change in retail CTS | G24: £ | H24: =H23-H22 -> -8.399650679 | J24: 2017/18 year average CPIH deflated
A27: End of sheet

Sheet Customers
A1: =RIGHT(CELL("filename", $A$1), LEN(CELL("filename", $A$1)) - SEARCH("]", CELL("filename", $A$1))) -> Customers | F1: =Check!F2 -> -3 | G1: Error chks
F2: =Check!F3 -> 62 | G2: Track checks
F5: Constant | G5: Unit | H5: Value | J5: Note
A7: WHOLESALE: Change in bill due to change in CUSTOMER NUMBERS and APPORTIONMENT
B9: Change in bill due to change in customer numbers
B10: This section calculates the PR14 customer numbers and indexes the allowed revenue
C11: =InpC!$F$26 -> PR14
D12: =InpAct!D$22 -> PR14 | E12: =InpAct!E$22 -> Households connected for water and wastewater - unmetered | F12: =InpAct!F$22 -> 0 | G12: =InpAct!G$22 -> 000s | H12: =InpAct!H$22 -> 0
D13: =InpAct!D$23 -> PR14 | E13: =InpAct!E$23 -> Households connected for water and wastewater - metered | F13: =InpAct!F$23 -> 0 | G13: =InpAct!G$23 -> 000s | H13: =InpAct!H$23 -> 0
D14: =InpC!$F$26 -> PR14 | E14: Total households - Water & Wastewater | G14: 000s | H14: =SUM(H12:H13) -> 0
D16: =InpAct!D$18 -> PR14 | E16: =InpAct!E$18 -> Water: Number of unmeasured households | F16: =InpAct!F$18 -> 0 | G16: =InpAct!G$18 -> 000s | H16: =InpAct!H$18 -> 348.4560745
D17: =InpAct!D$19 -> PR14 | E17: =InpAct!E$19 -> Water: Number of measured households | F17: =InpAct!F$19 -> 0 | G17: =InpAct!G$19 -> 000s | H17: =InpAct!H$19 -> 321.6737614
D18: =InpC!$F$26 -> PR14 | E18: Total households - Water only | G18: 000s | H18: =SUM(H16:H17) -> 670.1298359
D20: =InpAct!D$20 -> PR14 | E20: =InpAct!E$20 -> Wastewater: Number of unmeasured households | F20: =InpAct!F$20 -> 0 | G20: =InpAct!G$20 -> 000s | H20: =InpAct!H$20 -> 0
D21: =InpAct!D$21 -> PR14 | E21: =InpAct!E$21 -> Wastewater: Number of measured households with standing charge | F21: =InpAct!F$21 -> 0 | G21: =InpAct!G$21 -> 000s | H21: =InpAct!H$21 -> 0
D22: =InpC!$F$26 -> PR14 | E22: Total households - Wastewater only | G22: 000s | H22: =SUM(H20:H21) -> 0
D24: =D$14 -> PR14 | E24: =E$14 -> Total households - Water & Wastewater | F24: 0 | G24: 000s | H24: 0
D25: =D$18 -> PR14 | E25: =E$18 -> Total households - Water only | F25: 0 | G25: 000s | H25: 670.1298359
D26: =InpC!$F$26 -> PR14 | E26: Total households - Water | G26: 000s | H26: =SUM(H24:H25) -> 670.1298359
D28: =D$14 -> PR14 | E28: =E$14 -> Total households - Water & Wastewater | F28: 0 | G28: 000s | H28: 0
D29: =D$22 -> PR14 | E29: =E$22 -> Total households - Wastewater only | F29: 0 | G29: 000s | H29: 0
D30: =InpC!$F$26 -> PR14 | E30: Total households - Wastewater | G30: 000s | H30: =SUM(H28:H29) -> 0
D32: =InpC!D$55 -> PR14 | E32: =InpC!E$55 -> Adjustment from 2012/13 year average RPI to 2017/18 year average CPIH deflated | F32: =InpC!F$55 -> 1.10501985 | G32: =InpC!G$55 -> factor | H32: =InpC!H$55 -> 0
D33: =InpAct!D$45 -> PR14 | E33: =InpAct!E$45 -> Wholesale water allowed revenue per customer excluding capital connection charges, other income and operating income | F33: =InpAct!F$45 -> 0 | G33: =InpAct!G$45 -> £ | H33: =InpAct!H$45 -> 104.1742303
D34: =InpC!$F$26 -> PR14 | E34: Wholesale water allowed revenue per customer - 2017/18 year average CPIH deflated - water | G34: £m | H34: =H33 * $F32 -> 115.1145924
D36: =InpC!D$55 -> PR14 | E36: =InpC!E$55 -> Adjustment from 2012/13 year average RPI to 2017/18 year average CPIH deflated | F36: =InpC!F$55 -> 1.10501985 | G36: =InpC!G$55 -> factor | H36: =InpC!H$55 -> 0
D37: =InpAct!D$46 -> PR14 | E37: =InpAct!E$46 -> Wholesale Wastewater allowed revenue per customer excluding capital connection charges, other income and operating income | F37: =InpAct!F$46 -> 0 | G37: =InpAct!G$46 -> £ | H37: =InpAct!H$46 -> 0
D38: =InpC!$F$26 -> PR14 | E38: Wholesale Wastewater allowed revenue per customer - 2017/18 year average CPIH deflated - Wastewater | G38: £m | H38: =H37 * $F36 -> 0
B40: This section calculates the PR19 customer numbers and indexes the nominal revenue requirement
C41: =InpC!$F$27 -> PR19
D42: =InpAct!D$28 -> PR19 | E42: =InpAct!E$28 -> Households connected for water only - unmetered | F42: =InpAct!F$28 -> 0 | G42: =InpAct!G$28 -> 000s | H42: =InpAct!H$28 -> 321.3023053
D43: =InpAct!D$25 -> PR19 | E43: =InpAct!E$25 -> Households connected for water only - metered | F43: =InpAct!F$25 -> 0 | G43: =InpAct!G$25 -> 000s | H43: =InpAct!H$25 -> 410.948962
D44: =InpC!$F$27 -> PR19 | E44: Total households - Water only | G44: 000s | H44: =SUM(H42:H43) -> 732.2512672
D46: =InpAct!D$30 -> PR19 | E46: =InpAct!E$30 -> Households connected for water and sewerage - unmetered | F46: =InpAct!F$30 -> 0 | G46: =InpAct!G$30 -> 000s | H46: =InpAct!H$30 -> 0
D47: =InpAct!D$27 -> PR19 | E47: =InpAct!E$27 -> Households connected for water and sewerage - metered | F47: =InpAct!F$27 -> 0 | G47: =InpAct!G$27 -> 000s | H47: =InpAct!H$27 -> 0
D48: =InpC!$F$27 -> PR19 | E48: Total households - Water & Wastewater | G48: 000s | H48: =SUM(H46:H47) -> 0
D50: =InpAct!D$26 -> PR19 | E50: =InpAct!E$26 -> Households connected for sewerage only - unmetered | F50: =InpAct!F$26 -> 0 | G50: =InpAct!G$26 -> 000s | H50: =InpAct!H$26 -> 0
D51: =InpAct!D$29 -> PR19 | E51: =InpAct!E$29 -> Households connected for sewerage only - metered | F51: =InpAct!F$29 -> 0 | G51: =InpAct!G$29 -> 000s | H51: =InpAct!H$29 -> 0
D52: =InpC!$F$27 -> PR19 | E52: Total households - Wastewater only | G52: 000s | H52: =SUM(H50:H51) -> 0
D54: =D$44 -> PR19 | E54: =E$44 -> Total households - Water only | F54: 0 | G54: 000s | H54: 732.2512672
D55: =D$48 -> PR19 | E55: =E$48 -> Total households - Water & Wastewater | F55: 0 | G55: 000s | H55: 0
D56: =InpC!$F$27 -> PR19 | E56: Total households - Water | G56: 000s | H56: =SUM(H54:H55) -> 732.2512672
D58: =D$52 -> PR19 | E58: =E$52 -> Total households - Wastewater only | F58: 0 | G58: 000s | H58: 0
D59: =D$48 -> PR19 | E59: =E$48 -> Total households - Water & Wastewater | F59: 0 | G59: 000s | H59: 0
D60: =InpC!$F$27 -> PR19 | E60: Total households - Wastewater | G60: 000s | H60: =SUM(H58:H59) -> 0
D62: =InpC!D$57 -> PR19 | E62: =InpC!E$57 -> CPI(H): Fin year average - inflate from base year 2017-18 average | F62: =InpC!F$57 -> 1.156617303 | G62: =InpC!G$57 -> factor | H62: =InpC!H$57 -> 0
D63: =InpAct!D$56 -> PR19 | E63: =InpAct!E$56 -> Revenue requirement with impact of reprofiling excl. tax charge - WR - nominal | F63: =InpAct!F$56 -> 0 | G63: =InpAct!G$56 -> £m | H63: =InpAct!H$56 -> 11.35294703
D64: =InpC!$F$27 -> PR19 | E64: Revenue requirement with impact of reprofiling excl. tax charge - WR - 2017/18 year average CPIH deflated | G64: £m | H64: =H63 / $F62 -> 9.815646884
D66: =InpC!D$57 -> PR19 | E66: =InpC!E$57 -> CPI(H): Fin year average - inflate from base year 2017-18 average | F66: =InpC!F$57 -> 1.156617303 | G66: =InpC!G$57 -> factor | H66: =InpC!H$57 -> 0
D67: =InpAct!D$57 -> PR19 | E67: =InpAct!E$57 -> Revenue requirement with impact of reprofiling excl. tax charge - WN - nominal | F67: =InpAct!F$57 -> 0 | G67: =InpAct!G$57 -> £m | H67: =InpAct!H$57 -> 107.296768
D68: =InpC!$F$27 -> PR19 | E68: Revenue requirement with impact of reprofiling excl. tax charge - WN - 2017/18 year average CPIH deflated | G68: £m | H68: =H67 / $F66 -> 92.76773545
D70: =InpC!D$57 -> PR19 | E70: =InpC!E$57 -> CPI(H): Fin year average - inflate from base year 2017-18 average | F70: =InpC!F$57 -> 1.156617303 | G70: =InpC!G$57 -> factor | H70: =InpC!H$57 -> 0
D71: =InpAct!D$58 -> PR19 | E71: =InpAct!E$58 -> Revenue requirement with impact of reprofiling excl. tax charge - WWN - nominal | F71: =InpAct!F$58 -> 0 | G71: =InpAct!G$58 -> £m | H71: =InpAct!H$58 -> 0
D72: =InpC!$F$27 -> PR19 | E72: Revenue requirement with impact of reprofiling excl. tax charge - WWN - 2017/18 year average CPIH deflated | G72: £m | H72: =H71 / $F70 -> 0
D74: =InpC!D$57 -> PR19 | E74: =InpC!E$57 -> CPI(H): Fin year average - inflate from base year 2017-18 average | F74: =InpC!F$57 -> 1.156617303 | G74: =InpC!G$57 -> factor | H74: =InpC!H$57 -> 0
D75: =InpAct!D$59 -> PR19 | E75: =InpAct!E$59 -> Revenue requirement with impact of reprofiling excl. tax charge - BR - nominal | F75: =InpAct!F$59 -> 0 | G75: =InpAct!G$59 -> £m | H75: =InpAct!H$59 -> 0
D76: =InpC!$F$27 -> PR19 | E76: Revenue requirement with impact of reprofiling excl. tax charge - BR - 2017/18 year average CPIH deflated | G76: £m | H76: =H75 / $F74 -> 0
D78: =D$64 -> PR19 | E78: =E$64 -> Revenue requirement with impact of reprofiling excl. tax charge - WR - 2017/18 year average CPIH deflated | F78: 0 | G78: £m | H78: 9.815646884
D79: =D$68 -> PR19 | E79: =E$68 -> Revenue requirement with impact of reprofiling excl. tax charge - WN - 2017/18 year average CPIH deflated | F79: 0 | G79: £m | H79: 92.76773545
D80: =InpC!$F$27 -> PR19 | E80: Total revenue requirement - water - 2017/18 year average CPIH deflated | G80: £m | H80: =SUM(H78:H79) -> 102.5833823
D82: =D$72 -> PR19 | E82: =E$72 -> Revenue requirement with impact of reprofiling excl. tax charge - WWN - 2017/18 year average CPIH deflated | F82: 0 | G82: £m | H82: 0
D83: =D$76 -> PR19 | E83: =E$76 -> Revenue requirement with impact of reprofiling excl. tax charge - BR - 2017/18 year average CPIH deflated | F83: 0 | G83: £m | H83: 0
D84: =InpC!$F$27 -> PR19 | E84: Total revenue requirement - wastewater - 2017/18 year average CPIH deflated | G84: £m | H84: =SUM(H82:H83) -> 0
B86: This section calculates the change in the bill due to the change in customer numbers and apportionment
B87: Water
B88: Calculate the weighted average apportionment for water (water resources and water network)
D89: =D$80 -> PR19 | E89: =E$80 -> Total revenue requirement - water - 2017/18 year average CPIH deflated | F89: 0 | G89: £m | H89: 102.5833823
D90: =D$64 -> PR19 | E90: =E$64 -> Revenue requirement with impact of reprofiling excl. tax charge - WR - 2017/18 year average CPIH deflated | F90: 0 | G90: £m | H90: 9.815646884
D91: =InpAct!D$77 -> PR19 | E91: =InpAct!E$77 -> Wholesale water resources charges - Water resources measured charge ~ residential - real | F91: =InpAct!F$77 -> 0 | G91: =InpAct!G$77 -> % | H91: =InpAct!H$77 -> 0.7863718203
D92: =D$68 -> PR19 | E92: =E$68 -> Revenue requirement with impact of reprofiling excl. tax charge - WN - 2017/18 year average CPIH deflated | F92: 0 | G92: £m | H92: 92.76773545
D93: =InpAct!D$78 -> PR19 | E93: =InpAct!E$78 -> Wholesale water network plus charges - Water network plus unmeasured charge ~ residential | F93: =InpAct!F$78 -> 0 | G93: =InpAct!G$78 -> % | H93: =InpAct!H$78 -> 0.7909252873
D94: =InpC!$F$27 -> PR19 | E94: Weighted average residential apportionment - Water | G94: % | H94: =IFERROR( (H90 / H89 * H91) + (H92 / H89 * H93), 0) -> 0.7904895908
B96: Calculate the % change in customer numbers and apportionment combined
D97: =D$26 -> PR14 | E97: =E$26 -> Total households - Water | F97: 0 | G97: 000s | H97: 670.1298359
D98: =D$56 -> PR19 | E98: =E$56 -> Total households - Water | F98: 0 | G98: 000s | H98: 732.2512672
E99: PR19 households as a % of PR14 households - Water | G99: 000s | H99: =IFERROR( H98 / H97, 0) -> 1.09270059
D101: =InpAct!D$53 -> PR14 | E101: =InpAct!E$53 -> Wholesale Water - household apportionment calculated | F101: =InpAct!F$53 -> 0 | G101: =InpAct!G$53 -> % | H101: =InpAct!H$53 -> 0.7814341905
D102: =D$94 -> PR19 | E102: =E$94 -> Weighted average residential apportionment - Water | F102: 0 | G102: % | H102: 0.7904895908
E103: PR19 apportionment as a % of PR14 apportionment - Water | G103: 000s | H103: =IFERROR( H102 / H101, 0) -> 1.01158818
E105: =E$99 -> PR19 households as a % of PR14 households - Water | F105: =F$99 -> 0 | G105: 000s | H105: 1.09270059
E106: =E$103 -> PR19 apportionment as a % of PR14 apportionment - Water | F106: =F$103 -> 0 | G106: 000s | H106: 1.01158818
E107: PR19 customer numbers and apportionment as a % of PR14 customer numbers and apportionment | G107: % | H107: =IFERROR( H106 / H105, 0) -> 0.9257688605
D109: =D$34 -> PR14 | E109: =E$34 -> Wholesale water allowed revenue per customer - 2017/18 year average CPIH deflated - water | F109: 0 | G109: £m | H109: 115.1145924
E110: =E$107 -> PR19 customer numbers and apportionment as a % of PR14 customer numbers and apportionment | F110: =F$107 -> 0 | G110: % | H110: 0.9257688605
E111: Change in wholesale water allowed revenue per customer due to change in customer numbers and apportionment | G111: £m | H111: =(H109 * H110) - H109 -> -8.545087362
B113: This section calculates the change in the bill due to the change in customer numbers and apportionment
B114: Wastewater
B115: Calculate the weighted average apportionment for wastewater (bio resources and wastewater network)
E116: =InpC!E$36 -> Company type switch | F116: =InpC!F$36 -> 1 | G116: =InpC!G$36 -> 0 = WaSC, 1 = WoC
D117: =D$84 -> PR19 | E117: =E$84 -> Total revenue requirement - wastewater - 2017/18 year average CPIH deflated | F117: 0 | G117: £m | H117: 0
D118: =D$72 -> PR19 | E118: =E$72 -> Revenue requirement with impact of reprofiling excl. tax charge - WWN - 2017/18 year average CPIH deflated | F118: 0 | G118: £m | H118: 0
D119: =InpAct!D$79 -> PR19 | E119: =InpAct!E$79 -> 0 | F119: =InpAct!F$79 -> 0 | G119: =InpAct!G$79 -> 0 | H119: =InpAct!H$79 -> 0
D120: =D$76 -> PR19 | E120: =E$76 -> Revenue requirement with impact of reprofiling excl. tax charge - BR - 2017/18 year average CPIH deflated | F120: 0 | G120: £m | H120: 0
D121: =InpAct!D$80 -> PR19 | E121: =InpAct!E$80 -> Bio resources - TDS revenue average - real | F121: =InpAct!F$80 -> 0 | G121: =InpAct!G$80 -> £/tonne | H121: =InpAct!H$80 -> 0
D122: =InpC!$F$27 -> PR19 | E122: Weighted average residential apportionment - Wastewater | G122: % | H122: =IFERROR( IF(F$116 = 1, 0, (H120 / H117 * H121) + (H118 / H117 * H119)), 0) -> 0
B124: Calculate the % change in customer numbers and apportionment combined
E125: =InpC!E$36 -> Company type switch | F125: =InpC!F$36 -> 1 | G125: =InpC!G$36 -> 0 = WaSC, 1 = WoC
D126: =D$30 -> PR14 | E126: =E$30 -> Total households - Wastewater | F126: 0 | G126: 000s | H126: 0
D127: =D$60 -> PR19 | E127: =E$60 -> Total households - Wastewater | F127: 0 | G127: 000s | H127: 0
E128: PR19 households as a % of PR14 households - Wastewater | G128: % | H128: =IFERROR( IF(F$125 = 1, 0, H127 / H126), 0) -> 0
E130: =InpC!E$36 -> Company type switch | F130: =InpC!F$36 -> 1 | G130: =InpC!G$36 -> 0 = WaSC, 1 = WoC
D131: =InpAct!D$54 -> PR14 | E131: =InpAct!E$54 -> Wholesale Wastewater - household apportionment calculated | F131: =InpAct!F$54 -> 0 | G131: =InpAct!G$54 -> % | H131: =InpAct!H$54 -> 0
D132: =D$122 -> PR19 | E132: =E$122 -> Weighted average residential apportionment - Wastewater | F132: 0 | G132: % | H132: 0
E133: PR19 apportionment as a % of PR14 apportionment - Wastewater | G133: % | H133: =IFERROR( IF(F$130 = 1, 0, H132 / H131), 0) -> 0
E135: =InpC!E$36 -> Company type switch | F135: =InpC!F$36 -> 1 | G135: =InpC!G$36 -> 0 = WaSC, 1 = WoC
E136: =E$128 -> PR19 households as a % of PR14 households - Wastewater | F136: =F$128 -> 0 | G136: % | H136: 0
E137: =E$133 -> PR19 apportionment as a % of PR14 apportionment - Wastewater | F137: =F$133 -> 0 | G137: % | H137: 0
E138: PR19 customer numbers and apportionment as a % of PR14 customer numbers and apportionment | G138: % | H138: =IFERROR( IF(F$135 = 1, 0, H137 / H136), 0) -> 0
D140: =D$38 -> PR14 | E140: =E$38 -> Wholesale Wastewater allowed revenue per customer - 2017/18 year average CPIH deflated - Wastewater | F140: 0 | G140: £m | H140: 0
E141: =E$138 -> PR19 customer numbers and apportionment as a % of PR14 customer numbers and apportionment | F141: =F$138 -> 0 | G141: % | H141: 0
E142: Change in wholesale wastewater allowed revenue per customer due to change in customer numbers and apportionment | G142: £m | H142: =(H140 * H141) - H140 -> 0
B144: Sum the change due to customer numbers for water and wastewater.
E145: =E$111 -> Change in wholesale water allowed revenue per customer due to change in customer numbers and apportionment | F145: =F$111 -> 0 | G145: £m | H145: -8.545087362
E146: =E$142 -> Change in wholesale wastewater allowed revenue per customer due to change in customer numbers and apportionment | F146: =F$142 -> 0 | G146: £m | H146: 0
E147: Change in customer numbers and residential apportionment | G147: £ | H147: =SUM(H145:H146) -> -8.545087362 | J147: 2017/18 year average CPIH deflated
A149: End of sheet

Sheet Summary_Calc
A1: =RIGHT(CELL("filename", $A$1), LEN(CELL("filename", $A$1)) - SEARCH("]", CELL("filename", $A$1))) -> Summary_Calc | F1: =Check!F2 -> -3 | G1: Error chks
F2: =Check!F3 -> 62 | G2: Track checks
F5: Constant | G5: Unit | H5: Value | J5: Note
A7: SUMMARY OF COMPONENTS CAUSING CHANGE IN BILL
B9: Note: In the PR14 model wholesale prices are indexed but retail prices are not indexed.
B10: Deflate the wholesale allowed revenue, then add to the real retail allowed revenue to calculate the combined bill
D11: =InpC!D$55 -> PR14 | E11: =InpC!E$55 -> Adjustment from 2012/13 year average RPI to 2017/18 year average CPIH deflated | F11: =InpC!F$55 -> 1.10501985 | G11: =InpC!G$55 -> factor | H11: =InpC!H$55 -> 0
D12: =InpAct!D$45 -> PR14 | E12: =InpAct!E$45 -> Wholesale water allowed revenue per customer excluding capital connection charges, other income and operating income | F12: =InpAct!F$45 -> 0 | G12: =InpAct!G$45 -> £ | H12: =InpAct!H$45 -> 104.1742303
D13: =InpC!$F$26 -> PR14 | E13: Wholesale water allowed revenue per customer - 2017/18 year average CPIH deflated | G13: £ | H13: =H12 * $F11 -> 115.1145924
D15: =InpC!D$55 -> PR14 | E15: =InpC!E$55 -> Adjustment from 2012/13 year average RPI to 2017/18 year average CPIH deflated | F15: =InpC!F$55 -> 1.10501985 | G15: =InpC!G$55 -> factor | H15: =InpC!H$55 -> 0
D16: =InpAct!D$46 -> PR14 | E16: =InpAct!E$46 -> Wholesale Wastewater allowed revenue per customer excluding capital connection charges, other income and operating income | F16: =InpAct!F$46 -> 0 | G16: =InpAct!G$46 -> £ | H16: =InpAct!H$46 -> 0
D17: =InpC!$F$26 -> PR14 | E17: Wholesale Wastewater allowed revenue per customer - 2017/18 year average CPIH deflated | G17: £ | H17: =H16 * $F15 -> 0
E19: =InpC!E$36 -> Company type switch | F19: =InpC!F$36 -> 1 | G19: =InpC!G$36 -> 0 = WaSC, 1 = WoC
D20: =InpAct!D$35 -> PR14 | E20: =InpAct!E$35 -> Retail allowed revenue per customer: single service | F20: =InpAct!F$35 -> 0 | G20: =InpAct!G$35 -> £ | H20: =InpAct!H$35 -> 25.17048097
D21: =D$13 -> PR14 | E21: =E$13 -> Wholesale water allowed revenue per customer - 2017/18 year average CPIH deflated | F21: 0 | G21: £ | H21: 115.1145924
D22: =InpAct!D$36 -> PR14 | E22: =InpAct!E$36 -> Retail allowed revenue per customer: joint services | F22: =InpAct!F$36 -> 0 | G22: =InpAct!G$36 -> £ | H22: =InpAct!H$36 -> 0
D23: =D$17 -> PR14 | E23: =E$17 -> Wholesale Wastewater allowed revenue per customer - 2017/18 year average CPIH deflated | F23: 0 | G23: £ | H23: 0
D24: =InpC!$F$26 -> PR14 | E24: Average combined bill - 2017/18 year average CPIH deflated | G24: £ | H24: =IF(F19 = 1, SUM(H20:H21), SUM(H21:H23) ) -> 140.2850733
E26: =InpC!E$36 -> Company type switch | F26: =InpC!F$36 -> 1 | G26: =InpC!G$36 -> 0 = WaSC, 1 = WoC
D27: =InpAct!D$13 -> PR19 | E27: =InpAct!E$13 -> Wholesale wastewater network allowed revenue (excluding capital connection charges, other income and operating income) per residential customer - adj - real | F27: =InpAct!F$13 -> 0 | G27: =InpAct!G$13 -> £ | H27: =InpAct!H$13 -> 127.5434806
D28: =InpAct!D$14 -> PR19 | E28: =InpAct!E$14 -> 0 | F28: =InpAct!F$14 -> 0 | G28: =InpAct!G$14 -> 0 | H28: =InpAct!H$14 -> 0
D29: =InpC!$F$27 -> PR19 | E29: Average bill - real | G29: £ | H29: =IF(F$26=1, H27, H28) -> 127.5434806
D31: =D$24 -> PR14 | E31: =E$24 -> Average combined bill - 2017/18 year average CPIH deflated | F31: 0 | G31: £ | H31: 140.2850733
D32: =D$29 -> PR19 | E32: =E$29 -> Average bill - real | F32: 0 | G32: £ | H32: 127.5434806
E33: Change in average combined bill | G33: £ | H33: =H32-H31 -> -12.74159277
D35: =InpAct!D$41 -> PR14 | E35: =InpAct!E$41 -> Wholesale dummy control allowed revenue - real | F35: =InpAct!F$41 -> 0 | G35: =InpAct!G$41 -> £/cust | H35: =InpAct!H$41 -> 0
D36: =InpAct!D$42 -> PR19 | E36: =InpAct!E$42 -> Wholesale dummy charges - Dummy measured charge ~ business | F36: =InpAct!F$42 -> 0 | G36: =InpAct!G$42 -> % | H36: =InpAct!H$42 -> 0
E37: Change in wholesale dummy control allowed revenue | G37: £ | H37: =H36-H35 -> 0
B39: *********** Calculate the change in the bill due to all other wholesale components, £ per customer ************************************************************************************************************************************
E40: =E$33 -> Change in average combined bill | F40: =F$33 -> 0 | G40: £ | H40: -12.74159277
E41: =Customers!E$147 -> Change in customer numbers and residential apportionment | F41: =Customers!F$147 -> 0 | G41: =Customers!G$147 -> £ | H41: =Customers!H$147 -> -8.545087362
E42: =Retail!E$24 -> Change in retail CTS | F42: =Retail!F$24 -> 0 | G42: =Retail!G$24 -> £ | H42: =Retail!H$24 -> -8.399650679
E43: =E$37 -> Change in wholesale dummy control allowed revenue | F43: =F$37 -> 0 | G43: =G$37 -> £ | H43: =H$37 -> 0
E44: Change due to changes in the components of wholesale allowed revenue (per customer) | G44: £ | H44: =H40 - SUM(H41:H43) -> 4.203145274
B45: *************************************************************************************************************************************************************************************************************************************************************
B47: Wholesale components have been calculated as £m, apportion them to get £ per customer
E48: =Totex!E$140 -> Change in PAYG Totex due to change in PAYG% | F48: =Totex!F$140 -> 0 | G48: =Totex!G$140 -> £m | H48: =Totex!H$140 -> -1.315676066
E49: =Totex!E$144 -> Change in PAYG Totex due to change in Totex | F49: =Totex!F$144 -> 0 | G49: =Totex!G$144 -> £m | H49: =Totex!H$144 -> 6.402233269
E50: =RCV!E$372 -> Change in RCV depreciation due to change in run-off rate | F50: =RCV!F$372 -> 0 | G50: =RCV!G$372 -> £m | H50: =RCV!H$372 -> 0.1825107832
E51: =RCV!E$376 -> Change in RCV depreciation due to change in RCV | F51: =RCV!F$376 -> 0 | G51: =RCV!G$376 -> £m | H51: =RCV!H$376 -> 4.169084275
E52: =RCV!E$538 -> Change in return on RCV due to change in WACC | F52: =RCV!F$538 -> 0 | G52: =RCV!G$538 -> £m | H52: =RCV!H$538 -> -2.165780215
E53: =RCV!E$542 -> Change in return on RCV due to change in RCV | F53: =RCV!F$542 -> 0 | G53: =RCV!G$542 -> £m | H53: =RCV!H$542 -> 2.397097742
E54: =Wholesale!E$64 -> Change in other wholesale items | F54: =Wholesale!F$64 -> 0 | G54: =Wholesale!G$64 -> £m | H54: =Wholesale!H$64 -> -3.159447218
E55: =Reconciliation!E$66 -> Change in wholesale reconciliation items | F55: =Reconciliation!F$66 -> 0 | G55: =Reconciliation!G$66 -> £m | H55: =Reconciliation!H$66 -> -2.645159331
E56: Change due to all wholesale changes except customer numbers | G56: £m | H56: =SUM(H48:H55) -> 3.864863239
E58: =E$44 -> Change due to changes in the components of wholesale allowed revenue (per customer) | F58: =F$44 -> 0 | G58: £ | H58: 4.203145274
E59: =E$56 -> Change due to all wholesale changes except customer numbers | F59: =F$56 -> 0 | G59: £m | H59: 3.864863239
E60: =E$48 -> Change in PAYG Totex due to change in PAYG% | F60: =F$48 -> 0 | G60: £m | H60: -1.315676066
E61: Change in PAYG% (per customer) | G61: £ | H61: =IFERROR( $H$58 * H60 / $H$59, 0) -> -1.430833977
E63: =E$44 -> Change due to changes in the components of wholesale allowed revenue (per customer) | F63: =F$44 -> 0 | G63: £ | H63: 4.203145274
E64: =E$56 -> Change due to all wholesale changes except customer numbers | F64: =F$56 -> 0 | G64: £m | H64: 3.864863239
E65: =E$49 -> Change in PAYG Totex due to change in Totex | F65: =F$49 -> 0 | G65: £m | H65: 6.402233269
E66: Change in Totex (per customer) | G66: £ | H66: =IFERROR( $H$63 * H65 / $H$64, 0) -> 6.962605103
E68: =E$44 -> Change due to changes in the components of wholesale allowed revenue (per customer) | F68: =F$44 -> 0 | G68: £ | H68: 4.203145274
E69: =E$56 -> Change due to all wholesale changes except customer numbers | F69: =F$56 -> 0 | G69: £m | H69: 3.864863239
E70: =E$50 -> Change in RCV depreciation due to change in run-off rate | F70: =F$50 -> 0 | G70: £m | H70: 0.1825107832
E71: Change in Run-off rate (per customer) | G71: £ | H71: =IFERROR( $H$68 * H70 / $H$69, 0) -> 0.1984855061
E73: =E$44 -> Change due to changes in the components of wholesale allowed revenue (per customer) | F73: =F$44 -> 0 | G73: £ | H73: 4.203145274
E74: =E$56 -> Change due to all wholesale changes except customer numbers | F74: =F$56 -> 0 | G74: £m | H74: 3.864863239
E75: =E$51 -> Change in RCV depreciation due to change in RCV | F75: =F$51 -> 0 | G75: £m | H75: 4.169084275
E76: Change in RCV depreciation due to change in RCV (per customer) | G76: £ | H76: =IFERROR( $H$73 * H75 / $H$74, 0) -> 4.533994034
E78: =E$44 -> Change due to changes in the components of wholesale allowed revenue (per customer) | F78: =F$44 -> 0 | G78: £ | H78: 4.203145274
E79: =E$56 -> Change due to all wholesale changes except customer numbers | F79: =F$56 -> 0 | G79: £m | H79: 3.864863239
E80: =E$52 -> Change in return on RCV due to change in WACC | F80: =F$52 -> 0 | G80: £m | H80: -2.165780215
E81: Change in WACC (per customer) | G81: £ | H81: =IFERROR( $H$78 * H80 / $H$79, 0) -> -2.355345665
E83: =E$44 -> Change due to changes in the components of wholesale allowed revenue (per customer) | F83: =F$44 -> 0 | G83: £ | H83: 4.203145274
E84: =E$56 -> Change due to all wholesale changes except customer numbers | F84: =F$56 -> 0 | G84: £m | H84: 3.864863239
E85: =E$53 -> Change in return on RCV due to change in RCV | F85: =F$53 -> 0 | G85: £m | H85: 2.397097742
E86: Change in Return on RCV due to change in RCV (per customer) | G86: £ | H86: =IFERROR( $H$83 * H85 / $H$84, 0) -> 2.60690985
E88: =E$76 -> Change in RCV depreciation due to change in RCV (per customer) | F88: =F$76 -> 0 | G88: £ | H88: 4.533994034
E89: =E$86 -> Change in Return on RCV due to change in RCV (per customer) | F89: =F$86 -> 0 | G89: £ | H89: 2.60690985
E90: Change in RCV (per customer) | G90: £ | H90: =SUM(H88:H89) -> 7.140903884
E92: =E$44 -> Change due to changes in the components of wholesale allowed revenue (per customer) | F92: =F$44 -> 0 | G92: £ | H92: 4.203145274
E93: =E$56 -> Change due to all wholesale changes except customer numbers | F93: =F$56 -> 0 | G93: £m | H93: 3.864863239
E94: =E$54 -> Change in other wholesale items | F94: =F$54 -> 0 | G94: £m | H94: -3.159447218
E95: Change in Other wholesale items (per customer) | G95: £ | H95: =IFERROR( $H$92 * H94 / $H$93, 0) -> -3.435985913
E97: =E$44 -> Change due to changes in the components of wholesale allowed revenue (per customer) | F97: =F$44 -> 0 | G97: £ | H97: 4.203145274
E98: =E$56 -> Change due to all wholesale changes except customer numbers | F98: =F$56 -> 0 | G98: £m | H98: 3.864863239
E99: =E$55 -> Change in wholesale reconciliation items | F99: =F$55 -> 0 | G99: £m | H99: -2.645159331
E100: Change in Wholesale reconciliations items (per customer) | G100: £ | H100: =IFERROR( $H$97 * H99 / $H$98,0) -> -2.876683664
E102: =E$100 -> Change in Wholesale reconciliations items (per customer) | F102: =F$100 -> 0 | G102: £ | H102: -2.876683664
A103: =H102 -> -2.876683664 | E103: Change in Wholesale reconciliations items (per customer) | G103: £ | H103: =H102 -> -2.876683664
E105: =E$43 -> Change in wholesale dummy control allowed revenue | F105: 0 | G105: £ | H105: 0
E106: Change in 5th control | G106: £ | H106: =H105 -> 0
E108: =LEFT(E90, LEN(E90) - 15) -> Change in RCV | F108: =F90 -> 0 | G108: =G90 -> £ | H108: =H90 -> 7.140903884
E109: =LEFT(E66, LEN(E66) - 15) -> Change in Totex | F109: =F66 -> 0 | G109: =G66 -> £ | H109: =H66 -> 6.962605103
E110: =LEFT(E61, LEN(E61) - 15) -> Change in PAYG% | F110: =F61 -> 0 | G110: =G61 -> £ | H110: =H61 -> -1.430833977
E111: =LEFT(E71, LEN(E71) - 15) -> Change in Run-off rate | F111: =F71 -> 0 | G111: =G71 -> £ | H111: =H71 -> 0.1984855061
E112: =LEFT(E81, LEN(E81) - 15) -> Change in WACC | F112: =F81 -> 0 | G112: =G81 -> £ | H112: =H81 -> -2.355345665
E113: =LEFT(E95, LEN(E95) - 15) -> Change in Other wholesale items | F113: =F95 -> 0 | G113: =G95 -> £ | H113: =H95 -> -3.435985913
E114: =LEFT(E103, LEN(E103) - 15) -> Change in Wholesale reconciliations items | F114: =F103 -> 0 | G114: £ | H114: -2.876683664
E115: Change due to all wholesale changes except customer numbers (per customer) | G115: £ | H115: =SUM(H108:H114) -> 4.203145274
E117: =E$115 -> Change due to all wholesale changes except customer numbers (per customer) | F117: =F$115 -> 0 | G117: £ | H117: 4.203145274
E118: =E$44 -> Change due to changes in the components of wholesale allowed revenue (per customer) | F118: =F$44 -> 0 | G118: £ | H118: 4.203145274
E119: Sum of wholesale items after apportionment equals change in customer bill less retail items | G119: check | H119: =IF(ABS( (H118 - H117) ) > InpC!$F$10, 1, 0) -> 0
A121: End of sheet

Sheet Outputs >>

Sheet GraphData
A1: =RIGHT(CELL("filename", $A$1), LEN(CELL("filename", $A$1)) - SEARCH("]", CELL("filename", $A$1))) -> GraphData
E4: [Do not insert rows or columns anywhere on this sheet]
A7: DATA FOR BRIDGE CHART
B9: Price base is 2017/18 year average CPIH deflated
B11: Change in average residential bill (combined for WaSCs), £
G12: Values | H12: Ends | I12: Blank | J12: Up > 0 | K12: Up <0 | L12: Down > 0 | M12: Down < 0
F13: 2019/20 average residential bill | G13: =Summary_Calc!H24 -> 140.2850733 | H13: =G13 -> 140.2850733
E14: =Summary_Calc!E108 -> Change in RCV | F14: =RIGHT(E14, LEN(E14) - 10) -> RCV | G14: =Summary_Calc!H108 -> 7.140903884 | I14: =MAX(0,MIN(SUM(G$13:G13),SUM(G$13:G14)))+MIN(0,MAX(SUM(G$13:G13),SUM(G$13:G14))) -> 140.2850733 | J14: =MAX(0,MIN(SUM(G$13:G14),G14)) -> 7.140903884 | K14: =-MAX(0,G14-J14) -> 0 | L14: =MAX(0,M14-G14) -> 0 | M14: =MIN(0,MAX(SUM(G$13:G14),G14)) -> 0
E15: =Summary_Calc!E109 -> Change in Totex | F15: Totex | G15: =Summary_Calc!H109 -> 6.962605103 | I15: =MAX(0,MIN(SUM(G$13:G14),SUM(G$13:G15)))+MIN(0,MAX(SUM(G$13:G14),SUM(G$13:G15))) -> 147.4259772 | J15: =MAX(0,MIN(SUM(G$13:G15),G15)) -> 6.962605103 | K15: 0 | L15: 0 | M15: =MIN(0,MAX(SUM(G$13:G15),G15)) -> 0
E16: =Summary_Calc!E110 -> Change in PAYG% | F16: PAYG% | G16: =Summary_Calc!H110 -> -1.430833977 | I16: =MAX(0,MIN(SUM(G$13:G15),SUM(G$13:G16)))+MIN(0,MAX(SUM(G$13:G15),SUM(G$13:G16))) -> 152.9577483 | J16: =MAX(0,MIN(SUM(G$13:G16),G16)) -> 0 | K16: 0 | L16: 1.430833977 | M16: =MIN(0,MAX(SUM(G$13:G16),G16)) -> 0
E17: =Summary_Calc!E111 -> Change in Run-off rate | F17: Run-off rate | G17: =Summary_Calc!H111 -> 0.1984855061 | I17: =MAX(0,MIN(SUM(G$13:G16),SUM(G$13:G17)))+MIN(0,MAX(SUM(G$13:G16),SUM(G$13:G17))) -> 152.9577483 | J17: =MAX(0,MIN(SUM(G$13:G17),G17)) -> 0.1984855061 | K17: 0 | L17: 0 | M17: =MIN(0,MAX(SUM(G$13:G17),G17)) -> 0
E18: =Summary_Calc!E112 -> Change in WACC | F18: WACC | G18: =Summary_Calc!H112 -> -2.355345665 | I18: =MAX(0,MIN(SUM(G$13:G17),SUM(G$13:G18)))+MIN(0,MAX(SUM(G$13:G17),SUM(G$13:G18))) -> 150.8008882 | J18: =MAX(0,MIN(SUM(G$13:G18),G18)) -> 0 | K18: 0 | L18: 2.355345665 | M18: =MIN(0,MAX(SUM(G$13:G18),G18)) -> 0
E19: =Summary_Calc!E113 -> Change in Other wholesale items | F19: Other wholesale items | G19: =Summary_Calc!H113 -> -3.435985913 | I19: =MAX(0,MIN(SUM(G$13:G18),SUM(G$13:G19)))+MIN(0,MAX(SUM(G$13:G18),SUM(G$13:G19))) -> 147.3649023 | J19: =MAX(0,MIN(SUM(G$13:G19),G19)) -> 0 | K19: 0 | L19: 3.435985913 | M19: =MIN(0,MAX(SUM(G$13:G19),G19)) -> 0
E20: =Summary_Calc!E114 -> Change in Wholesale reconciliations items | F20: Wholesale reconciliations items | G20: =Summary_Calc!H114 -> -2.876683664 | I20: =MAX(0,MIN(SUM(G$13:G19),SUM(G$13:G20)))+MIN(0,MAX(SUM(G$13:G19),SUM(G$13:G20))) -> 144.4882186 | J20: =MAX(0,MIN(SUM(G$13:G20),G20)) -> 0 | K20: 0 | L20: 2.876683664 | M20: =MIN(0,MAX(SUM(G$13:G20),G20)) -> 0
E21: =Summary_Calc!E106 -> Change in 5th control | F21: 5th control | G21: =Summary_Calc!H106 -> 0 | I21: =MAX(0,MIN(SUM(G$13:G20),SUM(G$13:G21)))+MIN(0,MAX(SUM(G$13:G20),SUM(G$13:G21))) -> 144.4882186 | J21: =MAX(0,MIN(SUM(G$13:G21),G21)) -> 0 | K21: 0 | L21: 0 | M21: =MIN(0,MAX(SUM(G$13:G21),G21)) -> 0
E22: =Retail!E$24 -> Change in retail CTS | F22: retail CTS | G22: =Retail!H$24 -> -8.399650679 | I22: =MAX(0,MIN(SUM(G$13:G21),SUM(G$13:G22)))+MIN(0,MAX(SUM(G$13:G21),SUM(G$13:G22))) -> 136.0885679 | J22: =MAX(0,MIN(SUM(G$13:G22),G22)) -> 0 | K22: 0 | L22: 8.399650679 | M22: =MIN(0,MAX(SUM(G$13:G22),G22)) -> 0
E23: =Customers!E147 -> Change in customer numbers and residential apportionment | F23: customer numbers and residential apportionment | G23: =Customers!H147 -> -8.545087362 | I23: =MAX(0,MIN(SUM(G$13:G22),SUM(G$13:G23)))+MIN(0,MAX(SUM(G$13:G22),SUM(G$13:G23))) -> 127.5434806 | J23: =MAX(0,MIN(SUM(G$13:G23),G23)) -> 0 | K23: 0 | L23: 8.545087362 | M23: =MIN(0,MAX(SUM(G$13:G23),G23)) -> 0
F24: 2024/25 average residential bill | H24: =SUM(G13:G23) -> 127.5434806
D25: * Ofwat calculates the return on RCV using a real WACC. Ofwat used a WACC expressed in real RPI terms for PR14 returns, while it is using a WACC expressed in real CPIH terms for PR19 calculations.
D26: The use of the real CPIH terms WACC reduces the fall in bills at PR19 from lowering the nominal WACC. This is because the real CPIH terms WACC is around one percent higher than the WACC expressed in real RPI terms.
B28: The waterfall chart reads the axes extents from this block
F29: Axis | G29: X | H29: Y | I29: Rounding
F30: ="Maximum bill, rounded up to nearest " & I30 -> Maximum bill, rounded up to nearest 50 | H30: =IFERROR(CEILING( MAX(H13:I24) +1, I30), 0) -> 200 | I30: 50
F31: ="Minimum bill, rounded down to nearest " & I31 -> Minimum bill, rounded down to nearest 100 | H31: =IFERROR( FLOOR(MIN(H13:I24) -1, I31), 0) -> 100 | I31: 100
F32: Tick | G32: 1 | H32: 1
A36: End of sheet

Sheet QA >>

Sheet Track
A1: =RIGHT(CELL("filename", $A$1), LEN(CELL("filename", $A$1)) - SEARCH("]", CELL("filename", $A$1))) -> Track | M1: do not del col | O1: do not del col
F2: =Check!$F$2 -> -3 | G2: Checks | J2: =SUM(J7:J119) -> 62
F3: =J2 -> 62 | G3: Track chgs
G5: Unit | J5: =MATCH($H$6, M6:O6, 0) -> 2 | K5: Difference | L5: Diff %
E6: Comparison column label | H6: Nil inputs | N6: Nil inputs
E7: [do not delete row]
A8: INPUTS
C10: Retail
D11: =InpAct!D$38 -> PR19 | E11: =InpAct!E$38 -> Residentials connected for water or sewerage | F11: =InpAct!F$38 -> 0 | G11: =InpAct!G$38 -> 000s | H11: =InpAct!H$38 -> 16.77083029 | J11: =IF(ABS(K11) > InpC!$F$9, 1, 0) -> 1 | K11: =H11 - INDEX(M11:O11, $J$5) -> 16.77083029 | L11: =IF(ABS(K11) > InpC!$F$9, IF(INDEX(M11:O11, $J$5) = 0, 0, H11 / INDEX(M11:O11, $J$5) - 1), 0) -> 0 | N11: 0
J12: =IF(ABS(K12) > InpC!$F$9, 1, 0) -> 0 | K12: 0 | L12: =IF(ABS(K12) > InpC!$F$9, IF(INDEX(M12:O12, $J$5) = 0, 0, H12 / INDEX(M12:O12, $J$5) - 1), 0) -> 0 | N12: 0
C13: Customer Numbers and apportionment | J13: =IF(ABS(K13) > InpC!$F$9, 1, 0) -> 0 | K13: 0 | L13: =IF(ABS(K13) > InpC!$F$9, IF(INDEX(M13:O13, $J$5) = 0, 0, H13 / INDEX(M13:O13, $J$5) - 1), 0) -> 0 | N13: 0
D14: =InpAct!D$28 -> PR19 | E14: =InpAct!E28 -> Households connected for water only - unmetered | F14: =InpAct!F28 -> 0 | G14: =InpAct!G28 -> 000s | H14: =InpAct!H28 -> 321.3023053 | J14: =IF(ABS(K14) > InpC!$F$9, 1, 0) -> 1 | K14: 321.3023053 | L14: =IF(ABS(K14) > InpC!$F$9, IF(INDEX(M14:O14, $J$5) = 0, 0, H14 / INDEX(M14:O14, $J$5) - 1), 0) -> 0 | N14: 0
D15: =InpAct!D$25 -> PR19 | E15: =InpAct!E25 -> Households connected for water only - metered | F15: =InpAct!F25 -> 0 | G15: =InpAct!G25 -> 000s | H15: =InpAct!H25 -> 410.948962 | J15: =IF(ABS(K15) > InpC!$F$9, 1, 0) -> 1 | K15: 410.948962 | L15: =IF(ABS(K15) > InpC!$F$9, IF(INDEX(M15:O15, $J$5) = 0, 0, H15 / INDEX(M15:O15, $J$5) - 1), 0) -> 0 | N15: 0
D16: =InpAct!D$26 -> PR19 | E16: =InpAct!E26 -> Households connected for sewerage only - unmetered | F16: =InpAct!F26 -> 0 | G16: =InpAct!G26 -> 000s | H16: =InpAct!H26 -> 0 | J16: =IF(ABS(K16) > InpC!$F$9, 1, 0) -> 0 | K16: 0 | L16: =IF(ABS(K16) > InpC!$F$9, IF(INDEX(M16:O16, $J$5) = 0, 0, H16 / INDEX(M16:O16, $J$5) - 1), 0) -> 0 | N16: 0
D17: =InpAct!D29 -> PR19 | E17: =InpAct!E29 -> Households connected for sewerage only - metered | F17: =InpAct!F29 -> 0 | G17: =InpAct!G29 -> 000s | H17: =InpAct!H29 -> 0 | J17: =IF(ABS(K17) > InpC!$F$9, 1, 0) -> 0 | K17: 0 | L17: =IF(ABS(K17) > InpC!$F$9, IF(INDEX(M17:O17, $J$5) = 0, 0, H17 / INDEX(M17:O17, $J$5) - 1), 0) -> 0 | N17: 0
D18: =InpAct!D30 -> PR19 | E18: =InpAct!E30 -> Households connected for water and sewerage - unmetered | F18: =InpAct!F30 -> 0 | G18: =InpAct!G30 -> 000s | H18: =InpAct!H30 -> 0 | J18: =IF(ABS(K18) > InpC!$F$9, 1, 0) -> 0 | K18: 0 | L18: =IF(ABS(K18) > InpC!$F$9, IF(INDEX(M18:O18, $J$5) = 0, 0, H18 / INDEX(M18:O18, $J$5) - 1), 0) -> 0 | N18: 0
D19: =InpAct!D27 -> PR19 | E19: =InpAct!E27 -> Households connected for water and sewerage - metered | F19: =InpAct!F27 -> 0 | G19: =InpAct!G27 -> 000s | H19: =InpAct!H27 -> 0 | J19: =IF(ABS(K19) > InpC!$F$9, 1, 0) -> 0 | K19: 0 | L19: =IF(ABS(K19) > InpC!$F$9, IF(INDEX(M19:O19, $J$5) = 0, 0, H19 / INDEX(M19:O19, $J$5) - 1), 0) -> 0 | N19: 0
D20: =InpAct!D77 -> PR19 | E20: =InpAct!E77 -> Wholesale water resources charges - Water resources measured charge ~ residential - real | F20: =InpAct!F77 -> 0 | G20: =InpAct!G77 -> % | H20: =InpAct!H77 -> 0.7863718203 | J20: =IF(ABS(K20) > InpC!$F$9, 1, 0) -> 1 | K20: 0.7863718203 | L20: =IF(ABS(K20) > InpC!$F$9, IF(INDEX(M20:O20, $J$5) = 0, 0, H20 / INDEX(M20:O20, $J$5) - 1), 0) -> 0 | N20: 0
D21: =InpAct!D78 -> PR19 | E21: =InpAct!E78 -> Wholesale water network plus charges - Water network plus unmeasured charge ~ residential | F21: =InpAct!F78 -> 0 | G21: =InpAct!G78 -> % | H21: =InpAct!H78 -> 0.7909252873 | J21: =IF(ABS(K21) > InpC!$F$9, 1, 0) -> 1 | K21: 0.7909252873 | L21: =IF(ABS(K21) > InpC!$F$9, IF(INDEX(M21:O21, $J$5) = 0, 0, H21 / INDEX(M21:O21, $J$5) - 1), 0) -> 0 | N21: 0
D22: =InpAct!D79 -> PR19 | E22: =InpAct!E79 -> 0 | F22: =InpAct!F79 -> 0 | G22: =InpAct!G79 -> 0 | H22: =InpAct!H79 -> 0 | J22: =IF(ABS(K22) > InpC!$F$9, 1, 0) -> 0 | K22: 0 | L22: =IF(ABS(K22) > InpC!$F$9, IF(INDEX(M22:O22, $J$5) = 0, 0, H22 / INDEX(M22:O22, $J$5) - 1), 0) -> 0 | N22: 0
D23: =InpAct!D80 -> PR19 | E23: =InpAct!E80 -> Bio resources - TDS revenue average - real | F23: =InpAct!F80 -> 0 | G23: =InpAct!G80 -> £/tonne | H23: =InpAct!H80 -> 0 | J23: =IF(ABS(K23) > InpC!$F$9, 1, 0) -> 0 | K23: 0 | L23: =IF(ABS(K23) > InpC!$F$9, IF(INDEX(M23:O23, $J$5) = 0, 0, H23 / INDEX(M23:O23, $J$5) - 1), 0) -> 0 | N23: 0
J24: =IF(ABS(K24) > InpC!$F$9, 1, 0) -> 0 | K24: 0 | L24: =IF(ABS(K24) > InpC!$F$9, IF(INDEX(M24:O24, $J$5) = 0, 0, H24 / INDEX(M24:O24, $J$5) - 1), 0) -> 0 | N24: 0
C25: Totex | J25: =IF(ABS(K25) > InpC!$F$9, 1, 0) -> 0 | K25: 0 | L25: =IF(ABS(K25) > InpC!$F$9, IF(INDEX(M25:O25, $J$5) = 0, 0, H25 / INDEX(M25:O25, $J$5) - 1), 0) -> 0 | N25: 0
D26: =InpAct!D92 -> PR19 | E26: =InpAct!E92 -> Totex - net of grants and contributions - WR (post sensi adj) - nominal | F26: =InpAct!F92 -> 0 | G26: =InpAct!G92 -> £m | H26: =InpAct!H92 -> 12.32212199 | J26: =IF(ABS(K26) > InpC!$F$9, 1, 0) -> 1 | K26: 12.32212199 | L26: =IF(ABS(K26) > InpC!$F$9, IF(INDEX(M26:O26, $J$5) = 0, 0, H26 / INDEX(M26:O26, $J$5) - 1), 0) -> 0 | N26: 0
D27: =InpAct!D93 -> PR19 | E27: =InpAct!E93 -> Totex - net of grants and contributions - WN (post sensi adj) - nominal | F27: =InpAct!F93 -> 0 | G27: =InpAct!G93 -> £m | H27: =InpAct!H93 -> 99.61253061 | J27: =IF(ABS(K27) > InpC!$F$9, 1, 0) -> 1 | K27: 99.61253061 | L27: =IF(ABS(K27) > InpC!$F$9, IF(INDEX(M27:O27, $J$5) = 0, 0, H27 / INDEX(M27:O27, $J$5) - 1), 0) -> 0 | N27: 0
D28: =InpAct!D94 -> PR19 | E28: =InpAct!E94 -> Totex - net of grants and contributions - WWN (post sensi adj) - nominal | F28: =InpAct!F94 -> 0 | G28: =InpAct!G94 -> £m | H28: =InpAct!H94 -> 0 | J28: =IF(ABS(K28) > InpC!$F$9, 1, 0) -> 0 | K28: 0 | L28: =IF(ABS(K28) > InpC!$F$9, IF(INDEX(M28:O28, $J$5) = 0, 0, H28 / INDEX(M28:O28, $J$5) - 1), 0) -> 0 | N28: 0
D29: =InpAct!D95 -> PR19 | E29: =InpAct!E95 -> Totex - net of grants and contributions - BR (post sensi adj) - nominal | F29: =InpAct!F95 -> 0 | G29: =InpAct!G95 -> £m | H29: =InpAct!H95 -> 0 | J29: =IF(ABS(K29) > InpC!$F$9, 1, 0) -> 0 | K29: 0 | L29: =IF(ABS(K29) > InpC!$F$9, IF(INDEX(M29:O29, $J$5) = 0, 0, H29 / INDEX(M29:O29, $J$5) - 1), 0) -> 0 | N29: 0
D30: =InpAct!D101 -> PR19 | E30: =InpAct!E101 -> PAYG% - water resources - active - WR | F30: =InpAct!F101 -> 0 | G30: =InpAct!G101 -> % | H30: =InpAct!H101 -> 0.6715817515 | J30: =IF(ABS(K30) > InpC!$F$9, 1, 0) -> 1 | K30: 0.6715817515 | L30: =IF(ABS(K30) > InpC!$F$9, IF(INDEX(M30:O30, $J$5) = 0, 0, H30 / INDEX(M30:O30, $J$5) - 1), 0) -> 0 | N30: 0
D31: =InpAct!D102 -> PR19 | E31: =InpAct!E102 -> PAYG% - water network - active - WN | F31: =InpAct!F102 -> 0 | G31: =InpAct!G102 -> % | H31: =InpAct!H102 -> 0.6325528413 | J31: =IF(ABS(K31) > InpC!$F$9, 1, 0) -> 1 | K31: 0.6325528413 | L31: =IF(ABS(K31) > InpC!$F$9, IF(INDEX(M31:O31, $J$5) = 0, 0, H31 / INDEX(M31:O31, $J$5) - 1), 0) -> 0 | N31: 0
D32: =InpAct!D103 -> PR19 | E32: =InpAct!E103 -> PAYG% - wastewater network - active - WWN | F32: =InpAct!F103 -> 0 | G32: =InpAct!G103 -> % | H32: =InpAct!H103 -> 0 | J32: =IF(ABS(K32) > InpC!$F$9, 1, 0) -> 0 | K32: 0 | L32: =IF(ABS(K32) > InpC!$F$9, IF(INDEX(M32:O32, $J$5) = 0, 0, H32 / INDEX(M32:O32, $J$5) - 1), 0) -> 0 | N32: 0
D33: =InpAct!D104 -> PR19 | E33: =InpAct!E104 -> PAYG% - bio resources - active - BR | F33: =InpAct!F104 -> 0 | G33: =InpAct!G104 -> % | H33: =InpAct!H104 -> 0 | J33: =IF(ABS(K33) > InpC!$F$9, 1, 0) -> 0 | K33: 0 | L33: =IF(ABS(K33) > InpC!$F$9, IF(INDEX(M33:O33, $J$5) = 0, 0, H33 / INDEX(M33:O33, $J$5) - 1), 0) -> 0 | N33: 0
J34: =IF(ABS(K34) > InpC!$F$9, 1, 0) -> 0 | K34: 0 | L34: =IF(ABS(K34) > InpC!$F$9, IF(INDEX(M34:O34, $J$5) = 0, 0, H34 / INDEX(M34:O34, $J$5) - 1), 0) -> 0 | N34: 0
C35: RCV depreciation | J35: =IF(ABS(K35) > InpC!$F$9, 1, 0) -> 0 | K35: 0 | L35: =IF(ABS(K35) > InpC!$F$9, IF(INDEX(M35:O35, $J$5) = 0, 0, H35 / INDEX(M35:O35, $J$5) - 1), 0) -> 0 | N35: 0
D36: =InpAct!D132 -> PR19 | E36: =InpAct!E132 -> RCV CPI(H) bf balance BEG - WR - nominal | F36: =InpAct!F132 -> 0 | G36: =InpAct!G132 -> £m | H36: =InpAct!H132 -> 4.062896999 | J36: =IF(ABS(K36) > InpC!$F$9, 1, 0) -> 1 | K36: 4.062896999 | L36: =IF(ABS(K36) > InpC!$F$9, IF(INDEX(M36:O36, $J$5) = 0, 0, H36 / INDEX(M36:O36, $J$5) - 1), 0) -> 0 | N36: 0
D37: =InpAct!D143 -> PR19 | E37: =InpAct!E143 -> Water resources: Non-PAYG Totex - nominal | F37: =InpAct!F143 -> 0 | G37: =InpAct!G143 -> £m | H37: =InpAct!H143 -> 4.046809723 | J37: =IF(ABS(K37) > InpC!$F$9, 1, 0) -> 1 | K37: 4.046809723 | L37: =IF(ABS(K37) > InpC!$F$9, IF(INDEX(M37:O37, $J$5) = 0, 0, H37 / INDEX(M37:O37, $J$5) - 1), 0) -> 0 | N37: 0
D38: =InpAct!D150 -> PR19 | E38: =InpAct!E150 -> RCV CPI(H) bf balance BEG - WN - nominal | F38: =InpAct!F150 -> 0 | G38: =InpAct!G150 -> £m | H38: =InpAct!H150 -> 162.4141572 | J38: =IF(ABS(K38) > InpC!$F$9, 1, 0) -> 1 | K38: 162.4141572 | L38: =IF(ABS(K38) > InpC!$F$9, IF(INDEX(M38:O38, $J$5) = 0, 0, H38 / INDEX(M38:O38, $J$5) - 1), 0) -> 0 | N38: 0
D39: =InpAct!D161 -> PR19 | E39: =InpAct!E161 -> Water network: Non-PAYG Totex - nominal | F39: =InpAct!F161 -> 0 | G39: =InpAct!G161 -> £m | H39: =InpAct!H161 -> 36.60234134 | J39: =IF(ABS(K39) > InpC!$F$9, 1, 0) -> 1 | K39: 36.60234134 | L39: =IF(ABS(K39) > InpC!$F$9, IF(INDEX(M39:O39, $J$5) = 0, 0, H39 / INDEX(M39:O39, $J$5) - 1), 0) -> 0 | N39: 0
D40: =InpAct!D168 -> PR19 | E40: =InpAct!E168 -> RCV CPI(H) bf balance BEG - WWN - nominal | F40: =InpAct!F168 -> 0 | G40: =InpAct!G168 -> £m | H40: =InpAct!H168 -> 0 | J40: =IF(ABS(K40) > InpC!$F$9, 1, 0) -> 0 | K40: 0 | L40: =IF(ABS(K40) > InpC!$F$9, IF(INDEX(M40:O40, $J$5) = 0, 0, H40 / INDEX(M40:O40, $J$5) - 1), 0) -> 0 | N40: 0
D41: =InpAct!D179 -> PR19 | E41: =InpAct!E179 -> Wastewater network: Non-PAYG Totex - nominal | F41: =InpAct!F179 -> 0 | G41: =InpAct!G179 -> £m | H41: =InpAct!H179 -> 0 | J41: =IF(ABS(K41) > InpC!$F$9, 1, 0) -> 0 | K41: 0 | L41: =IF(ABS(K41) > InpC!$F$9, IF(INDEX(M41:O41, $J$5) = 0, 0, H41 / INDEX(M41:O41, $J$5) - 1), 0) -> 0 | N41: 0
D42: =InpAct!D186 -> PR19 | E42: =InpAct!E186 -> RCV CPI(H) bf balance BEG - BR - nominal | F42: =InpAct!F186 -> 0 | G42: =InpAct!G186 -> £m | H42: =InpAct!H186 -> 0 | J42: =IF(ABS(K42) > InpC!$F$9, 1, 0) -> 0 | K42: 0 | L42: =IF(ABS(K42) > InpC!$F$9, IF(INDEX(M42:O42, $J$5) = 0, 0, H42 / INDEX(M42:O42, $J$5) - 1), 0) -> 0 | N42: 0
D43: =InpAct!D197 -> PR19 | E43: =InpAct!E197 -> Bio resources: Non-PAYG Totex - nominal | F43: =InpAct!F197 -> 0 | G43: =InpAct!G197 -> £m | H43: =InpAct!H197 -> 0 | J43: =IF(ABS(K43) > InpC!$F$9, 1, 0) -> 0 | K43: =H43 - INDEX(M43:O43, $J$5) -> 0 | L43: =IF(ABS(K43) > InpC!$F$9, IF(INDEX(M43:O43, $J$5) = 0, 0, H43 / INDEX(M43:O43, $J$5) - 1), 0) -> 0 | N43: 0
D44: =InpAct!D145 -> PR19 | E44: =InpAct!E145 -> Run-off rate - CPI(H) - active - WR | F44: =InpAct!F145 -> 0 | G44: =InpAct!G145 -> % | H44: =InpAct!H145 -> 0.1866286215 | J44: =IF(ABS(K44) > InpC!$F$9, 1, 0) -> 1 | K44: 0.1866286215 | L44: =IF(ABS(K44) > InpC!$F$9, IF(INDEX(M44:O44, $J$5) = 0, 0, H44 / INDEX(M44:O44, $J$5) - 1), 0) -> 0 | N44: 0
D45: =InpAct!D146 -> PR19 | E45: =InpAct!E146 -> Run-off rate - CPI(H) + RPI wedge - active - WR | F45: =InpAct!F146 -> 0 | G45: =InpAct!G146 -> % | H45: =InpAct!H146 -> 0.1739885918 | J45: =IF(ABS(K45) > InpC!$F$9, 1, 0) -> 1 | K45: 0.1739885918 | L45: =IF(ABS(K45) > InpC!$F$9, IF(INDEX(M45:O45, $J$5) = 0, 0, H45 / INDEX(M45:O45, $J$5) - 1), 0) -> 0 | N45: 0
D46: =InpAct!D147 -> PR19 | E46: =InpAct!E147 -> Run-off rate - RCV additions - active - WR | F46: =InpAct!F147 -> 0 | G46: =InpAct!G147 -> % | H46: =InpAct!H147 -> 0.04878384209 | J46: =IF(ABS(K46) > InpC!$F$9, 1, 0) -> 1 | K46: 0.04878384209 | L46: =IF(ABS(K46) > InpC!$F$9, IF(INDEX(M46:O46, $J$5) = 0, 0, H46 / INDEX(M46:O46, $J$5) - 1), 0) -> 0 | N46: 0
D47: =InpAct!D163 -> PR19 | E47: =InpAct!E163 -> Run-off rate - CPI(H) - active - WN | F47: =InpAct!F163 -> 0 | G47: =InpAct!G163 -> % | H47: =InpAct!H163 -> 0.0548 | J47: =IF(ABS(K47) > InpC!$F$9, 1, 0) -> 1 | K47: 0.0548 | L47: =IF(ABS(K47) > InpC!$F$9, IF(INDEX(M47:O47, $J$5) = 0, 0, H47 / INDEX(M47:O47, $J$5) - 1), 0) -> 0 | N47: 0
D48: =InpAct!D164 -> PR19 | E48: =InpAct!E164 -> Run-off rate - CPI(H) + RPI wedge - active - WN | F48: =InpAct!F164 -> 0 | G48: =InpAct!G164 -> % | H48: =InpAct!H164 -> 0.078 | J48: =IF(ABS(K48) > InpC!$F$9, 1, 0) -> 1 | K48: 0.078 | L48: =IF(ABS(K48) > InpC!$F$9, IF(INDEX(M48:O48, $J$5) = 0, 0, H48 / INDEX(M48:O48, $J$5) - 1), 0) -> 0 | N48: 0
D49: =InpAct!D165 -> PR19 | E49: =InpAct!E165 -> Run-off rate - RCV additions - active - WN | F49: =InpAct!F165 -> 0 | G49: =InpAct!G165 -> % | H49: =InpAct!H165 -> 0.0548 | J49: =IF(ABS(K49) > InpC!$F$9, 1, 0) -> 1 | K49: 0.0548 | L49: =IF(ABS(K49) > InpC!$F$9, IF(INDEX(M49:O49, $J$5) = 0, 0, H49 / INDEX(M49:O49, $J$5) - 1), 0) -> 0 | N49: 0
D50: =InpAct!D181 -> PR19 | E50: =InpAct!E181 -> Run-off rate - CPI(H) - active - WWN | F50: =InpAct!F181 -> 0 | G50: =InpAct!G181 -> % | H50: =InpAct!H181 -> 0 | J50: =IF(ABS(K50) > InpC!$F$9, 1, 0) -> 0 | K50: 0 | L50: =IF(ABS(K50) > InpC!$F$9, IF(INDEX(M50:O50, $J$5) = 0, 0, H50 / INDEX(M50:O50, $J$5) - 1), 0) -> 0 | N50: 0
D51: =InpAct!D182 -> PR19 | E51: =InpAct!E182 -> Run-off rate - CPI(H) + RPI wedge - active - WWN | F51: =InpAct!F182 -> 0 | G51: =InpAct!G182 -> % | H51: =InpAct!H182 -> 0 | J51: =IF(ABS(K51) > InpC!$F$9, 1, 0) -> 0 | K51: 0 | L51: =IF(ABS(K51) > InpC!$F$9, IF(INDEX(M51:O51, $J$5) = 0, 0, H51 / INDEX(M51:O51, $J$5) - 1), 0) -> 0 | N51: 0
D52: =InpAct!D183 -> PR19 | E52: =InpAct!E183 -> Run-off rate - RCV additions - active - WWN | F52: =InpAct!F183 -> 0 | G52: =InpAct!G183 -> % | H52: =InpAct!H183 -> 0 | J52: =IF(ABS(K52) > InpC!$F$9, 1, 0) -> 0 | K52: 0 | L52: =IF(ABS(K52) > InpC!$F$9, IF(INDEX(M52:O52, $J$5) = 0, 0, H52 / INDEX(M52:O52, $J$5) - 1), 0) -> 0 | N52: 0
D53: =InpAct!D199 -> PR19 | E53: =InpAct!E199 -> Run-off rate - CPI(H) - active - BR | F53: =InpAct!F199 -> 0 | G53: =InpAct!G199 -> % | H53: =InpAct!H199 -> 0 | J53: =IF(ABS(K53) > InpC!$F$9, 1, 0) -> 0 | K53: 0 | L53: =IF(ABS(K53) > InpC!$F$9, IF(INDEX(M53:O53, $J$5) = 0, 0, H53 / INDEX(M53:O53, $J$5) - 1), 0) -> 0 | N53: 0
D54: =InpAct!D200 -> PR19 | E54: =InpAct!E200 -> Run-off rate - CPI(H) + RPI wedge - active - BR | F54: =InpAct!F200 -> 0 | G54: =InpAct!G200 -> % | H54: =InpAct!H200 -> 0 | J54: =IF(ABS(K54) > InpC!$F$9, 1, 0) -> 0 | K54: 0 | L54: =IF(ABS(K54) > InpC!$F$9, IF(INDEX(M54:O54, $J$5) = 0, 0, H54 / INDEX(M54:O54, $J$5) - 1), 0) -> 0 | N54: 0
D55: =InpAct!D201 -> PR19 | E55: =InpAct!E201 -> Run-off rate - RCV additions - active - BR | F55: =InpAct!F201 -> 0 | G55: =InpAct!G201 -> % | H55: =InpAct!H201 -> 0 | J55: =IF(ABS(K55) > InpC!$F$9, 1, 0) -> 0 | K55: 0 | L55: =IF(ABS(K55) > InpC!$F$9, IF(INDEX(M55:O55, $J$5) = 0, 0, H55 / INDEX(M55:O55, $J$5) - 1), 0) -> 0 | N55: 0
J56: =IF(ABS(K56) > InpC!$F$9, 1, 0) -> 0 | K56: 0 | L56: =IF(ABS(K56) > InpC!$F$9, IF(INDEX(M56:O56, $J$5) = 0, 0, H56 / INDEX(M56:O56, $J$5) - 1), 0) -> 0 | N56: 0
C57: Retrun on RCV | J57: =IF(ABS(K57) > InpC!$F$9, 1, 0) -> 0 | K57: 0 | L57: =IF(ABS(K57) > InpC!$F$9, IF(INDEX(M57:O57, $J$5) = 0, 0, H57 / INDEX(M57:O57, $J$5) - 1), 0) -> 0 | N57: 0
D58: =InpAct!D219 -> PR19 | E58: =InpAct!E219 -> Average of RCV - CPI(H) bf - WR - nominal | F58: =InpAct!F219 -> 0 | G58: =InpAct!G219 -> £m | H58: =InpAct!H219 -> 3.757445977 | J58: =IF(ABS(K58) > InpC!$F$9, 1, 0) -> 1 | K58: 3.757445977 | L58: =IF(ABS(K58) > InpC!$F$9, IF(INDEX(M58:O58, $J$5) = 0, 0, H58 / INDEX(M58:O58, $J$5) - 1), 0) -> 0 | N58: 0
D59: =InpAct!D$227 -> PR19 | E59: =InpAct!E$227 -> Average of RCV post 2020 additions - WR - nominal | F59: =InpAct!F$227 -> 0 | G59: =InpAct!G$227 -> £m | H59: =InpAct!H$227 -> 15.81148061 | J59: =IF(ABS(K59) > InpC!$F$9, 1, 0) -> 1 | K59: 15.81148061 | L59: =IF(ABS(K59) > InpC!$F$9, IF(INDEX(M59:O59, $J$5) = 0, 0, H59 / INDEX(M59:O59, $J$5) - 1), 0) -> 0 | N59: 0
D60: =InpAct!D236 -> PR19 | E60: =InpAct!E236 -> Average of RCV - CPI(H) bf - WN - nominal | F60: =InpAct!F236 -> 0 | G60: =InpAct!G236 -> £m | H60: =InpAct!H236 -> 161.1232895 | J60: =IF(ABS(K60) > InpC!$F$9, 1, 0) -> 1 | K60: 161.1232895 | L60: =IF(ABS(K60) > InpC!$F$9, IF(INDEX(M60:O60, $J$5) = 0, 0, H60 / INDEX(M60:O60, $J$5) - 1), 0) -> 0 | N60: 0
D61: =InpAct!D$244 -> PR19 | E61: =InpAct!E$244 -> Average of RCV post 2020 additions - WN - nominal | F61: =InpAct!F$244 -> 0 | G61: =InpAct!G$244 -> £m | H61: =InpAct!H$244 -> 177.4054815 | J61: =IF(ABS(K61) > InpC!$F$9, 1, 0) -> 1 | K61: 177.4054815 | L61: =IF(ABS(K61) > InpC!$F$9, IF(INDEX(M61:O61, $J$5) = 0, 0, H61 / INDEX(M61:O61, $J$5) - 1), 0) -> 0 | N61: 0
D62: =InpAct!D253 -> PR19 | E62: =InpAct!E253 -> Average of RCV - CPI(H) bf - WWN - nominal | F62: =InpAct!F253 -> 0 | G62: =InpAct!G253 -> £m | H62: =InpAct!H253 -> 0 | J62: =IF(ABS(K62) > InpC!$F$9, 1, 0) -> 0 | K62: 0 | L62: =IF(ABS(K62) > InpC!$F$9, IF(INDEX(M62:O62, $J$5) = 0, 0, H62 / INDEX(M62:O62, $J$5) - 1), 0) -> 0 | N62: 0
D63: =InpAct!D$261 -> PR19 | E63: =InpAct!E$261 -> Average of RCV post 2020 additions - WWN - nominal | F63: =InpAct!F$261 -> 0 | G63: =InpAct!G$261 -> £m | H63: =InpAct!H$261 -> 0 | J63: =IF(ABS(K63) > InpC!$F$9, 1, 0) -> 0 | K63: 0 | L63: =IF(ABS(K63) > InpC!$F$9, IF(INDEX(M63:O63, $J$5) = 0, 0, H63 / INDEX(M63:O63, $J$5) - 1), 0) -> 0 | N63: 0
D64: =InpAct!D270 -> PR19 | E64: =InpAct!E270 -> Average of RCV - CPI(H) bf - BR - nominal | F64: =InpAct!F270 -> 0 | G64: =InpAct!G270 -> £m | H64: =InpAct!H270 -> 0 | J64: =IF(ABS(K64) > InpC!$F$9, 1, 0) -> 0 | K64: 0 | L64: =IF(ABS(K64) > InpC!$F$9, IF(INDEX(M64:O64, $J$5) = 0, 0, H64 / INDEX(M64:O64, $J$5) - 1), 0) -> 0 | N64: 0
D65: =InpAct!D$278 -> PR19 | E65: =InpAct!E$278 -> Average of RCV post 2020 additions - BR - nominal | F65: =InpAct!F$278 -> 0 | G65: =InpAct!G$278 -> £m | H65: =InpAct!H$278 -> 0 | J65: =IF(ABS(K65) > InpC!$F$9, 1, 0) -> 0 | K65: 0 | L65: =IF(ABS(K65) > InpC!$F$9, IF(INDEX(M65:O65, $J$5) = 0, 0, H65 / INDEX(M65:O65, $J$5) - 1), 0) -> 0 | N65: 0
D66: =InpAct!D$221 -> PR19 | E66: =InpAct!E$221 -> Return on RCV - CPI(H) bf - WR - nominal | F66: =InpAct!F$221 -> 0 | G66: =InpAct!G$221 -> £m | H66: =InpAct!H$221 -> 0.1242093759 | J66: =IF(ABS(K66) > InpC!$F$9, 1, 0) -> 1 | K66: 0.1242093759 | L66: =IF(ABS(K66) > InpC!$F$9, IF(INDEX(M66:O66, $J$5) = 0, 0, H66 / INDEX(M66:O66, $J$5) - 1), 0) -> 0 | N66: 0
D67: =InpAct!D$225 -> PR19 | E67: =InpAct!E$225 -> Return on RCV - CPI(H) + RPI wedge bf - WR - nominal | F67: =InpAct!F$225 -> 0 | G67: =InpAct!G$225 -> £m | H67: =InpAct!H$225 -> 0.09343733904 | J67: =IF(ABS(K67) > InpC!$F$9, 1, 0) -> 1 | K67: 0.09343733904 | L67: =IF(ABS(K67) > InpC!$F$9, IF(INDEX(M67:O67, $J$5) = 0, 0, H67 / INDEX(M67:O67, $J$5) - 1), 0) -> 0 | N67: 0
D68: =InpAct!D$229 -> PR19 | E68: =InpAct!E$229 -> Return on RCV additions - WR - nominal | F68: =InpAct!F$229 -> 0 | G68: =InpAct!G$229 -> £m | H68: =InpAct!H$229 -> 0.5226779442 | J68: =IF(ABS(K68) > InpC!$F$9, 1, 0) -> 1 | K68: 0.5226779442 | L68: =IF(ABS(K68) > InpC!$F$9, IF(INDEX(M68:O68, $J$5) = 0, 0, H68 / INDEX(M68:O68, $J$5) - 1), 0) -> 0 | N68: 0
D69: =InpAct!D$238 -> PR19 | E69: =InpAct!E$238 -> Return on RCV - CPI(H) bf - WN - nominal | F69: =InpAct!F$238 -> 0 | G69: =InpAct!G$238 -> £m | H69: =InpAct!H$238 -> 5.326230465 | J69: =IF(ABS(K69) > InpC!$F$9, 1, 0) -> 1 | K69: 5.326230465 | L69: =IF(ABS(K69) > InpC!$F$9, IF(INDEX(M69:O69, $J$5) = 0, 0, H69 / INDEX(M69:O69, $J$5) - 1), 0) -> 0 | N69: 0
D70: =InpAct!D$242 -> PR19 | E70: =InpAct!E$242 -> Return on RCV - CPI(H) + RPI wedge bf - WN - nominal | F70: =InpAct!F$242 -> 0 | G70: =InpAct!G$242 -> £m | H70: =InpAct!H$242 -> 3.459244219 | J70: =IF(ABS(K70) > InpC!$F$9, 1, 0) -> 1 | K70: 3.459244219 | L70: =IF(ABS(K70) > InpC!$F$9, IF(INDEX(M70:O70, $J$5) = 0, 0, H70 / INDEX(M70:O70, $J$5) - 1), 0) -> 0 | N70: 0
D71: =InpAct!D$246 -> PR19 | E71: =InpAct!E$246 -> Return on RCV additions - WN - nominal | F71: =InpAct!F$246 -> 0 | G71: =InpAct!G$246 -> £m | H71: =InpAct!H$246 -> 5.864468651 | J71: =IF(ABS(K71) > InpC!$F$9, 1, 0) -> 1 | K71: 5.864468651 | L71: =IF(ABS(K71) > InpC!$F$9, IF(INDEX(M71:O71, $J$5) = 0, 0, H71 / INDEX(M71:O71, $J$5) - 1), 0) -> 0 | N71: 0
D72: =InpAct!D$255 -> PR19 | E72: =InpAct!E$255 -> Return on RCV - CPI(H) bf - WWN - nominal | F72: =InpAct!F$255 -> 0 | G72: =InpAct!G$255 -> £m | H72: =InpAct!H$255 -> 0 | J72: =IF(ABS(K72) > InpC!$F$9, 1, 0) -> 0 | K72: 0 | L72: =IF(ABS(K72) > InpC!$F$9, IF(INDEX(M72:O72, $J$5) = 0, 0, H72 / INDEX(M72:O72, $J$5) - 1), 0) -> 0 | N72: 0
D73: =InpAct!D$259 -> PR19 | E73: =InpAct!E$259 -> Return on RCV - CPI(H) + RPI wedge bf - WWN - nominal | F73: =InpAct!F$259 -> 0 | G73: =InpAct!G$259 -> £m | H73: =InpAct!H$259 -> 0 | J73: =IF(ABS(K73) > InpC!$F$9, 1, 0) -> 0 | K73: 0 | L73: =IF(ABS(K73) > InpC!$F$9, IF(INDEX(M73:O73, $J$5) = 0, 0, H73 / INDEX(M73:O73, $J$5) - 1), 0) -> 0 | N73: 0
D74: =InpAct!D$263 -> PR19 | E74: =InpAct!E$263 -> Return on RCV additions - WWN - nominal | F74: =InpAct!F$263 -> 0 | G74: =InpAct!G$263 -> £m | H74: =InpAct!H$263 -> 0 | J74: =IF(ABS(K74) > InpC!$F$9, 1, 0) -> 0 | K74: 0 | L74: =IF(ABS(K74) > InpC!$F$9, IF(INDEX(M74:O74, $J$5) = 0, 0, H74 / INDEX(M74:O74, $J$5) - 1), 0) -> 0 | N74: 0
D75: =InpAct!D$272 -> PR19 | E75: =InpAct!E$272 -> Return on RCV - CPI(H) bf - BR - nominal | F75: =InpAct!F$272 -> 0 | G75: =InpAct!G$272 -> £m | H75: =InpAct!H$272 -> 0 | J75: =IF(ABS(K75) > InpC!$F$9, 1, 0) -> 0 | K75: =H75 - INDEX(M75:O75, $J$5) -> 0 | L75: =IF(ABS(K75) > InpC!$F$9, IF(INDEX(M75:O75, $J$5) = 0, 0, H75 / INDEX(M75:O75, $J$5) - 1), 0) -> 0 | N75: 0
D76: =InpAct!D$276 -> PR19 | E76: =InpAct!E$276 -> Return on RCV - CPI(H) + RPI wedge bf - BR - nominal | F76: =InpAct!F$276 -> 0 | G76: =InpAct!G$276 -> £m | H76: =InpAct!H$276 -> 0 | J76: =IF(ABS(K76) > InpC!$F$9, 1, 0) -> 0 | K76: 0 | L76: =IF(ABS(K76) > InpC!$F$9, IF(INDEX(M76:O76, $J$5) = 0, 0, H76 / INDEX(M76:O76, $J$5) - 1), 0) -> 0 | N76: 0
D77: =InpAct!D$280 -> PR19 | E77: =InpAct!E$280 -> Return on RCV additions - BR - nominal | F77: =InpAct!F$280 -> 0 | G77: =InpAct!G$280 -> £m | H77: =InpAct!H$280 -> 0 | J77: =IF(ABS(K77) > InpC!$F$9, 1, 0) -> 0 | K77: 0 | L77: =IF(ABS(K77) > InpC!$F$9, IF(INDEX(M77:O77, $J$5) = 0, 0, H77 / INDEX(M77:O77, $J$5) - 1), 0) -> 0 | N77: 0
D78: =InpAct!D220 -> PR19 | E78: =InpAct!E220 -> WACC real on RCV - CPI(H) bf and additions - WR | F78: =InpAct!F220 -> 0 | G78: =InpAct!G220 -> % | H78: =InpAct!H220 -> 0.03305686275 | J78: =IF(ABS(K78) > InpC!$F$9, 1, 0) -> 1 | K78: 0.03305686275 | L78: =IF(ABS(K78) > InpC!$F$9, IF(INDEX(M78:O78, $J$5) = 0, 0, H78 / INDEX(M78:O78, $J$5) - 1), 0) -> 0 | N78: 0
D79: =InpAct!D224 -> PR19 | E79: =InpAct!E224 -> WACC on RCV - CPI(H) + RPI wedge bf and additions - WR | F79: =InpAct!F224 -> 0 | G79: =InpAct!G224 -> % | H79: =InpAct!H224 -> 0.02302718447 | J79: =IF(ABS(K79) > InpC!$F$9, 1, 0) -> 1 | K79: 0.02302718447 | L79: =IF(ABS(K79) > InpC!$F$9, IF(INDEX(M79:O79, $J$5) = 0, 0, H79 / INDEX(M79:O79, $J$5) - 1), 0) -> 0 | N79: 0
D80: =InpAct!D237 -> PR19 | E80: =InpAct!E237 -> WACC real on RCV - CPI(H) bf and additions - WN | F80: =InpAct!F237 -> 0 | G80: =InpAct!G237 -> % | H80: =InpAct!H237 -> 0.03305686275 | J80: =IF(ABS(K80) > InpC!$F$9, 1, 0) -> 1 | K80: 0.03305686275 | L80: =IF(ABS(K80) > InpC!$F$9, IF(INDEX(M80:O80, $J$5) = 0, 0, H80 / INDEX(M80:O80, $J$5) - 1), 0) -> 0 | N80: 0
D81: =InpAct!D241 -> PR19 | E81: =InpAct!E241 -> WACC on RCV - CPI(H) + RPI wedge bf and additions - WN | F81: =InpAct!F241 -> 0 | G81: =InpAct!G241 -> % | H81: =InpAct!H241 -> 0.02302718447 | J81: =IF(ABS(K81) > InpC!$F$9, 1, 0) -> 1 | K81: 0.02302718447 | L81: =IF(ABS(K81) > InpC!$F$9, IF(INDEX(M81:O81, $J$5) = 0, 0, H81 / INDEX(M81:O81, $J$5) - 1), 0) -> 0 | N81: 0
D82: =InpAct!D254 -> PR19 | E82: =InpAct!E254 -> WACC real on RCV - CPI(H) bf and additions - WWN | F82: =InpAct!F254 -> 0 | G82: =InpAct!G254 -> % | H82: =InpAct!H254 -> -0.01960784314 | J82: =IF(ABS(K82) > InpC!$F$9, 1, 0) -> 1 | K82: -0.01960784314 | L82: =IF(ABS(K82) > InpC!$F$9, IF(INDEX(M82:O82, $J$5) = 0, 0, H82 / INDEX(M82:O82, $J$5) - 1), 0) -> 0 | N82: 0
D83: =InpAct!D258 -> PR19 | E83: =InpAct!E258 -> WACC on RCV - CPI(H) + RPI wedge bf and additions - WWN | F83: =InpAct!F258 -> 0 | G83: =InpAct!G258 -> % | H83: =InpAct!H258 -> -0.02912621359 | J83: =IF(ABS(K83) > InpC!$F$9, 1, 0) -> 1 | K83: -0.02912621359 | L83: =IF(ABS(K83) > InpC!$F$9, IF(INDEX(M83:O83, $J$5) = 0, 0, H83 / INDEX(M83:O83, $J$5) - 1), 0) -> 0 | N83: 0
D84: =InpAct!D271 -> PR19 | E84: =InpAct!E271 -> WACC real on RCV - CPI(H) bf and additions - BR | F84: =InpAct!F271 -> 0 | G84: =InpAct!G271 -> % | H84: =InpAct!H271 -> -0.01960784314 | J84: =IF(ABS(K84) > InpC!$F$9, 1, 0) -> 1 | K84: -0.01960784314 | L84: =IF(ABS(K84) > InpC!$F$9, IF(INDEX(M84:O84, $J$5) = 0, 0, H84 / INDEX(M84:O84, $J$5) - 1), 0) -> 0 | N84: 0
D85: =InpAct!D275 -> PR19 | E85: =InpAct!E275 -> WACC on RCV - CPI(H) + RPI wedge bf and additions - BR | F85: =InpAct!F275 -> 0 | G85: =InpAct!G275 -> % | H85: =InpAct!H275 -> -0.02912621359 | J85: =IF(ABS(K85) > InpC!$F$9, 1, 0) -> 1 | K85: -0.02912621359 | L85: =IF(ABS(K85) > InpC!$F$9, IF(INDEX(M85:O85, $J$5) = 0, 0, H85 / INDEX(M85:O85, $J$5) - 1), 0) -> 0 | N85: 0
J86: =IF(ABS(K86) > InpC!$F$9, 1, 0) -> 0 | K86: 0 | L86: =IF(ABS(K86) > InpC!$F$9, IF(INDEX(M86:O86, $J$5) = 0, 0, H86 / INDEX(M86:O86, $J$5) - 1), 0) -> 0 | N86: 0
C87: Component Movement Summary | J87: =IF(ABS(K87) > InpC!$F$9, 1, 0) -> 0 | K87: 0 | L87: =IF(ABS(K87) > InpC!$F$9, IF(INDEX(M87:O87, $J$5) = 0, 0, H87 / INDEX(M87:O87, $J$5) - 1), 0) -> 0 | N87: 0
E88: =Summary_Calc!E41 -> Change in customer numbers and residential apportionment | F88: =Summary_Calc!F41 -> 0 | G88: =Summary_Calc!G41 -> £ | H88: =Summary_Calc!H41 -> -8.545087362 | J88: =IF(ABS(K88) > InpC!$F$9, 1, 0) -> 1 | K88: -8.545087362 | L88: =IF(ABS(K88) > InpC!$F$9, IF(INDEX(M88:O88, $J$5) = 0, 0, H88 / INDEX(M88:O88, $J$5) - 1), 0) -> 0 | N88: 0
E89: =Summary_Calc!E42 -> Change in retail CTS | F89: =Summary_Calc!F42 -> 0 | G89: =Summary_Calc!G42 -> £ | H89: =Summary_Calc!H42 -> -8.399650679 | J89: =IF(ABS(K89) > InpC!$F$9, 1, 0) -> 1 | K89: -8.399650679 | L89: =IF(ABS(K89) > InpC!$F$9, IF(INDEX(M89:O89, $J$5) = 0, 0, H89 / INDEX(M89:O89, $J$5) - 1), 0) -> 0 | N89: 0
E90: =Summary_Calc!E48 -> Change in PAYG Totex due to change in PAYG% | F90: =Summary_Calc!F48 -> 0 | G90: =Summary_Calc!G48 -> £m | H90: =Summary_Calc!H48 -> -1.315676066 | J90: =IF(ABS(K90) > InpC!$F$9, 1, 0) -> 1 | K90: -1.315676066 | L90: =IF(ABS(K90) > InpC!$F$9, IF(INDEX(M90:O90, $J$5) = 0, 0, H90 / INDEX(M90:O90, $J$5) - 1), 0) -> 0 | N90: 0
E91: =Summary_Calc!E49 -> Change in PAYG Totex due to change in Totex | F91: =Summary_Calc!F49 -> 0 | G91: =Summary_Calc!G49 -> £m | H91: =Summary_Calc!H49 -> 6.402233269 | J91: =IF(ABS(K91) > InpC!$F$9, 1, 0) -> 1 | K91: 6.402233269 | L91: =IF(ABS(K91) > InpC!$F$9, IF(INDEX(M91:O91, $J$5) = 0, 0, H91 / INDEX(M91:O91, $J$5) - 1), 0) -> 0 | N91: 0
E92: =Summary_Calc!E50 -> Change in RCV depreciation due to change in run-off rate | F92: =Summary_Calc!F50 -> 0 | G92: =Summary_Calc!G50 -> £m | H92: =Summary_Calc!H50 -> 0.1825107832 | J92: =IF(ABS(K92) > InpC!$F$9, 1, 0) -> 1 | K92: 0.1825107832 | L92: =IF(ABS(K92) > InpC!$F$9, IF(INDEX(M92:O92, $J$5) = 0, 0, H92 / INDEX(M92:O92, $J$5) - 1), 0) -> 0 | N92: 0
E93: =Summary_Calc!E51 -> Change in RCV depreciation due to change in RCV | F93: =Summary_Calc!F51 -> 0 | G93: =Summary_Calc!G51 -> £m | H93: =Summary_Calc!H51 -> 4.169084275 | J93: =IF(ABS(K93) > InpC!$F$9, 1, 0) -> 1 | K93: 4.169084275 | L93: =IF(ABS(K93) > InpC!$F$9, IF(INDEX(M93:O93, $J$5) = 0, 0, H93 / INDEX(M93:O93, $J$5) - 1), 0) -> 0 | N93: 0
E94: =Summary_Calc!E52 -> Change in return on RCV due to change in WACC | F94: =Summary_Calc!F52 -> 0 | G94: =Summary_Calc!G52 -> £m | H94: =Summary_Calc!H52 -> -2.165780215 | J94: =IF(ABS(K94) > InpC!$F$9, 1, 0) -> 1 | K94: -2.165780215 | L94: =IF(ABS(K94) > InpC!$F$9, IF(INDEX(M94:O94, $J$5) = 0, 0, H94 / INDEX(M94:O94, $J$5) - 1), 0) -> 0 | N94: 0
E95: =Summary_Calc!E53 -> Change in return on RCV due to change in RCV | F95: =Summary_Calc!F53 -> 0 | G95: =Summary_Calc!G53 -> £m | H95: =Summary_Calc!H53 -> 2.397097742 | J95: =IF(ABS(K95) > InpC!$F$9, 1, 0) -> 1 | K95: 2.397097742 | L95: =IF(ABS(K95) > InpC!$F$9, IF(INDEX(M95:O95, $J$5) = 0, 0, H95 / INDEX(M95:O95, $J$5) - 1), 0) -> 0 | N95: 0
E96: =Summary_Calc!E54 -> Change in other wholesale items | F96: =Summary_Calc!F54 -> 0 | G96: =Summary_Calc!G54 -> £m | H96: =Summary_Calc!H54 -> -3.159447218 | J96: =IF(ABS(K96) > InpC!$F$9, 1, 0) -> 1 | K96: -3.159447218 | L96: =IF(ABS(K96) > InpC!$F$9, IF(INDEX(M96:O96, $J$5) = 0, 0, H96 / INDEX(M96:O96, $J$5) - 1), 0) -> 0 | N96: 0
E97: =Summary_Calc!E55 -> Change in wholesale reconciliation items | F97: =Summary_Calc!F55 -> 0 | G97: =Summary_Calc!G55 -> £m | H97: =Summary_Calc!H55 -> -2.645159331 | J97: =IF(ABS(K97) > InpC!$F$9, 1, 0) -> 1 | K97: -2.645159331 | L97: =IF(ABS(K97) > InpC!$F$9, IF(INDEX(M97:O97, $J$5) = 0, 0, H97 / INDEX(M97:O97, $J$5) - 1), 0) -> 0 | N97: 0
E98: =Summary_Calc!E106 -> Change in 5th control | F98: =Summary_Calc!F106 -> 0 | G98: =Summary_Calc!G106 -> £ | H98: =Summary_Calc!H106 -> 0 | J98: =IF(ABS(K98) > InpC!$F$9, 1, 0) -> 0 | K98: =H98 - INDEX(M98:O98, $J$5) -> 0 | L98: =IF(ABS(K98) > InpC!$F$9, IF(INDEX(M98:O98, $J$5) = 0, 0, H98 / INDEX(M98:O98, $J$5) - 1), 0) -> 0 | N98: 0
E99: =Summary_Calc!E56 -> Change due to all wholesale changes except customer numbers | F99: =Summary_Calc!F56 -> 0 | G99: =Summary_Calc!G56 -> £m | H99: =Summary_Calc!H56 -> 3.864863239 | J99: =IF(ABS(K99) > InpC!$F$9, 1, 0) -> 1 | K99: 3.864863239 | L99: =IF(ABS(K99) > InpC!$F$9, IF(INDEX(M99:O99, $J$5) = 0, 0, H99 / INDEX(M99:O99, $J$5) - 1), 0) -> 0 | N99: 0
J100: =IF(ABS(K100) > InpC!$F$9, 1, 0) -> 0 | K100: 0 | L100: =IF(ABS(K100) > InpC!$F$9, IF(INDEX(M100:O100, $J$5) = 0, 0, H100 / INDEX(M100:O100, $J$5) - 1), 0) -> 0 | N100: 0
C101: Bill Summary | J101: =IF(ABS(K101) > InpC!$F$9, 1, 0) -> 0 | K101: 0 | L101: =IF(ABS(K101) > InpC!$F$9, IF(INDEX(M101:O101, $J$5) = 0, 0, H101 / INDEX(M101:O101, $J$5) - 1), 0) -> 0 | N101: 0
D102: =Summary_Calc!D24 -> PR14 | E102: =Summary_Calc!E24 -> Average combined bill - 2017/18 year average CPIH deflated | F102: =Summary_Calc!F24 -> 0 | G102: =Summary_Calc!G24 -> £ | H102: =Summary_Calc!H24 -> 140.2850733 | J102: =IF(ABS(K102) > InpC!$F$9, 1, 0) -> 1 | K102: 140.2850733 | L102: =IF(ABS(K102) > InpC!$F$9, IF(INDEX(M102:O102, $J$5) = 0, 0, H102 / INDEX(M102:O102, $J$5) - 1), 0) -> 0 | N102: 0
D103: =Summary_Calc!D29 -> PR19 | E103: =Summary_Calc!E29 -> Average bill - real | F103: =Summary_Calc!F29 -> 0 | G103: =Summary_Calc!G29 -> £ | H103: =Summary_Calc!H29 -> 127.5434806 | J103: =IF(ABS(K103) > InpC!$F$9, 1, 0) -> 1 | K103: 127.5434806 | L103: =IF(ABS(K103) > InpC!$F$9, IF(INDEX(M103:O103, $J$5) = 0, 0, H103 / INDEX(M103:O103, $J$5) - 1), 0) -> 0 | N103: 0
J104: =IF(ABS(K104) > InpC!$F$9, 1, 0) -> 0 | K104: 0 | L104: =IF(ABS(K104) > InpC!$F$9, IF(INDEX(M104:O104, $J$5) = 0, 0, H104 / INDEX(M104:O104, $J$5) - 1), 0) -> 0 | N104: 0
C105: Bill Movement Summary | J105: =IF(ABS(K105) > InpC!$F$9, 1, 0) -> 0 | K105: 0 | L105: =IF(ABS(K105) > InpC!$F$9, IF(INDEX(M105:O105, $J$5) = 0, 0, H105 / INDEX(M105:O105, $J$5) - 1), 0) -> 0 | N105: 0
E106: =Summary_Calc!E40 -> Change in average combined bill | F106: =Summary_Calc!F40 -> 0 | G106: =Summary_Calc!G40 -> £ | H106: =Summary_Calc!H40 -> -12.74159277 | J106: =IF(ABS(K106) > InpC!$F$9, 1, 0) -> 1 | K106: -12.74159277 | L106: =IF(ABS(K106) > InpC!$F$9, IF(INDEX(M106:O106, $J$5) = 0, 0, H106 / INDEX(M106:O106, $J$5) - 1), 0) -> 0 | N106: 0
E107: =Summary_Calc!E41 -> Change in customer numbers and residential apportionment | F107: =Summary_Calc!F41 -> 0 | G107: =Summary_Calc!G41 -> £ | H107: =Summary_Calc!H41 -> -8.545087362 | J107: =IF(ABS(K107) > InpC!$F$9, 1, 0) -> 1 | K107: =H107 - INDEX(M107:O107, $J$5) -> -8.545087362 | L107: =IF(ABS(K107) > InpC!$F$9, IF(INDEX(M107:O107, $J$5) = 0, 0, H107 / INDEX(M107:O107, $J$5) - 1), 0) -> 0 | N107: 0
E108: =Summary_Calc!E42 -> Change in retail CTS | F108: =Summary_Calc!F42 -> 0 | G108: =Summary_Calc!G42 -> £ | H108: =Summary_Calc!H42 -> -8.399650679 | J108: =IF(ABS(K108) > InpC!$F$9, 1, 0) -> 1 | K108: -8.399650679 | L108: =IF(ABS(K108) > InpC!$F$9, IF(INDEX(M108:O108, $J$5) = 0, 0, H108 / INDEX(M108:O108, $J$5) - 1), 0) -> 0 | N108: 0
E109: =Summary_Calc!E88 -> Change in RCV depreciation due to change in RCV (per customer) | F109: =Summary_Calc!F88 -> 0 | G109: =Summary_Calc!G88 -> £ | H109: =Summary_Calc!H88 -> 4.533994034 | J109: =IF(ABS(K109) > InpC!$F$9, 1, 0) -> 1 | K109: 4.533994034 | L109: =IF(ABS(K109) > InpC!$F$9, IF(INDEX(M109:O109, $J$5) = 0, 0, H109 / INDEX(M109:O109, $J$5) - 1), 0) -> 0 | N109: 0
E110: =Summary_Calc!E89 -> Change in Return on RCV due to change in RCV (per customer) | F110: =Summary_Calc!F89 -> 0 | G110: =Summary_Calc!G89 -> £ | H110: =Summary_Calc!H89 -> 2.60690985 | J110: =IF(ABS(K110) > InpC!$F$9, 1, 0) -> 1 | K110: 2.60690985 | L110: =IF(ABS(K110) > InpC!$F$9, IF(INDEX(M110:O110, $J$5) = 0, 0, H110 / INDEX(M110:O110, $J$5) - 1), 0) -> 0 | N110: 0
E111: =Summary_Calc!E110 -> Change in PAYG% | F111: =Summary_Calc!F110 -> 0 | G111: =Summary_Calc!G110 -> £ | H111: =Summary_Calc!H110 -> -1.430833977 | J111: =IF(ABS(K111) > InpC!$F$9, 1, 0) -> 1 | K111: -1.430833977 | L111: =IF(ABS(K111) > InpC!$F$9, IF(INDEX(M111:O111, $J$5) = 0, 0, H111 / INDEX(M111:O111, $J$5) - 1), 0) -> 0 | N111: 0
E112: =Summary_Calc!E109 -> Change in Totex | F112: =Summary_Calc!F109 -> 0 | G112: =Summary_Calc!G109 -> £ | H112: =Summary_Calc!H109 -> 6.962605103 | J112: =IF(ABS(K112) > InpC!$F$9, 1, 0) -> 1 | K112: 6.962605103 | L112: =IF(ABS(K112) > InpC!$F$9, IF(INDEX(M112:O112, $J$5) = 0, 0, H112 / INDEX(M112:O112, $J$5) - 1), 0) -> 0 | N112: 0
E113: =Summary_Calc!E111 -> Change in Run-off rate | F113: =Summary_Calc!F111 -> 0 | G113: =Summary_Calc!G111 -> £ | H113: =Summary_Calc!H111 -> 0.1984855061 | J113: =IF(ABS(K113) > InpC!$F$9, 1, 0) -> 1 | K113: 0.1984855061 | L113: =IF(ABS(K113) > InpC!$F$9, IF(INDEX(M113:O113, $J$5) = 0, 0, H113 / INDEX(M113:O113, $J$5) - 1), 0) -> 0 | N113: 0
E114: =Summary_Calc!E108 -> Change in RCV | F114: =Summary_Calc!F108 -> 0 | G114: =Summary_Calc!G108 -> £ | H114: =Summary_Calc!H108 -> 7.140903884 | J114: =IF(ABS(K114) > InpC!$F$9, 1, 0) -> 1 | K114: 7.140903884 | L114: =IF(ABS(K114) > InpC!$F$9, IF(INDEX(M114:O114, $J$5) = 0, 0, H114 / INDEX(M114:O114, $J$5) - 1), 0) -> 0 | N114: 0
E115: =Summary_Calc!E112 -> Change in WACC | F115: =Summary_Calc!F112 -> 0 | G115: =Summary_Calc!G112 -> £ | H115: =Summary_Calc!H112 -> -2.355345665 | J115: =IF(ABS(K115) > InpC!$F$9, 1, 0) -> 1 | K115: -2.355345665 | L115: =IF(ABS(K115) > InpC!$F$9, IF(INDEX(M115:O115, $J$5) = 0, 0, H115 / INDEX(M115:O115, $J$5) - 1), 0) -> 0 | N115: 0
E116: =Summary_Calc!E113 -> Change in Other wholesale items | F116: =Summary_Calc!F113 -> 0 | G116: =Summary_Calc!G113 -> £ | H116: =Summary_Calc!H113 -> -3.435985913 | J116: =IF(ABS(K116) > InpC!$F$9, 1, 0) -> 1 | K116: -3.435985913 | L116: =IF(ABS(K116) > InpC!$F$9, IF(INDEX(M116:O116, $J$5) = 0, 0, H116 / INDEX(M116:O116, $J$5) - 1), 0) -> 0 | N116: 0
E117: =Summary_Calc!E114 -> Change in Wholesale reconciliations items | F117: =Summary_Calc!F114 -> 0 | G117: =Summary_Calc!G114 -> £ | H117: =Summary_Calc!H114 -> -2.876683664 | J117: =IF(ABS(K117) > InpC!$F$9, 1, 0) -> 1 | K117: -2.876683664 | L117: =IF(ABS(K117) > InpC!$F$9, IF(INDEX(M117:O117, $J$5) = 0, 0, H117 / INDEX(M117:O117, $J$5) - 1), 0) -> 0 | N117: 0
A119: INFO ONLY
E121: Date | H121: =TODAY() -> 2019-03-28 | N121: 2018-04-04
E122: Time | H122: =NOW() -> 43552.61992 | N122: 43166.59595
E123: File | H123: =MID(CELL("filename",$A$1), SEARCH("[", CELL("filename",$A$1)) + 1, SEARCH("]", CELL("filename",$A$1)) - SEARCH("[", CELL("filename",$A$1)) - 1) -> Bill-Waterfall-Model-12c-for-publication.xlsm | N123: BillModel_v0.0.xlsm
E124: [do not delete row] | J124: range end
E126: Comment: Key input and logic changes | N126: Nil inputs
E127: Comment: Key result changes
A129: End of sheet

Sheet Check
A1: =RIGHT(CELL("filename", $A$1), LEN(CELL("filename", $A$1)) - SEARCH("]", CELL("filename", $A$1))) -> Check
F2: =F11 -> -3 | G2: Checks
F3: =F30 -> 62 | G3: Track chgs
F5: Constant | G5: Unit
A7: CHECK SUMMARY
A9: MODEL INTEGRITY CHECKS
E11: Total model integrity checks | F11: =SUM(F15:F26) -> -3
E13: [do not delete row]
B15: General | E15: =InpC!$E$38 -> Company Type switch check | F15: =InpC!F38 -> 0
B17: RCV | E17: =RCV!E383 -> Change in Water RCV depreciation check | F17: =RCV!H383 -> 0
E18: =RCV!E390 -> Change in Wastewater RCV depreciation check | F18: =RCV!H390 -> -1
E19: =RCV!E549 -> Change in Water RCV depreciation check | F19: =RCV!H549 -> 0
E20: =RCV!E556 -> Change in Wastewater return on RCV check | F20: =RCV!H556 -> -1
B22: Totex | E22: =Totex!E151 -> Change in Water PAYG Totex check | F22: =Totex!H151 -> 0
E23: =Totex!E158 -> Change in Wastewater PAYG Totex check | F23: =Totex!H158 -> -1
B25: Summary | E25: =Summary_Calc!E119 -> Sum of wholesale items after apportionment equals change in customer bill less retail items | F25: =Summary_Calc!H119 -> 0
E28: [do not delete row]
E30: Total track changes | F30: =Track!J2 -> 62
A33: End of sheet
